Service Delivery Area(T),Service Delivery Team(T),ExpenditureGroup(T),Account(T),Supplier Name(T),Trans Date,Amount
Adult Social Care,ASC Prevention & Enablement,Employees,Employee Costs Recharged,SHROPSHIRE COMMUNITY HEALTH NHS TRUST,10/07/2023,"58,986.00"
Adult Social Care,ASC Prevention & Enablement,Supplies & Services,Equipment - Hire,1st Call Mobility,11/07/2023,265.00
Adult Social Care,ASC Prevention & Enablement,Supplies & Services,Equipment - Hire,1st Call Mobility,11/07/2023,205.00
Adult Social Care,ASC Prevention & Enablement,Supplies & Services,Equipment - Hire,ARJO UK LTD,11/07/2023,210.00
Adult Social Care,ASC Prevention & Enablement,Supplies & Services,Equipment - Hire,ARJO UK LTD,11/07/2023,450.00
Adult Social Care,ASC Prevention & Enablement,Supplies & Services,Equipment - Hire,ARJO UK LTD,11/07/2023,"1,820.00"
Adult Social Care,ASC Prevention & Enablement,Supplies & Services,Equipment - Hire,ARJO UK LTD,11/07/2023,"1,170.00"
Adult Social Care,ASC Prevention & Enablement,Supplies & Services,Equipment - Hire,ARJO UK LTD,11/07/2023,180.00
Adult Social Care,ASC Prevention & Enablement,Supplies & Services,Equipment - Hire,ARJO UK LTD,11/07/2023,620.00
Adult Social Care,ASC Prevention & Enablement,Supplies & Services,Equipment - Hire,ARJO UK LTD,11/07/2023,600.00
Adult Social Care,ASC Prevention & Enablement,Supplies & Services,Equipment - Hire,ARJO UK LTD,06/07/2023,160.00
Adult Social Care,ASC Prevention & Enablement,Third Party Payments,Nursing Expenditure,NHS Shropshire Telford & Wrekin ICB QOC Receivables N209,13/07/2023,"7,200.00"
Adult Social Care,ASC Prevention & Enablement,Transport-Related Expenditure,Taxi Costs,Cartello Ambulance,11/07/2023,160.50
Adult Social Care,ASC Prevention & Enablement,Transport-Related Expenditure,Taxi Costs,Cartello Ambulance,11/07/2023,240.75
Adult Social Care,ASC Prevention & Enablement,Transport-Related Expenditure,Taxi Costs,Cartello Ambulance,11/07/2023,214.00
Adult Social Care,ASC Prevention & Enablement,Transport-Related Expenditure,Taxi Costs,Cartello Ambulance,11/07/2023,187.25
Adult Social Care,ASC Prevention & Enablement,Transport-Related Expenditure,Taxi Costs,Cartello Ambulance,11/07/2023,187.25
Adult Social Care,ASC Prevention & Enablement,Transport-Related Expenditure,Taxi Costs,Cartello Ambulance,13/07/2023,187.25
Adult Social Care,ASC Prevention & Enablement,Transport-Related Expenditure,Taxi Costs,Cartello Ambulance,13/07/2023,187.25
Adult Social Care,ASC Prevention & Enablement,Employees,Other Employee Costs,Medgen LTD,11/07/2023,675.80
Adult Social Care,ASC Prevention & Enablement,Employees,Other Employee Costs,Medgen LTD,11/07/2023,"1,457.60"
Adult Social Care,ASC Prevention & Enablement,Employees,Other Employee Costs,Medgen LTD,11/07/2023,349.50
Adult Social Care,ASC Prevention & Enablement,Employees,Other Employee Costs,Medgen LTD,11/07/2023,"1,532.95"
Adult Social Care,ASC Prevention & Enablement,Employees,Other Employee Costs,Medgen LTD,11/07/2023,"1,724.03"
Adult Social Care,ASC Prevention & Enablement,Employees,Other Employee Costs,Medgen LTD,11/07/2023,"1,622.03"
Adult Social Care,ASC Prevention & Enablement,Employees,Other Employee Costs,Medgen LTD,11/07/2023,"1,375.44"
Adult Social Care,ASC Prevention & Enablement,Employees,Other Employee Costs,Medgen LTD,11/07/2023,"1,068.10"
Adult Social Care,ASC Prevention & Enablement,Employees,Other Employee Costs,Medgen LTD,11/07/2023,"1,781.50"
Adult Social Care,ASC Prevention & Enablement,Employees,Other Employee Costs,Medgen LTD,13/07/2023,"1,378.00"
Adult Social Care,ASC Prevention & Enablement,Employees,Other Employee Costs,Medgen LTD,13/07/2023,339.20
Adult Social Care,ASC Prevention & Enablement,Employees,Other Employee Costs,Medgen LTD,13/07/2023,"1,393.20"
Adult Social Care,ASC Prevention & Enablement,Employees,Other Employee Costs,Medgen LTD,13/07/2023,"1,374.00"
Adult Social Care,ASC Prevention & Enablement,Employees,Other Employee Costs,Medgen LTD,13/07/2023,"1,744.70"
Adult Social Care,ASC Prevention & Enablement,Employees,Other Employee Costs,Medgen LTD,13/07/2023,"2,520.25"
Adult Social Care,ASC Prevention & Enablement,Employees,Other Employee Costs,Medgen LTD,13/07/2023,"1,448.40"
Adult Social Care,ASC Prevention & Enablement,Employees,Other Employee Costs,Medgen LTD,13/07/2023,"1,719.50"
Adult Social Care,ASC Prevention & Enablement,Employees,Other Employee Costs,Medgen LTD,13/07/2023,"1,737.90"
Adult Social Care,ASC Prevention & Enablement,Employees,Other Employee Costs,Medgen LTD,13/07/2023,"1,747.10"
Adult Social Care,ASC Prevention & Enablement,Employees,Other Employee Costs,Medgen LTD,13/07/2023,"1,481.20"
Adult Social Care,ASC Prevention & Enablement,Employees,Other Employee Costs,Medgen LTD,13/07/2023,"1,747.10"
Adult Social Care,ASC Prevention & Enablement,Employees,Staff Training,SHROPSHIRE COUNCIL ,21/07/2023,246.00
Adult Social Care,"Assurance, Transformation & Financial Management",Supplies & Services,Systems Procurement,Prepaid Financial Services Limited,18/07/2023,678.10
Adult Social Care,"Assurance, Transformation & Financial Management",Supplies & Services,Systems Procurement,Prepaid Financial Services Limited,18/07/2023,572.20
Adult Social Care,"Assurance, Transformation & Financial Management",Employees,Staff Training,escalla,11/07/2023,199.00
Adult Social Care,"Commissioning, Procurement & Brokerage",Supplies & Services,Other Grants (Expenses),NCCTC Ltd,04/07/2023,285.60
Adult Social Care,"Commissioning, Procurement & Brokerage",Supplies & Services,Other Grants (Expenses),B Operations Randlay Limited,03/07/2023,"7,700.00"
Adult Social Care,"Commissioning, Procurement & Brokerage",Supplies & Services,Other Grants (Expenses),COVERAGE CARE SERVICES LTD,31/07/2023,"69,499.91"
Adult Social Care,"Commissioning, Procurement & Brokerage",Supplies & Services,Other Grants (Expenses),TELFORD & WREKIN CVS,13/07/2023,"90,000.00"
Adult Social Care,"Commissioning, Procurement & Brokerage",Supplies & Services,Other Grants (Expenses),THE STROKE ASSOCIATION,31/07/2023,"11,499.44"
Adult Social Care,"Commissioning, Procurement & Brokerage",Supplies & Services,Other Grants (Expenses),POHWER,13/07/2023,"19,312.50"
Adult Social Care,"Commissioning, Procurement & Brokerage",Supplies & Services,Other Grants (Expenses),TELFORD & WREKIN CVS,13/07/2023,"18,500.00"
Adult Social Care,Community Social Work & Adult Safeguarding,Supplies & Services,Other Grants (Expenses),Engaging Communities Solutions CIC,21/07/2023,"25,000.00"
Adult Social Care,Community Social Work & Adult Safeguarding,Supplies & Services,Other Grants (Expenses),POHWER,21/07/2023,"2,500.00"
Adult Social Care,Community Social Work & Adult Safeguarding,Supplies & Services,Health & Safety Expenses,REDACTED PERSONAL INFORMATION,03/07/2023,542.76
Adult Social Care,Community Social Work & Adult Safeguarding,Supplies & Services,Medical Consultants Fees,JLS Medical Services Ltd,28/07/2023,"1,020.00"
Adult Social Care,Community Social Work (Principal Social Worker),Transfer Payments,Block Voids,First Choice Housing Association LTD,19/07/2023,"1,402.37"
Adult Social Care,Community Social Work (Principal Social Worker),Supplies & Services,Other Grants (Expenses),NHS Shropshire Telford & Wrekin ICB QOC Receivables N209,21/07/2023,"1,807,511.00"
Adult Social Care,Community Social Work (Principal Social Worker),Supplies & Services,Other Grants (Expenses),NHS Shropshire Telford & Wrekin ICB QOC Receivables N209,21/07/2023,"-103,500.00"
Adult Social Care,Community Social Work (Principal Social Worker),Supplies & Services,Other Grants (Expenses),NHS Shropshire Telford & Wrekin ICB QOC Receivables N209,21/07/2023,"2,364,258.00"
Adult Social Care,Community Social Work (Principal Social Worker),Supplies & Services,Mobile Phones,EE LTD EQUIPMENT ,14/07/2023,136.00
Adult Social Care,My Options,Supplies & Services,Training Costs - Participants Recharged,SHROPSHIRE COUNCIL ,28/07/2023,124.00
Adult Social Care,My Options,Premises-Related Expenditure,Clean Mats & Toilet Requisites,PHS GROUP,19/07/2023,125.22
Adult Social Care,My Options,Supplies & Services,Laundry & Towel Hire,PHS GROUP,17/07/2023,172.89
Adult Social Care,My Options,Premises-Related Expenditure,Hire Of Rooms,Dawley Baptist Church,17/07/2023,210.00
Adult Social Care,My Options,Employees,Agency Supply Costs,Nurse Plus and Carer Plus Limited,05/07/2023,718.99
Adult Social Care,My Options,Employees,Agency Supply Costs,Nurse Plus and Carer Plus Limited,25/07/2023,995.63
Adult Social Care,My Options,Employees,Agency Supply Costs,Safehands Recruitment,05/07/2023,"4,959.90"
Adult Social Care,My Options,Employees,Agency Supply Costs,Safehands Recruitment,25/07/2023,"4,060.41"
Adult Social Care,My Options,Employees,Agency Supply Costs,Safehands Recruitment,25/07/2023,"7,139.43"
Adult Social Care,My Options,Premises-Related Expenditure,Clean Mats & Toilet Requisites,BERWICK CARE EQUIPMENT LTD,05/07/2023,-286.50
Adult Social Care,My Options,Premises-Related Expenditure,Clean Mats & Toilet Requisites,BERWICK CARE EQUIPMENT LTD,05/07/2023,238.00
Adult Social Care,My Options,Premises-Related Expenditure,Clean Mats & Toilet Requisites,BERWICK CARE EQUIPMENT LTD,05/07/2023,317.88
Adult Social Care,My Options,Premises-Related Expenditure,Clean Mats & Toilet Requisites,BERWICK CARE EQUIPMENT LTD,25/07/2023,391.69
Adult Social Care,My Options,Premises-Related Expenditure,Clean Mats & Toilet Requisites,BERWICK CARE EQUIPMENT LTD,25/07/2023,214.90
Adult Social Care,My Options,Supplies & Services,Equipment - Hire,CARTWRIGHTS WASTE DISPOSAL SERV LTD,20/07/2023,430.50
Adult Social Care,My Options,Employees,Agency Supply Costs,Acton Banks Limited,25/07/2023,159.75
Adult Social Care,My Options,Employees,Agency Supply Costs,Acton Banks Limited,25/07/2023,311.35
Adult Social Care,My Options,Employees,Agency Supply Costs,Acton Banks Limited,25/07/2023,323.33
Adult Social Care,My Options,Employees,Agency Supply Costs,Acton Banks Limited,25/07/2023,249.56
Adult Social Care,My Options,Employees,Agency Supply Costs,Acton Banks Limited,25/07/2023,255.55
Adult Social Care,My Options,Employees,Agency Supply Costs,Acton Banks Limited,25/07/2023,167.65
Adult Social Care,My Options,Employees,Agency Supply Costs,Acton Banks Limited,25/07/2023,179.63
Adult Social Care,My Options,Employees,Agency Supply Costs,Acton Banks Limited,25/07/2023,167.65
Adult Social Care,My Options,Employees,Agency Supply Costs,Acton Banks Limited,25/07/2023,311.35
Adult Social Care,My Options,Employees,Agency Supply Costs,Acton Banks Limited,25/07/2023,263.45
Adult Social Care,My Options,Employees,Agency Supply Costs,Acton Banks Limited,25/07/2023,167.65
Adult Social Care,My Options,Employees,Agency Supply Costs,Acton Banks Limited,25/07/2023,383.20
Adult Social Care,My Options,Employees,Agency Supply Costs,Acton Banks Limited,25/07/2023,171.72
Adult Social Care,My Options,Employees,Agency Supply Costs,Acton Banks Limited,25/07/2023,223.45
Adult Social Care,My Options,Employees,Agency Supply Costs,Acton Banks Limited,25/07/2023,167.65
Adult Social Care,My Options,Employees,Agency Supply Costs,Acton Banks Limited,25/07/2023,239.50
Adult Social Care,My Options,Employees,Agency Supply Costs,Acton Banks Limited,25/07/2023,171.72
Adult Social Care,My Options,Employees,Agency Supply Costs,Acton Banks Limited,25/07/2023,159.75
Adult Social Care,My Options,Employees,Agency Supply Costs,Acton Banks Limited,25/07/2023,171.72
Adult Social Care,My Options,Employees,Agency Supply Costs,Acton Banks Limited,25/07/2023,323.33
Adult Social Care,My Options,Employees,Agency Supply Costs,Acton Banks Limited,25/07/2023,323.33
Adult Social Care,My Options,Employees,Agency Supply Costs,Acton Banks Limited,25/07/2023,323.33
Adult Social Care,My Options,Employees,Agency Supply Costs,Acton Banks Limited,25/07/2023,179.63
Adult Social Care,My Options,Employees,Agency Supply Costs,Acton Banks Limited,25/07/2023,183.70
Adult Social Care,My Options,Employees,Agency Supply Costs,Acton Banks Limited,25/07/2023,319.25
Adult Social Care,My Options,Employees,Agency Supply Costs,Acton Banks Limited,25/07/2023,323.33
Adult Social Care,My Options,Employees,Agency Supply Costs,Acton Banks Limited,25/07/2023,167.65
Adult Social Care,My Options,Employees,Agency Supply Costs,Acton Banks Limited,25/07/2023,243.57
Adult Social Care,My Options,Employees,Agency Supply Costs,Acton Banks Limited,25/07/2023,167.65
Adult Social Care,My Options,Employees,Agency Supply Costs,Acton Banks Limited,25/07/2023,239.50
Adult Social Care,My Options,Employees,Agency Supply Costs,Acton Banks Limited,25/07/2023,331.23
Adult Social Care,My Options,Employees,Agency Supply Costs,Acton Banks Limited,25/07/2023,331.23
Adult Social Care,My Options,Employees,Agency Supply Costs,Acton Banks Limited,25/07/2023,311.35
Adult Social Care,My Options,Employees,Agency Supply Costs,Nurse Plus and Carer Plus Limited,05/07/2023,"6,037.60"
Adult Social Care,My Options,Employees,Agency Supply Costs,Nurse Plus and Carer Plus Limited,05/07/2023,509.80
Adult Social Care,My Options,Employees,Agency Supply Costs,Nurse Plus and Carer Plus Limited,05/07/2023,139.65
Adult Social Care,My Options,Employees,Agency Supply Costs,Nurse Plus and Carer Plus Limited,25/07/2023,"2,277.60"
Adult Social Care,My Options,Employees,Agency Supply Costs,Nurse Plus and Carer Plus Limited,25/07/2023,634.50
Adult Social Care,My Options,Employees,Agency Supply Costs,Nurse Plus and Carer Plus Limited,25/07/2023,"2,285.50"
Adult Social Care,My Options,Employees,Agency Supply Costs,Nurse Plus and Carer Plus Limited,25/07/2023,419.00
Adult Social Care,My Options,Employees,Agency Supply Costs,Nurse Plus and Carer Plus Limited,25/07/2023,209.50
Adult Social Care,My Options,Employees,Agency Supply Costs,Safehands Recruitment,05/07/2023,574.20
Adult Social Care,My Options,Employees,Agency Supply Costs,Safehands Recruitment,05/07/2023,"3,111.46"
Adult Social Care,My Options,Employees,Agency Supply Costs,Safehands Recruitment,05/07/2023,976.25
Adult Social Care,My Options,Employees,Agency Supply Costs,Safehands Recruitment,05/07/2023,497.20
Adult Social Care,My Options,Employees,Agency Supply Costs,Safehands Recruitment,05/07/2023,438.55
Adult Social Care,My Options,Employees,Agency Supply Costs,Safehands Recruitment,05/07/2023,423.50
Adult Social Care,My Options,Employees,Agency Supply Costs,Safehands Recruitment,25/07/2023,825.20
Adult Social Care,My Options,Employees,Agency Supply Costs,Safehands Recruitment,25/07/2023,909.75
Adult Social Care,My Options,Employees,Agency Supply Costs,Safehands Recruitment,25/07/2023,554.40
Adult Social Care,My Options,Employees,Agency Supply Costs,Safehands Recruitment,25/07/2023,"2,866.56"
Adult Social Care,My Options,Employees,Agency Supply Costs,Safehands Recruitment,25/07/2023,878.20
Adult Social Care,My Options,Employees,Agency Supply Costs,Safehands Recruitment,25/07/2023,"1,650.33"
Adult Social Care,My Options,Employees,Agency Supply Costs,Safehands Recruitment,25/07/2023,396.00
Adult Social Care,My Options,Employees,Agency Supply Costs,Safehands Recruitment,25/07/2023,423.50
Adult Social Care,My Options,Employees,Agency Supply Costs,Safehands Recruitment,25/07/2023,566.25
Adult Social Care,My Options,Employees,Agency Supply Costs,Safehands Recruitment,25/07/2023,402.88
Adult Social Care,My Options,Employees,Agency Supply Costs,Safehands Recruitment,25/07/2023,277.20
Adult Social Care,My Options,Employees,Agency Supply Costs,Safehands Recruitment,25/07/2023,522.50
Adult Social Care,My Options,Supplies & Services,Mobile Phones,EE LTD EQUIPMENT ,14/07/2023,136.00
Adult Social Care,My Options,Supplies & Services,Mobile Phones,EE LTD EQUIPMENT ,27/07/2023,136.00
Adult Social Care,My Options,Employees,Agency Supply Costs,Safehands Recruitment,25/07/2023,"9,892.77"
Adult Social Care,My Options,Supplies & Services,Adult Flexi / Day Care,REDACTED PERSONAL INFORMATION,14/07/2023,"1,212.54"
Adult Social Care,My Options,Supplies & Services,Respite Care,REDACTED PERSONAL INFORMATION,14/07/2023,577.40
Adult Social Care,My Options,Supplies & Services,Other Travel,REDACTED PERSONAL INFORMATION,14/07/2023,378.00
Adult Social Care,My Options,Supplies & Services,Respite Care,REDACTED PERSONAL INFORMATION,27/07/2023,"1,030.40"
Adult Social Care,My Options,Supplies & Services,Respite Care,REDACTED PERSONAL INFORMATION,27/07/2023,175.35
Adult Social Care,My Options,Supplies & Services,Respite Care,REDACTED PERSONAL INFORMATION,27/07/2023,856.80
Adult Social Care,My Options,Employees,Agency Supply Costs,Nurse Plus and Carer Plus Limited,05/07/2023,"1,793.70"
Adult Social Care,My Options,Employees,Agency Supply Costs,Nurse Plus and Carer Plus Limited,25/07/2023,"1,206.99"
Adult Social Care,My Options,Employees,Agency Supply Costs,Nurse Plus and Carer Plus Limited,25/07/2023,"1,137.16"
Adult Social Care,My Options,Employees,Agency Supply Costs,Safehands Recruitment,05/07/2023,"9,484.50"
Adult Social Care,My Options,Employees,Agency Supply Costs,Safehands Recruitment,05/07/2023,-275.00
Adult Social Care,My Options,Employees,Agency Supply Costs,Safehands Recruitment,05/07/2023,130.90
Adult Social Care,My Options,Employees,Agency Supply Costs,Safehands Recruitment,25/07/2023,"7,737.95"
Adult Social Care,My Options,Employees,Agency Supply Costs,Safehands Recruitment,25/07/2023,701.70
Adult Social Care,My Options,Supplies & Services,Equipment - Purchase,TELFORD TIMBER SUPPLIES,18/07/2023,112.00
Adult Social Care,My Options,Supplies & Services,Equipment - Purchase,TELFORD TIMBER SUPPLIES,18/07/2023,112.00
Adult Social Care,My Options,Supplies & Services,Equipment - Repair,WF Education Group Limited,21/07/2023,266.40
Adult Social Care,My Options,Capital Expenditure,Payments to Contractor,GRANVILLE CONSTRUCTION & MAINTENANCE LTD,27/07/2023,304.91
Adult Social Care,My Options,Capital Expenditure,Payments to Contractor,REDACTED PERSONAL INFORMATION,04/07/2023,440.00
Adult Social Care,My Options,Capital Expenditure,Payments to Contractor,PAVE AWAYS LTD,20/07/2023,"183,362.99"
Adult Social Care,My Options,Capital Expenditure,Payments to Contractor,Security Wise Ltd,31/07/2023,230.00
Adult Social Care,My Options,Capital Expenditure,Payments to Contractor,Security Wise Ltd,31/07/2023,130.00
Adult Social Care,Prevention & Independence - Older Adults & Disability,Supplies & Services,Mobile Phones,EE LTD EQUIPMENT ,14/07/2023,136.00
Adult Social Care,Prevention & Independence - Older Adults & Disability,Supplies & Services,Mobile Phones,EE LTD EQUIPMENT ,14/07/2023,136.00
Adult Social Care,Prevention & Independence - Older Adults & Disability,Supplies & Services,Equipment - Hire,1st Call Mobility,05/07/2023,"3,565.00"
Adult Social Care,Prevention & Independence - Older Adults & Disability,Supplies & Services,Equipment - Hire,1st Call Mobility,05/07/2023,"3,220.00"
Adult Social Care,Prevention & Independence - Older Adults & Disability,Supplies & Services,Equipment - Hire,1st Call Mobility,05/07/2023,"3,565.00"
Adult Social Care,Prevention & Independence - Older Adults & Disability,Supplies & Services,Equipment - Hire,1st Call Mobility,05/07/2023,"1,265.00"
Adult Social Care,Prevention & Independence - Older Adults & Disability,Third Party Payments,Other Care Purchasing,Wrekin Clearances,24/07/2023,550.00
Adult Social Care,Prevention & Independence - Older Adults & Disability,Transport-Related Expenditure,Taxi Costs,Telford and Wrekin Community Enterprise LTD,05/07/2023,144.00
Adult Social Care,Prevention & Independence - Older Adults & Disability,Transport-Related Expenditure,Taxi Costs,Telford and Wrekin Community Enterprise LTD,24/07/2023,344.00
Adult Social Care,Prevention & Independence - Older Adults & Disability,Transport-Related Expenditure,Taxi Costs,Telford Taxi Hire Limited,24/07/2023,900.00
Adult Social Care,Prevention & Independence - Older Adults & Disability,Transport-Related Expenditure,Taxi Costs,Telford Taxi Hire Limited,24/07/2023,800.00
Adult Social Care,Prevention & Independence - Older Adults & Disability,Supplies & Services,Aids & Appliances,Easylink,18/07/2023,272.80
Adult Social Care,Prevention & Independence - Older Adults & Disability,Supplies & Services,Aids & Appliances,Easylink,28/07/2023,169.90
Adult Social Care,Prevention & Independence - Older Adults & Disability,Supplies & Services,Aids & Appliances,Easylink,18/07/2023,171.60
Adult Social Care,Prevention & Independence - Older Adults & Disability,Supplies & Services,Aids & Appliances,Possum Ltd,17/07/2023,895.00
Adult Social Care,Prevention & Independence - Older Adults & Disability,Supplies & Services,Aids & Appliances,Possum Ltd,26/07/2023,895.00
Adult Social Care,Prevention & Independence - Older Adults & Disability,Supplies & Services,Aids & Appliances,SARABEC LIMITED,26/07/2023,574.20
Adult Social Care,Prevention & Independence - Older Adults & Disability,Supplies & Services,Aids & Appliances,SARABEC LIMITED,26/07/2023,574.20
Adult Social Care,Prevention & Independence - Older Adults & Disability,Supplies & Services,Aids & Appliances,SARABEC LIMITED,28/07/2023,"1,087.20"
Adult Social Care,Prevention & Independence - Older Adults & Disability,Supplies & Services,Aids & Appliances,Accora,27/07/2023,"3,395.00"
Adult Social Care,Prevention & Independence - Older Adults & Disability,Supplies & Services,Aids & Appliances,Accora,27/07/2023,295.00
Adult Social Care,Prevention & Independence - Older Adults & Disability,Supplies & Services,Aids & Appliances,BERWICK CARE EQUIPMENT LTD,05/07/2023,"1,680.00"
Adult Social Care,Prevention & Independence - Older Adults & Disability,Supplies & Services,Aids & Appliances,Mobility Smart Limited,26/07/2023,349.95
Adult Social Care,Prevention & Independence - Older Adults & Disability,Supplies & Services,Aids & Appliances,OSPREY HEALTHCARE LTD,27/07/2023,804.20
Adult Social Care,Prevention & Independence - Older Adults & Disability,Supplies & Services,Aids & Appliances,PRISM MEDICAL WESTHOLME DIVISION,18/07/2023,912.88
Adult Social Care,Prevention & Independence - Older Adults & Disability,Supplies & Services,Aids & Appliances,PRISM MEDICAL WESTHOLME DIVISION,27/07/2023,134.93
Adult Social Care,Prevention & Independence - Older Adults & Disability,Supplies & Services,Aids & Appliances,PRISM MEDICAL WESTHOLME DIVISION,27/07/2023,152.60
Adult Social Care,Prevention & Independence - Older Adults & Disability,Supplies & Services,Carriage/Delivery Charge,PRISM MEDICAL WESTHOLME DIVISION,27/07/2023,117.15
Adult Social Care,Prevention & Independence - Older Adults & Disability,Supplies & Services,Aids & Appliances,PRISM MEDICAL WESTHOLME DIVISION,13/07/2023,183.66
Adult Social Care,Prevention & Independence - Older Adults & Disability,Supplies & Services,Equipment - Repair,STANNAH LIFT SERVICES LTD,07/07/2023,248.67
Adult Social Care,Prevention & Independence - Older Adults & Disability,Supplies & Services,Equipment - Repair,STANNAH LIFT SERVICES LTD,07/07/2023,"5,724.25"
Adult Social Care,Prevention & Independence - Older Adults & Disability,Supplies & Services,Equipment - Repair,STANNAH LIFT SERVICES LTD,24/07/2023,"1,000.75"
Adult Social Care,Prevention & Independence - Older Adults & Disability,Supplies & Services,Equipment - Repair,STANNAH LIFT SERVICES LTD,24/07/2023,"5,177.25"
Adult Social Care,Prevention & Independence - Older Adults & Disability,Supplies & Services,Adaptations,WB Building Services Limited,17/07/2023,983.12
Adult Social Care,Prevention & Independence - Older Adults & Disability,Supplies & Services,Legal Expenses,SUNDRY SUPPLIER,11/07/2023,"1,341.70"
Adult Social Care,Prevention & Independence - Older Adults & Disability,Supplies & Services,Aids & Appliances,SHROPSHIRE COMMUNITY HEALTH NHS TRUST,20/07/2023,"18,904.98"
Adult Social Care,Prevention & Independence - Older Adults & Disability,Supplies & Services,Other Grants (Expenses),Doro Care Uk,12/07/2023,"5,217.17"
Adult Social Care,Prevention & Independence - Older Adults & Disability,Supplies & Services,Service Contracts,Doro Care Uk,12/07/2023,"5,217.17"
Adult Social Care,Prevention & Independence - Older Adults & Disability,Supplies & Services,Service Contracts,Doro Care Uk,12/07/2023,"3,815.12"
Adult Social Care,Prevention & Independence - Older Adults & Disability,Supplies & Services,Grants To Voluntary Organis,Doro Care Uk,12/07/2023,"5,217.17"
Adult Social Care,Prevention & Independence - Older Adults & Disability,Supplies & Services,Grants To Voluntary Organis,Doro Care Uk,12/07/2023,"3,815.12"
Adult Social Care,Prevention & Independence - Older Adults & Disability,Supplies & Services,Grants To Voluntary Organis,Doro Care Uk,12/07/2023,"2,331.86"
Adult Social Care,Prevention & Independence - Older Adults & Disability,Supplies & Services,Equipment - Purchase,Doro Care Uk,12/07/2023,"2,331.86"
Adult Social Care,Prevention & Independence - Older Adults & Disability,Supplies & Services,Grants To Voluntary Organis,Doro Care Uk,03/07/2023,"2,331.86"
Adult Social Care,Prevention & Independence - Older Adults & Disability,Supplies & Services,Grants To Voluntary Organis,Doro Care Uk,03/07/2023,"3,815.12"
Adult Social Care,Prevention & Independence - Older Adults & Disability,Supplies & Services,Grants To Voluntary Organis,Doro Care Uk,03/07/2023,"5,217.17"
Children�s Safeguarding & Family Support,Child Protection & Family Support,Supplies & Services,Mobile Phones,EE LTD EQUIPMENT ,14/07/2023,136.00
Children�s Safeguarding & Family Support,Child Protection & Family Support,Supplies & Services,Mobile Phones,EE LTD EQUIPMENT ,14/07/2023,136.00
Children�s Safeguarding & Family Support,Child Protection & Family Support,Employees,Staff Training,D HALL TRUST,26/07/2023,110.00
Children�s Safeguarding & Family Support,Child Protection & Family Support,Supplies & Services,Books,K M Associates Ltd,26/07/2023,308.33
Children�s Safeguarding & Family Support,Child Protection & Family Support,Employees,Training Expenses,Adoptionplus Ltd,24/07/2023,161.24
Children�s Safeguarding & Family Support,Child Protection & Family Support,Supplies & Services,Comp Software (Purch / Hire),PHOENIX SOFTWARE LTD,26/07/2023,101.52
Children�s Safeguarding & Family Support,Child Protection & Family Support,Supplies & Services,Mobile Phones,EE LTD EQUIPMENT ,26/07/2023,142.00
Children�s Safeguarding & Family Support,Family Connect & Childrens Centres,Supplies & Services,Comp Hardware (Purch / Hire),CCS MEDIA LIMITED,27/07/2023,424.00
Children�s Safeguarding & Family Support,Family Connect & Childrens Centres,Premises-Related Expenditure,R&M -Building Other,ABRAHAM DARBY ACADEMY ,28/07/2023,360.00
Children�s Safeguarding & Family Support,Family Connect & Childrens Centres,Premises-Related Expenditure,R&M -Building Other,GRANVILLE CONSTRUCTION & MAINTENANCE LTD,15/07/2023,"1,086.80"
Children�s Safeguarding & Family Support,Family Connect & Childrens Centres,Premises-Related Expenditure,R&M -Building Other,GRANVILLE CONSTRUCTION & MAINTENANCE LTD,15/07/2023,136.25
Children�s Safeguarding & Family Support,Family Connect & Childrens Centres,Premises-Related Expenditure,R&M -Building Other,JCE & SONS LTD,03/07/2023,164.22
Children�s Safeguarding & Family Support,Family Connect & Childrens Centres,Premises-Related Expenditure,R&M -Building Other,Pumpforce Ltd,28/07/2023,195.18
Children�s Safeguarding & Family Support,Family Connect & Childrens Centres,Supplies & Services,Other Grants (Expenses),CHILDCARE SOS,15/07/2023,108.30
Children�s Safeguarding & Family Support,Family Connect & Childrens Centres,Supplies & Services,Bulk Refuse Contracts Hire,GRANVILLE CONSTRUCTION & MAINTENANCE LTD,03/07/2023,107.00
Children�s Safeguarding & Family Support,Family Connect & Childrens Centres,Supplies & Services,Administrative/Office Supplies,Kings of the Road,03/07/2023,300.00
Children�s Safeguarding & Family Support,Family Connect & Childrens Centres,Supplies & Services,Other Expenses,PPL PRS Ltd,24/07/2023,239.69
Children�s Safeguarding & Family Support,Family Connect & Childrens Centres,Supplies & Services,Other Expenses,PPL PRS Ltd,28/07/2023,239.69
Children�s Safeguarding & Family Support,Family Connect & Childrens Centres,Premises-Related Expenditure,Hire Of Rooms,HOLLINSWOOD & RANDLAY PARISH COUNCIL,18/07/2023,120.00
Children�s Safeguarding & Family Support,Family Connect & Childrens Centres,Supplies & Services,Furniture - Purchase,BACK CARE SOLUTIONS LTD,24/07/2023,476.00
Children�s Safeguarding & Family Support,Family Connect & Childrens Centres,Supplies & Services,Other Grants (Expenses),CHILDCARE SOS,15/07/2023,108.30
Children�s Safeguarding & Family Support,Family Connect & Childrens Centres,Supplies & Services,Other Grants (Expenses),CHILDCARE SOS,15/07/2023,108.30
Children�s Safeguarding & Family Support,Family Connect & Childrens Centres,Supplies & Services,Other Services,GRANVILLE CONSTRUCTION & MAINTENANCE LTD,20/07/2023,"1,750.00"
Children�s Safeguarding & Family Support,Family Connect & Childrens Centres,Supplies & Services,Bulk Refuse Contracts Hire,GREEN SKIPS LTD,04/07/2023,200.00
Children�s Safeguarding & Family Support,Family Connect & Childrens Centres,Employees,Staff Training,TRIPLE P UK LIMITED,07/07/2023,"2,185.00"
Children�s Safeguarding & Family Support,Family Connect & Childrens Centres,Employees,Staff Training,TRIPLE P UK LIMITED,03/07/2023,"2,185.00"
Children�s Safeguarding & Family Support,Family Connect & Childrens Centres,Supplies & Services,Equipment - Purchase,Challenging Perceptions CIC,25/07/2023,"4,396.46"
Children�s Safeguarding & Family Support,Family Connect & Childrens Centres,Supplies & Services,Other Services,HOME-START TELFORD & WREKIN,20/07/2023,"3,000.00"
Children�s Safeguarding & Family Support,Family Connect & Childrens Centres,Supplies & Services,Other Services,TELFORD & WREKIN CITIZENS ADVICE BUREAU,03/07/2023,"3,750.00"
Children�s Safeguarding & Family Support,"Family Placements, Children in Care, Leaving Care & Emergency Duty Team",Supplies & Services,Other Services,NHS Shropshire Telford & Wrekin ICB QOC Receivables N209,28/07/2023,"40,000.00"
Children�s Safeguarding & Family Support,"Family Placements, Children in Care, Leaving Care & Emergency Duty Team",Supplies & Services,Other Services,NHS Shropshire Telford & Wrekin ICB QOC Receivables N209,28/07/2023,"40,000.00"
Children�s Safeguarding & Family Support,"Family Placements, Children in Care, Leaving Care & Emergency Duty Team",Supplies & Services,Other Services,NHS Shropshire Telford & Wrekin ICB QOC Receivables N209,28/07/2023,"40,000.00"
Children�s Safeguarding & Family Support,"Family Placements, Children in Care, Leaving Care & Emergency Duty Team",Supplies & Services,Equipment - Repair,ARJO UK LTD,05/07/2023,301.63
Children�s Safeguarding & Family Support,"Family Placements, Children in Care, Leaving Care & Emergency Duty Team",Supplies & Services,Equipment - Repair,ARJO UK LTD,05/07/2023,230.26
Children�s Safeguarding & Family Support,"Family Placements, Children in Care, Leaving Care & Emergency Duty Team",Supplies & Services,Aids & Appliances,Jiraffe,20/07/2023,"2,288.00"
Children�s Safeguarding & Family Support,"Family Placements, Children in Care, Leaving Care & Emergency Duty Team",Supplies & Services,Aids & Appliances,MIDSHIRES MOBILITY GROUP,11/07/2023,176.50
Children�s Safeguarding & Family Support,"Family Placements, Children in Care, Leaving Care & Emergency Duty Team",Supplies & Services,Aids & Appliances,MIDSHIRES MOBILITY GROUP,13/07/2023,222.50
Children�s Safeguarding & Family Support,"Family Placements, Children in Care, Leaving Care & Emergency Duty Team",Supplies & Services,Equipment - Repair,STANNAH LIFT SERVICES LTD,07/07/2023,158.25
Children�s Safeguarding & Family Support,"Family Placements, Children in Care, Leaving Care & Emergency Duty Team",Supplies & Services,Equipment - Repair,STANNAH LIFT SERVICES LTD,24/07/2023,338.50
Children�s Safeguarding & Family Support,"Family Placements, Children in Care, Leaving Care & Emergency Duty Team",Supplies & Services,Equipment - Repair,STANNAH LIFT SERVICES LTD,24/07/2023,221.00
Children�s Safeguarding & Family Support,"Family Placements, Children in Care, Leaving Care & Emergency Duty Team",Supplies & Services,Other Services,SHROPSHIRE COMMUNITY HEALTH NHS TRUST,28/07/2023,"5,634.43"
Children�s Safeguarding & Family Support,"Family Placements, Children in Care, Leaving Care & Emergency Duty Team",Premises-Related Expenditure,General Rents,REDACTED PERSONAL INFORMATION,11/07/2023,"6,175.00"
Children�s Safeguarding & Family Support,"Family Placements, Children in Care, Leaving Care & Emergency Duty Team",Supplies & Services,Mobile Phones,EE LTD EQUIPMENT ,14/07/2023,136.00
Children�s Safeguarding & Family Support,"Family Placements, Children in Care, Leaving Care & Emergency Duty Team",Employees,Staff Training,Coram Academy Limited,05/07/2023,-230.00
Children�s Safeguarding & Family Support,"Family Placements, Children in Care, Leaving Care & Emergency Duty Team",Employees,Recruitment Advertising,NEWPORT & DISTRICT AGRICULTURAL SOCIETY,25/07/2023,206.66
Children�s Safeguarding & Family Support,"Family Placements, Children in Care, Leaving Care & Emergency Duty Team",Employees,Staff Training,SHROPSHIRE COUNCIL ,26/07/2023,800.00
Children�s Safeguarding & Family Support,"Family Placements, Children in Care, Leaving Care & Emergency Duty Team",Premises-Related Expenditure,Hire Of Rooms,KETLEY PARISH COUNCIL,25/07/2023,160.00
Children�s Safeguarding & Family Support,"Family Placements, Children in Care, Leaving Care & Emergency Duty Team",Premises-Related Expenditure,Hire Of Rooms,KETLEY PARISH COUNCIL,25/07/2023,283.50
Children�s Safeguarding & Family Support,"Family Placements, Children in Care, Leaving Care & Emergency Duty Team",Supplies & Services,Advertising,Bauer Radio Ltd,25/07/2023,894.52
Children�s Safeguarding & Family Support,"Family Placements, Children in Care, Leaving Care & Emergency Duty Team",Supplies & Services,Advertising,Newsquest Media Group,18/07/2023,"2,800.00"
Children�s Safeguarding & Family Support,"Family Placements, Children in Care, Leaving Care & Emergency Duty Team",Supplies & Services,Advertising,Newsquest Media Group,25/07/2023,"2,800.00"
Children�s Safeguarding & Family Support,"Family Placements, Children in Care, Leaving Care & Emergency Duty Team",Third Party Payments,Childminders,CHILDCARE SOS,25/07/2023,129.38
Children�s Safeguarding & Family Support,"Family Placements, Children in Care, Leaving Care & Emergency Duty Team",Premises-Related Expenditure,Hire Of Rooms,Dawley Baptist Church,25/07/2023,237.50
Children�s Safeguarding & Family Support,Safeguarding Advisory,Supplies & Services,Graphic Design Charges,Creative Connection Animation Studio,17/07/2023,270.00
Children�s Safeguarding & Family Support,Safeguarding Advisory,Supplies & Services,Other Services,KB Consulting & Review Ltd,25/07/2023,"2,400.00"
Children's Safeguarding,Child Protection & Family Support,contribution to provision,legal,HM Courts and Tribunal service,17/07/2023," 12,934.00 "
"Communities, Customer & Commercial Services",Community Services,Supplies & Services,Grants To Voluntary Organis,Newport Shropshire Foodbank ,10/07/2023,"6,500.00"
"Communities, Customer & Commercial Services",Community Services,Supplies & Services,Grants To Voluntary Organis,The Methodist Church Dawley,10/07/2023,"3,250.00"
"Communities, Customer & Commercial Services",Community Services,Supplies & Services,Web Services,E4 Enviroment Ltd,10/07/2023,"4,900.00"
"Communities, Customer & Commercial Services",Community Services,Supplies & Services,Equipment - Purchase,Shropshire Wildlife Trading Company Ltd,18/07/2023,160.00
"Communities, Customer & Commercial Services",Community Services,Supplies & Services,Grants To Voluntary Organis,BOURNVILLE VILLAGE TRUST,04/07/2023,250.00
"Communities, Customer & Commercial Services",Community Services,Supplies & Services,Grants To Voluntary Organis,CHARLTON SCHOOL FUND,11/07/2023,500.00
"Communities, Customer & Commercial Services",Community Services,Supplies & Services,Grants To Voluntary Organis,Coalport Village Hall,19/07/2023,300.00
"Communities, Customer & Commercial Services",Community Services,Supplies & Services,Grants To Voluntary Organis,DONNINGTON PARTNERSHIP,31/07/2023,"1,000.00"
"Communities, Customer & Commercial Services",Community Services,Supplies & Services,Grants To Voluntary Organis,Great Dawley Town Council,21/07/2023,500.00
"Communities, Customer & Commercial Services",Community Services,Supplies & Services,Grants To Voluntary Organis,LAWLEY & OVERDALE PARISH COUNCIL,10/07/2023,500.00
"Communities, Customer & Commercial Services",Community Services,Supplies & Services,Grants To Voluntary Organis,PCC WROCKWARDINE WOOD RESTORATION,10/07/2023,113.00
"Communities, Customer & Commercial Services",Community Services,Supplies & Services,Grants To Voluntary Organis,Severnside Roofing Specialists Limited,10/07/2023,"3,350.00"
"Communities, Customer & Commercial Services",Community Services,Supplies & Services,Grants To Voluntary Organis,STIRCHLEY & BROOKSIDE PARISH COUNCIL,04/07/2023,250.00
"Communities, Customer & Commercial Services",Community Services,Supplies & Services,Grants To Voluntary Organis,Sutton Hill Community Trust,05/07/2023,"8,650.00"
"Communities, Customer & Commercial Services",Community Services,Supplies & Services,Grants To Voluntary Organis,Great Dawley Town Council,20/07/2023,"6,281.00"
"Communities, Customer & Commercial Services",Community Services,Premises-Related Expenditure,Electricity,West Mercia Energy,24/07/2023,976.56
"Communities, Customer & Commercial Services",Community Services,Supplies & Services,Other Services,Dynamic Energy Solutions Holdings Limited,18/07/2023,857.00
"Communities, Customer & Commercial Services",Community Services,Capital Expenditure,Other Capital Expenditure,Cyclone Signs,07/07/2023,297.00
"Communities, Customer & Commercial Services",Culture & Events,Supplies & Services,Promotion Expenses,Colston Media Ltd,14/07/2023,140.00
"Communities, Customer & Commercial Services",Culture & Events,Supplies & Services,Advertising,Colston Media Ltd,20/07/2023,140.00
"Communities, Customer & Commercial Services",Culture & Events,Supplies & Services,Advertising,Colston Media Ltd,27/07/2023,150.00
"Communities, Customer & Commercial Services",Culture & Events,Supplies & Services,Equipment - Purchase,COOL SERVICES LTD,06/07/2023,"1,075.33"
"Communities, Customer & Commercial Services",Culture & Events,Supplies & Services,Promotion Expenses,crowdEngage Limited,27/07/2023,321.60
"Communities, Customer & Commercial Services",Culture & Events,Supplies & Services,Service Contracts,FREELANCE BUSINESS ASSOCIATES,17/07/2023,"1,020.00"
"Communities, Customer & Commercial Services",Culture & Events,Supplies & Services,Advertising,M C MARKETING LTD,11/07/2023,"1,350.00"
"Communities, Customer & Commercial Services",Culture & Events,Supplies & Services,Promotion Expenses,PPL PRS Ltd,21/07/2023,"5,335.80"
"Communities, Customer & Commercial Services",Culture & Events,Supplies & Services,Service Contracts,PROKILL UK LIMITED,26/07/2023,159.60
"Communities, Customer & Commercial Services",Culture & Events,Supplies & Services,Promotion Expenses,Spektrix Limited,14/07/2023,"1,570.00"
"Communities, Customer & Commercial Services",Culture & Events,Supplies & Services,Advertising,WHATS ON MAGAZINES LTD,03/07/2023,275.00
"Communities, Customer & Commercial Services",Culture & Events,Supplies & Services,Artistes Fees,ARTISTES INTERNATIONAL MANAGEMENT,25/07/2023,"4,053.13"
"Communities, Customer & Commercial Services",Culture & Events,Supplies & Services,Artistes Fees,Blonde Sheep Events,10/07/2023,"3,235.70"
"Communities, Customer & Commercial Services",Culture & Events,Supplies & Services,Artistes Fees,Galaxy Dance School,18/07/2023,"2,738.19"
"Communities, Customer & Commercial Services",Culture & Events,Supplies & Services,Artistes Fees,Exchange Events Limited,19/07/2023,"2,031.25"
"Communities, Customer & Commercial Services",Culture & Events,Supplies & Services,Artistes Fees,Hadley Learning Community Academy,11/07/2023,"2,524.20"
"Communities, Customer & Commercial Services",Culture & Events,Supplies & Services,Artistes Fees,ODDSOCKS COMMUNICATIONS LTD,31/07/2023,"1,650.00"
"Communities, Customer & Commercial Services",Culture & Events,Supplies & Services,Artistes Fees,OFF THE KERB PRODUCTIONS,27/07/2023,"3,300.38"
"Communities, Customer & Commercial Services",Culture & Events,Supplies & Services,Artistes Fees,Orchard Live Limited,14/07/2023,"9,610.68"
"Communities, Customer & Commercial Services",Culture & Events,Supplies & Services,Artistes Fees,Orchard Live Limited,14/07/2023,"32,016.67"
"Communities, Customer & Commercial Services",Culture & Events,Supplies & Services,Artistes Fees,Rush Theatre Company Ltd,06/07/2023,"3,430.08"
"Communities, Customer & Commercial Services",Culture & Events,Supplies & Services,Artistes Fees,SSPA Events Limited,03/07/2023,"6,130.00"
"Communities, Customer & Commercial Services",Culture & Events,Supplies & Services,Artistes Fees,TGC Concerts Ltd,10/07/2023,"4,459.07"
"Communities, Customer & Commercial Services",Culture & Events,Supplies & Services,Artistes Fees,Ticketplan Limited,14/07/2023,449.72
"Communities, Customer & Commercial Services",Culture & Events,Supplies & Services,Audit Services,DMC STOCKTAKING,14/07/2023,160.00
"Communities, Customer & Commercial Services",Culture & Events,Supplies & Services,Wet Resale Provision,MOLSON COORS BREWING COMPANY UK LTD,14/07/2023,116.37
"Communities, Customer & Commercial Services",Culture & Events,Supplies & Services,Wet Resale Provision,MOLSON COORS BREWING COMPANY UK LTD,14/07/2023,145.73
"Communities, Customer & Commercial Services",Culture & Events,Supplies & Services,Wet Resale Provision,MOLSON COORS BREWING COMPANY UK LTD,10/07/2023,820.37
"Communities, Customer & Commercial Services",Culture & Events,Supplies & Services,Wet Resale Provision,MOLSON COORS BREWING COMPANY UK LTD,07/07/2023,116.37
"Communities, Customer & Commercial Services",Culture & Events,Supplies & Services,Wet Resale Provision,MOLSON COORS BREWING COMPANY UK LTD,07/07/2023,291.46
"Communities, Customer & Commercial Services",Culture & Events,Supplies & Services,Wet Resale Provision,MOLSON COORS BREWING COMPANY UK LTD,07/07/2023,391.74
"Communities, Customer & Commercial Services",Culture & Events,Supplies & Services,Wet Resale Provision,MOLSON COORS BREWING COMPANY UK LTD,07/07/2023,232.74
"Communities, Customer & Commercial Services",Culture & Events,Supplies & Services,Wet Resale Provision,MOLSON COORS BREWING COMPANY UK LTD,07/07/2023,291.46
"Communities, Customer & Commercial Services",Culture & Events,Supplies & Services,Wet Resale Provision,MOLSON COORS BREWING COMPANY UK LTD,07/07/2023,148.08
"Communities, Customer & Commercial Services",Culture & Events,Supplies & Services,Wet Resale Provision,MOLSON COORS BREWING COMPANY UK LTD,12/07/2023,"1,120.46"
"Communities, Customer & Commercial Services",Culture & Events,Supplies & Services,Wet Resale Provision,MOLSON COORS BREWING COMPANY UK LTD,30/07/2023,232.74
"Communities, Customer & Commercial Services",Culture & Events,Supplies & Services,Wet Resale Provision,MOLSON COORS BREWING COMPANY UK LTD,30/07/2023,261.16
"Communities, Customer & Commercial Services",Culture & Events,Supplies & Services,Wet Resale Provision,MOLSON COORS BREWING COMPANY UK LTD,30/07/2023,291.46
"Communities, Customer & Commercial Services",Culture & Events,Supplies & Services,Wet Resale Provision,MOLSON COORS BREWING COMPANY UK LTD,30/07/2023,148.08
"Communities, Customer & Commercial Services",Culture & Events,Supplies & Services,Wet Resale Provision,MOLSON COORS BREWING COMPANY UK LTD,30/07/2023,116.37
"Communities, Customer & Commercial Services",Culture & Events,Supplies & Services,Wet Resale Provision,MOLSON COORS BREWING COMPANY UK LTD,30/07/2023,145.89
"Communities, Customer & Commercial Services",Culture & Events,Supplies & Services,Wet Resale Provision,MOLSON COORS BREWING COMPANY UK LTD,30/07/2023,145.73
"Communities, Customer & Commercial Services",Culture & Events,Supplies & Services,Crockery/Hardware/Light Equip,A1 BARSTUFF LTD,05/07/2023,124.95
"Communities, Customer & Commercial Services",Culture & Events,Supplies & Services,Crockery/Hardware/Light Equip,A1 BARSTUFF LTD,05/07/2023,199.95
"Communities, Customer & Commercial Services",Culture & Events,Supplies & Services,Audit Services,DMC STOCKTAKING,14/07/2023,160.00
"Communities, Customer & Commercial Services",Culture & Events,Supplies & Services,Audit Services,DMC STOCKTAKING,03/07/2023,160.00
"Communities, Customer & Commercial Services",Culture & Events,Supplies & Services,Wet Resale Provision,MOLSON COORS BREWING COMPANY UK LTD,14/07/2023,"1,118.74"
"Communities, Customer & Commercial Services",Culture & Events,Supplies & Services,Wet Resale Provision,MOLSON COORS BREWING COMPANY UK LTD,04/07/2023,228.16
"Communities, Customer & Commercial Services",Culture & Events,Supplies & Services,Wet Resale Provision,MOLSON COORS BREWING COMPANY UK LTD,04/07/2023,115.98
"Communities, Customer & Commercial Services",Culture & Events,Supplies & Services,Wet Resale Provision,MOLSON COORS BREWING COMPANY UK LTD,04/07/2023,133.63
"Communities, Customer & Commercial Services",Culture & Events,Supplies & Services,Wet Resale Provision,MOLSON COORS BREWING COMPANY UK LTD,04/07/2023,156.74
"Communities, Customer & Commercial Services",Culture & Events,Supplies & Services,Wet Resale Provision,MOLSON COORS BREWING COMPANY UK LTD,04/07/2023,114.08
"Communities, Customer & Commercial Services",Culture & Events,Supplies & Services,Wet Resale Provision,MOLSON COORS BREWING COMPANY UK LTD,04/07/2023,275.52
"Communities, Customer & Commercial Services",Culture & Events,Supplies & Services,Wet Resale Provision,MOLSON COORS BREWING COMPANY UK LTD,04/07/2023,465.48
"Communities, Customer & Commercial Services",Culture & Events,Supplies & Services,Wet Resale Provision,MOLSON COORS BREWING COMPANY UK LTD,04/07/2023,118.31
"Communities, Customer & Commercial Services",Culture & Events,Supplies & Services,Wet Resale Provision,MOLSON COORS BREWING COMPANY UK LTD,04/07/2023,109.57
"Communities, Customer & Commercial Services",Culture & Events,Supplies & Services,Wet Resale Provision,MOLSON COORS BREWING COMPANY UK LTD,04/07/2023,161.20
"Communities, Customer & Commercial Services",Culture & Events,Supplies & Services,Wet Resale Provision,MOLSON COORS BREWING COMPANY UK LTD,04/07/2023,232.74
"Communities, Customer & Commercial Services",Culture & Events,Supplies & Services,Wet Resale Provision,MOLSON COORS BREWING COMPANY UK LTD,04/07/2023,163.96
"Communities, Customer & Commercial Services",Culture & Events,Supplies & Services,Wet Resale Provision,MOLSON COORS BREWING COMPANY UK LTD,04/07/2023,111.96
"Communities, Customer & Commercial Services",Culture & Events,Supplies & Services,Wet Resale Provision,MOLSON COORS BREWING COMPANY UK LTD,04/07/2023,181.08
"Communities, Customer & Commercial Services",Culture & Events,Supplies & Services,Wet Resale Provision,MOLSON COORS BREWING COMPANY UK LTD,04/07/2023,111.96
"Communities, Customer & Commercial Services",Culture & Events,Supplies & Services,Confectionery & Snacks,MOLSON COORS BREWING COMPANY UK LTD,04/07/2023,130.32
"Communities, Customer & Commercial Services",Culture & Events,Supplies & Services,Wet Resale Provision,MOLSON COORS BREWING COMPANY UK LTD,05/07/2023,173.97
"Communities, Customer & Commercial Services",Culture & Events,Supplies & Services,Wet Resale Provision,MOLSON COORS BREWING COMPANY UK LTD,05/07/2023,105.84
"Communities, Customer & Commercial Services",Culture & Events,Supplies & Services,Wet Resale Provision,MOLSON COORS BREWING COMPANY UK LTD,05/07/2023,109.57
"Communities, Customer & Commercial Services",Culture & Events,Supplies & Services,Wet Resale Provision,MOLSON COORS BREWING COMPANY UK LTD,05/07/2023,465.48
"Communities, Customer & Commercial Services",Culture & Events,Supplies & Services,Wet Resale Provision,MOLSON COORS BREWING COMPANY UK LTD,05/07/2023,107.35
"Communities, Customer & Commercial Services",Culture & Events,Supplies & Services,Wet Resale Provision,MOLSON COORS BREWING COMPANY UK LTD,05/07/2023,291.78
"Communities, Customer & Commercial Services",Culture & Events,Supplies & Services,Wet Resale Provision,MOLSON COORS BREWING COMPANY UK LTD,31/07/2023,"1,722.79"
"Communities, Customer & Commercial Services",Culture & Events,Supplies & Services,Wet Resale Provision,MOLSON COORS BREWING COMPANY UK LTD,27/07/2023,"1,312.96"
"Communities, Customer & Commercial Services",Culture & Events,Premises-Related Expenditure,R&M -Building Other,Churches Fire Security Ltd,04/07/2023,199.75
"Communities, Customer & Commercial Services",Culture & Events,Premises-Related Expenditure,R&M -Buildings DLO Charge,LITE Limited,06/07/2023,"6,584.00"
"Communities, Customer & Commercial Services",Culture & Events,Premises-Related Expenditure,R&M -Buildings DLO Charge,LITE Limited,06/07/2023,"6,221.50"
"Communities, Customer & Commercial Services",Culture & Events,Premises-Related Expenditure,R&M -Buildings DLO Charge,LITE Limited,06/07/2023,"5,084.00"
"Communities, Customer & Commercial Services",Culture & Events,Supplies & Services,Artistes Fees,C Cordingley Hall,18/07/2023,"1,000.00"
"Communities, Customer & Commercial Services",Culture & Events,Supplies & Services,Artistes Fees,Dogwoof Limited,31/07/2023,150.00
"Communities, Customer & Commercial Services",Culture & Events,Supplies & Services,Advertising,EMERGE DESIGN LTD,18/07/2023,102.90
"Communities, Customer & Commercial Services",Culture & Events,Supplies & Services,Equipment - Hire,Event Furniture Hire Ltd,24/07/2023,"2,805.00"
"Communities, Customer & Commercial Services",Culture & Events,Supplies & Services,Artistes Fees,Historical Promotions,26/07/2023,"2,410.00"
"Communities, Customer & Commercial Services",Culture & Events,Supplies & Services,Artistes Fees,CIRCUS SENSIBLE,28/07/2023,"3,695.00"
"Communities, Customer & Commercial Services",Culture & Events,Supplies & Services,Equipment - Hire,J.E.F Scaffolding Ltd,19/07/2023,"1,735.00"
"Communities, Customer & Commercial Services",Culture & Events,Supplies & Services,Equipment - Hire,PG Skips Ltd,05/07/2023,561.00
"Communities, Customer & Commercial Services",Culture & Events,Supplies & Services,Artistes Fees,PS PROMOTIONS LTD,31/07/2023,"1,400.00"
"Communities, Customer & Commercial Services",Culture & Events,Supplies & Services,Equipment - Hire,PUMP & PLANT SERVICES LTD,14/07/2023,700.00
"Communities, Customer & Commercial Services",Culture & Events,Supplies & Services,Equipment - Hire,PUMP & PLANT SERVICES LTD,31/07/2023,165.00
"Communities, Customer & Commercial Services",Culture & Events,Supplies & Services,Artistes Fees,PUMP & PLANT SERVICES LTD,31/07/2023,125.00
"Communities, Customer & Commercial Services",Culture & Events,Supplies & Services,Artistes Fees,Rawzone Basketball,13/07/2023,410.00
"Communities, Customer & Commercial Services",Culture & Events,Supplies & Services,Artistes Fees,Rhubarb Theatre,05/07/2023,652.00
"Communities, Customer & Commercial Services",Culture & Events,Supplies & Services,Artistes Fees,SEVERN GORGE COUNTRYSIDE TRUST,28/07/2023,750.00
"Communities, Customer & Commercial Services",Customer Relationships & Welfare Services,Supplies & Services,Legal Expenses,A Better Tomorrow C.I.C.,12/07/2023,"2,100.00"
"Communities, Customer & Commercial Services",Customer Relationships & Welfare Services,Supplies & Services,Other Grants (Expenses),Discretionary Household Support,07/07/2023,384.63
"Communities, Customer & Commercial Services",Customer Relationships & Welfare Services,Supplies & Services,Other Grants (Expenses),Discretionary Household Support,21/07/2023,621.63
"Communities, Customer & Commercial Services",Customer Relationships & Welfare Services,Supplies & Services,Other Grants (Expenses),Discretionary Household Support,31/07/2023,"1,050.20"
"Communities, Customer & Commercial Services",Customer Relationships & Welfare Services,Supplies & Services,Other Grants (Expenses),Hawk Incentives Ltd ,07/07/2023,"652,736.64"
"Communities, Customer & Commercial Services",Customer Relationships & Welfare Services,Supplies & Services,Other Grants (Expenses),Hawk Incentives Ltd ,05/07/2023,"19,744.00"
"Communities, Customer & Commercial Services",Customer Relationships & Welfare Services,Transfer Payments,Crisis Assistance Awards,PayPoint Network Limited,10/07/2023,235.00
"Communities, Customer & Commercial Services",Customer Relationships & Welfare Services,Transfer Payments,Crisis Assistance Awards,PayPoint Network Limited,03/07/2023,279.00
"Communities, Customer & Commercial Services",Customer Relationships & Welfare Services,Transfer Payments,Crisis Assistance Awards,PayPoint Network Limited,20/07/2023,180.00
"Communities, Customer & Commercial Services",Customer Relationships & Welfare Services,Transfer Payments,Crisis Assistance Awards,PayPoint Network Limited,26/07/2023,199.00
"Communities, Customer & Commercial Services",Customer Relationships & Welfare Services,Transfer Payments,Crisis Assistance Awards,PayPoint Network Limited,31/07/2023,190.00
"Communities, Customer & Commercial Services",Customer Relationships & Welfare Services,Supplies & Services,Grants To Voluntary Organis,AGE UK SHROPSHIRE TELFORD & WREKIN,11/07/2023,"29,042.00"
"Communities, Customer & Commercial Services",Customer Relationships & Welfare Services,Supplies & Services,Postages,Financial Data Management plc,19/07/2023,140.27
"Communities, Customer & Commercial Services",Customer Relationships & Welfare Services,Supplies & Services,Postages,Financial Data Management plc,07/07/2023,486.11
"Communities, Customer & Commercial Services",Customer Relationships & Welfare Services,Supplies & Services,Postages,Financial Data Management plc,19/07/2023,126.48
"Communities, Customer & Commercial Services",Customer Relationships & Welfare Services,Supplies & Services,Postages,Financial Data Management plc,19/07/2023,151.40
"Communities, Customer & Commercial Services",Customer Relationships & Welfare Services,Supplies & Services,Postages,Financial Data Management plc,19/07/2023,135.05
"Communities, Customer & Commercial Services",Customer Relationships & Welfare Services,Supplies & Services,Comp Software (Purch / Hire),NEC Software Solutions UK Ltd,27/07/2023,"11,596.02"
"Communities, Customer & Commercial Services",Customer Relationships & Welfare Services,Supplies & Services,Permit Production - Blue Badge,APS Group,05/07/2023,"1,361.71"
"Communities, Customer & Commercial Services",Customer Relationships & Welfare Services,Supplies & Services,Blue Badge Assessments,Ascenti,20/07/2023,810.00
"Communities, Customer & Commercial Services",Customer Relationships & Welfare Services,Supplies & Services,Bus Pass Production,Euclid Limited,17/07/2023,741.91
"Communities, Customer & Commercial Services",Customer Relationships & Welfare Services,Supplies & Services,Permit Production - Blue Badge,Valtech Limited,05/07/2023,663.78
"Communities, Customer & Commercial Services",Customer Relationships & Welfare Services,Transfer Payments,Crisis Assistance Awards,Kings of the Road,26/07/2023,425.00
"Communities, Customer & Commercial Services",Customer Relationships & Welfare Services,Transfer Payments,Crisis Assistance Awards,Kings of the Road,26/07/2023,275.00
"Communities, Customer & Commercial Services",Customer Relationships & Welfare Services,Employees,Professional Subs,ICCM,13/07/2023,310.00
"Communities, Customer & Commercial Services",Customer Relationships & Welfare Services,Premises-Related Expenditure,Grounds Maintenance - Cemeteries,MSM Hire Ltd,13/07/2023,"3,479.91"
"Communities, Customer & Commercial Services",Customer Relationships & Welfare Services,Premises-Related Expenditure,Grounds Maintenance - Cemeteries,MSM Hire Ltd,13/07/2023,"9,814.12"
"Communities, Customer & Commercial Services",Customer Relationships & Welfare Services,Premises-Related Expenditure,Grounds Maintenance - Cemeteries,MSM Hire Ltd,13/07/2023,"6,794.05"
"Communities, Customer & Commercial Services",Customer Relationships & Welfare Services,Premises-Related Expenditure,Grounds Maintenance - Cemeteries,MSM Hire Ltd,13/07/2023,"6,794.05"
"Communities, Customer & Commercial Services",Customer Relationships & Welfare Services,Capital Expenditure,Payments to Contractor,GROUND INVESTIGATION & PILING LTD,03/07/2023,325.00
"Communities, Customer & Commercial Services",Customer Relationships & Welfare Services,Capital Expenditure,Payments to Contractor,GROUND INVESTIGATION & PILING LTD,03/07/2023,325.00
"Communities, Customer & Commercial Services",Customer Relationships & Welfare Services,Capital Expenditure,Payments to Contractor,GROUND INVESTIGATION & PILING LTD,03/07/2023,"1,030.65"
"Communities, Customer & Commercial Services",ICT,Supplies & Services,Licences,PHOENIX SOFTWARE LTD,31/07/2023,"1,161.60"
"Communities, Customer & Commercial Services",ICT,Supplies & Services,Telecomms,Airband Community Internet,17/07/2023,295.00
"Communities, Customer & Commercial Services",ICT,Supplies & Services,Telecomms,Airband Community Internet,17/07/2023,125.00
"Communities, Customer & Commercial Services",ICT,Supplies & Services,Telecomms,Airband Community Internet,17/07/2023,300.00
"Communities, Customer & Commercial Services",ICT,Supplies & Services,Telecomms,Airband Community Internet,17/07/2023,125.00
"Communities, Customer & Commercial Services",ICT,Supplies & Services,Telecomms,Airband Community Internet,17/07/2023,300.00
"Communities, Customer & Commercial Services",ICT,Supplies & Services,Telecomms,Airband Community Internet,17/07/2023,125.00
"Communities, Customer & Commercial Services",ICT,Supplies & Services,Telecomms,Airband Community Internet,17/07/2023,295.00
"Communities, Customer & Commercial Services",ICT,Supplies & Services,Telecomms,Airband Community Internet,17/07/2023,295.00
"Communities, Customer & Commercial Services",ICT,Supplies & Services,Comp Hardware (Purch / Hire),CCS MEDIA LIMITED,04/07/2023,"3,839.00"
"Communities, Customer & Commercial Services",ICT,Supplies & Services,Telephones,BRITISH TELECOMMUNICATIONS PLC ,17/07/2023,"5,859.10"
"Communities, Customer & Commercial Services",ICT,Supplies & Services,Telephones,CAPITA IT SERVICES LIMITED,07/07/2023,"3,922.96"
"Communities, Customer & Commercial Services",ICT,Supplies & Services,Mobile Phones,CCS MEDIA LIMITED,28/07/2023,512.00
"Communities, Customer & Commercial Services",ICT,Supplies & Services,Mobile Phones,CCS MEDIA LIMITED,28/07/2023,238.50
"Communities, Customer & Commercial Services",ICT,Supplies & Services,Mobile Phones,EE LTD AIRTIME,06/07/2023,"13,509.37"
"Communities, Customer & Commercial Services",ICT,Supplies & Services,Text Messages,PROCESS FLOWS UK LTD,10/07/2023,365.40
"Communities, Customer & Commercial Services",ICT,Supplies & Services,Telephones,Trustmarque Solutions Limited,06/07/2023,"3,922.96"
"Communities, Customer & Commercial Services",ICT,Supplies & Services,Telephones,Trustmarque Solutions Limited,26/07/2023,"2,651.70"
"Communities, Customer & Commercial Services",ICT,Supplies & Services,Telephones,Trustmarque Solutions Limited,31/07/2023,"-3,922.96"
"Communities, Customer & Commercial Services",ICT,Supplies & Services,Comp Hardware (Purch / Hire),CCS MEDIA LIMITED,04/07/2023,"3,839.00"
"Communities, Customer & Commercial Services",ICT,Supplies & Services,Comp Software (Purch / Hire),Nordic Cloud Technologies,26/07/2023,114.26
"Communities, Customer & Commercial Services",ICT,Premises-Related Expenditure,R&M -Buildings DLO Charge,AVK/SEG Ltd,12/07/2023,"1,758.38"
"Communities, Customer & Commercial Services",ICT,Premises-Related Expenditure,R&M -Buildings DLO Charge,AVK/SEG Ltd,18/07/2023,793.05
"Communities, Customer & Commercial Services",ICT,Premises-Related Expenditure,R&M -Buildings DLO Charge,JCE & SONS LTD,06/07/2023,434.00
"Communities, Customer & Commercial Services",ICT,Premises-Related Expenditure,R&M -Buildings DLO Charge,PP ELECTRICAL SERVICES Ltd,06/07/2023,275.00
"Communities, Customer & Commercial Services",ICT,Premises-Related Expenditure,R&M -Buildings DLO Charge,PP ELECTRICAL SERVICES Ltd,18/07/2023,220.00
"Communities, Customer & Commercial Services",ICT,Supplies & Services,Comp Software (Purch / Hire),Nominet,06/07/2023,422.22
"Communities, Customer & Commercial Services",ICT,Supplies & Services,Comp Software (Purch / Hire),PHOENIX SOFTWARE LTD,26/07/2023,"13,682.34"
"Communities, Customer & Commercial Services",ICT,Supplies & Services,Comp Software (Purch / Hire),PHOENIX SOFTWARE LTD,20/07/2023,"2,624.12"
"Communities, Customer & Commercial Services",ICT,Supplies & Services,Comp Software (Purch / Hire),PHOENIX SOFTWARE LTD,20/07/2023,"14,378.30"
"Communities, Customer & Commercial Services",ICT,Supplies & Services,Telecomms,Trustmarque Solutions Limited,28/07/2023,"376,510.38"
"Communities, Customer & Commercial Services",ICT,Supplies & Services,Telecomms,VIRGIN MEDIA BUSINESS ,12/07/2023,"2,881.47"
"Communities, Customer & Commercial Services",ICT,Supplies & Services,Telecomms,VODAFONE LTD ,26/07/2023,"1,694.00"
"Communities, Customer & Commercial Services",ICT,Supplies & Services,Comp Hardware (Purch / Hire),CCS MEDIA LIMITED,04/07/2023,751.54
"Communities, Customer & Commercial Services",ICT,Supplies & Services,Comp Hardware (Purch / Hire),CCS MEDIA LIMITED,06/07/2023,"7,950.62"
"Communities, Customer & Commercial Services",ICT,Supplies & Services,Comp Hardware (Purch / Hire),CCS MEDIA LIMITED,27/07/2023,175.00
"Communities, Customer & Commercial Services",ICT,Supplies & Services,Equipment - Purchase,CCS MEDIA LIMITED,20/07/2023,"1,477.00"
"Communities, Customer & Commercial Services",ICT,Supplies & Services,Telephones,Ghekko LTD,26/07/2023,190.00
"Communities, Customer & Commercial Services",ICT,Supplies & Services,Telephones,Ghekko LTD,26/07/2023,360.00
"Communities, Customer & Commercial Services",ICT,Supplies & Services,Telephones,Ghekko LTD,26/07/2023,220.00
"Communities, Customer & Commercial Services",ICT,Supplies & Services,Comp Hardware (Purch / Hire),ICTn Limited,06/07/2023,703.83
"Communities, Customer & Commercial Services",ICT,Capital Expenditure,Payments to Contractor,Bramble Hub Limited,27/07/2023,"17,333.33"
"Communities, Customer & Commercial Services",ICT,Capital Expenditure,Computer Hardware,CCS MEDIA LIMITED,14/07/2023,995.98
"Communities, Customer & Commercial Services",ICT,Capital Expenditure,Computer Hardware,CCS MEDIA LIMITED,27/07/2023,205.00
"Communities, Customer & Commercial Services",ICT,Capital Expenditure,Computer Hardware,CCS MEDIA LIMITED,04/07/2023,"4,356.00"
"Communities, Customer & Commercial Services",ICT,Capital Expenditure,Computer Hardware,CCS MEDIA LIMITED,04/07/2023,"27,578.92"
"Communities, Customer & Commercial Services",ICT,Capital Expenditure,Computer Hardware,CCS MEDIA LIMITED,04/07/2023,"7,846.76"
"Communities, Customer & Commercial Services",ICT,Capital Expenditure,Computer Hardware,CCS MEDIA LIMITED,13/07/2023,"2,744.00"
"Communities, Customer & Commercial Services",ICT,Capital Expenditure,Computer Hardware,CCS MEDIA LIMITED,13/07/2023,"2,550.00"
"Communities, Customer & Commercial Services",ICT,Capital Expenditure,Computer Hardware,CCS MEDIA LIMITED,27/07/2023,"2,489.95"
"Communities, Customer & Commercial Services",ICT,Capital Expenditure,Computer Hardware,CCS MEDIA LIMITED,20/07/2023,"1,347.17"
"Communities, Customer & Commercial Services",ICT,Capital Expenditure,Computer Hardware,CCS MEDIA LIMITED,25/07/2023,"1,250.40"
"Communities, Customer & Commercial Services",ICT,Capital Expenditure,Computer Hardware,CCS MEDIA LIMITED,25/07/2023,168.00
"Communities, Customer & Commercial Services",ICT,Capital Expenditure,Computer Hardware,CCS MEDIA LIMITED,31/07/2023,205.00
"Communities, Customer & Commercial Services",ICT,Capital Expenditure,Payments to Contractor,Orange Cyberdefense UK Limited,27/07/2023,"1,855.00"
"Communities, Customer & Commercial Services",ICT,Capital Expenditure,Computer Software,PHOENIX SOFTWARE LTD,03/07/2023,"1,396.56"
"Communities, Customer & Commercial Services",ICT,Capital Expenditure,Computer Software,PHOENIX SOFTWARE LTD,03/07/2023,"4,263.84"
"Communities, Customer & Commercial Services",ICT,Capital Expenditure,Computer Software,PHOENIX SOFTWARE LTD,03/07/2023,"1,101.60"
"Communities, Customer & Commercial Services",ICT,Capital Expenditure,Computer Software,PHOENIX SOFTWARE LTD,03/07/2023,"50,424.00"
"Communities, Customer & Commercial Services",ICT,Capital Expenditure,Computer Software,PHOENIX SOFTWARE LTD,03/07/2023,"6,369.60"
"Communities, Customer & Commercial Services",ICT,Capital Expenditure,Computer Software,PHOENIX SOFTWARE LTD,03/07/2023,"3,508.26"
"Communities, Customer & Commercial Services",ICT,Capital Expenditure,Computer Software,PHOENIX SOFTWARE LTD,03/07/2023,"225,711.60"
"Communities, Customer & Commercial Services",ICT,Capital Expenditure,Computer Software,PHOENIX SOFTWARE LTD,03/07/2023,"360,617.40"
"Communities, Customer & Commercial Services",ICT,Capital Expenditure,Computer Software,PHOENIX SOFTWARE LTD,03/07/2023,"88,494.12"
"Communities, Customer & Commercial Services",ICT,Capital Expenditure,Computer Software,PHOENIX SOFTWARE LTD,03/07/2023,"14,550.72"
"Communities, Customer & Commercial Services",ICT,Capital Expenditure,Computer Software,PHOENIX SOFTWARE LTD,03/07/2023,"8,447.40"
"Communities, Customer & Commercial Services",ICT,Capital Expenditure,Computer Software,PHOENIX SOFTWARE LTD,03/07/2023,"7,207.92"
"Communities, Customer & Commercial Services",ICT,Capital Expenditure,Computer Software,PHOENIX SOFTWARE LTD,03/07/2023,"4,504.32"
"Communities, Customer & Commercial Services",ICT,Capital Expenditure,Computer Software,PHOENIX SOFTWARE LTD,03/07/2023,"1,607.64"
"Communities, Customer & Commercial Services",ICT,Capital Expenditure,Computer Software,PHOENIX SOFTWARE LTD,03/07/2023,204.00
"Communities, Customer & Commercial Services",ICT,Capital Expenditure,Computer Software,PHOENIX SOFTWARE LTD,03/07/2023,166.32
"Communities, Customer & Commercial Services",ICT,Capital Expenditure,Computer Software,PHOENIX SOFTWARE LTD,26/07/2023,"2,654.00"
"Communities, Customer & Commercial Services",ICT,Capital Expenditure,Computer Software,PHOENIX SOFTWARE LTD,26/07/2023,126.96
"Communities, Customer & Commercial Services",ICT,Capital Expenditure,Computer Software,PHOENIX SOFTWARE LTD,28/07/2023,108.90
"Communities, Customer & Commercial Services",ICT,Capital Expenditure,Payments to Contractor,Zellis UK Ltd,12/07/2023,752.00
"Communities, Customer & Commercial Services",Sport & Leisure,Premises-Related Expenditure,Electricity,EON next,12/07/2023,172.25
"Communities, Customer & Commercial Services",Sport & Leisure,Supplies & Services,Crockery/Hardware/Light Equip,Elygra Limited,10/07/2023,"8,161.99"
"Communities, Customer & Commercial Services",Sport & Leisure,Supplies & Services,Crockery/Hardware/Light Equip,PLANGLOW LTD,13/07/2023,"1,203.84"
"Communities, Customer & Commercial Services",Sport & Leisure,Supplies & Services,EEC Whole Milk,J DAIRIES,10/07/2023,855.53
"Communities, Customer & Commercial Services",Sport & Leisure,Supplies & Services,EEC Whole Milk,J DAIRIES,10/07/2023,"1,789.56"
"Communities, Customer & Commercial Services",Sport & Leisure,Supplies & Services,EEC Whole Milk,J DAIRIES,24/07/2023,849.03
"Communities, Customer & Commercial Services",Sport & Leisure,Supplies & Services,EEC Whole Milk,J DAIRIES,13/07/2023,841.63
"Communities, Customer & Commercial Services",Sport & Leisure,Supplies & Services,EEC Whole Milk,J DAIRIES,13/07/2023,"1,734.84"
"Communities, Customer & Commercial Services",Sport & Leisure,Supplies & Services,EEC Whole Milk,J DAIRIES,20/07/2023,840.97
"Communities, Customer & Commercial Services",Sport & Leisure,Supplies & Services,EEC Whole Milk,J DAIRIES,20/07/2023,"1,769.28"
"Communities, Customer & Commercial Services",Sport & Leisure,Supplies & Services,Provisions,BIKOLD,06/07/2023,180.00
"Communities, Customer & Commercial Services",Sport & Leisure,Supplies & Services,Provisions,BIKOLD,14/07/2023,124.85
"Communities, Customer & Commercial Services",Sport & Leisure,Supplies & Services,Provisions,BIKOLD,20/07/2023,180.85
"Communities, Customer & Commercial Services",Sport & Leisure,Employees,Agency Supply Costs,TOTAL CATERING SOLUTONS RECRUITMENT LTD,03/07/2023,273.92
"Communities, Customer & Commercial Services",Sport & Leisure,Employees,Agency Supply Costs,TOTAL CATERING SOLUTONS RECRUITMENT LTD,03/07/2023,273.93
"Communities, Customer & Commercial Services",Sport & Leisure,Employees,Agency Supply Costs,TOTAL CATERING SOLUTONS RECRUITMENT LTD,18/07/2023,-145.52
"Communities, Customer & Commercial Services",Sport & Leisure,Employees,Agency Supply Costs,TOTAL CATERING SOLUTONS RECRUITMENT LTD,18/07/2023,-273.92
"Communities, Customer & Commercial Services",Sport & Leisure,Employees,Agency Supply Costs,TOTAL CATERING SOLUTONS RECRUITMENT LTD,18/07/2023,-547.84
"Communities, Customer & Commercial Services",Sport & Leisure,Employees,Agency Supply Costs,TOTAL CATERING SOLUTONS RECRUITMENT LTD,18/07/2023,-410.88
"Communities, Customer & Commercial Services",Sport & Leisure,Employees,Agency Supply Costs,TOTAL CATERING SOLUTONS RECRUITMENT LTD,18/07/2023,"-1,008.80"
"Communities, Customer & Commercial Services",Sport & Leisure,Employees,Agency Supply Costs,TOTAL CATERING SOLUTONS RECRUITMENT LTD,18/07/2023,"1,008.80"
"Communities, Customer & Commercial Services",Sport & Leisure,Employees,Agency Supply Costs,TOTAL CATERING SOLUTONS RECRUITMENT LTD,18/07/2023,342.40
"Communities, Customer & Commercial Services",Sport & Leisure,Employees,Agency Supply Costs,TOTAL CATERING SOLUTONS RECRUITMENT LTD,18/07/2023,342.40
"Communities, Customer & Commercial Services",Sport & Leisure,Employees,Agency Supply Costs,TOTAL CATERING SOLUTONS RECRUITMENT LTD,18/07/2023,350.96
"Communities, Customer & Commercial Services",Sport & Leisure,Employees,Agency Supply Costs,TOTAL CATERING SOLUTONS RECRUITMENT LTD,28/07/2023,342.40
"Communities, Customer & Commercial Services",Sport & Leisure,Employees,Agency Supply Costs,TOTAL CATERING SOLUTONS RECRUITMENT LTD,28/07/2023,342.40
"Communities, Customer & Commercial Services",Sport & Leisure,Employees,Agency Supply Costs,TOTAL CATERING SOLUTONS RECRUITMENT LTD,28/07/2023,338.12
"Communities, Customer & Commercial Services",Sport & Leisure,Employees,Agency Supply Costs,TOTAL CATERING SOLUTONS RECRUITMENT LTD,28/07/2023,342.40
"Communities, Customer & Commercial Services",Sport & Leisure,Premises-Related Expenditure,Clean Mats & Toilet Requisites,Border Janitorial Supplies Limited,10/07/2023,246.62
"Communities, Customer & Commercial Services",Sport & Leisure,Premises-Related Expenditure,Clean Mats & Toilet Requisites,Border Janitorial Supplies Limited,03/07/2023,221.93
"Communities, Customer & Commercial Services",Sport & Leisure,Premises-Related Expenditure,Clean Mats & Toilet Requisites,Border Janitorial Supplies Limited,17/07/2023,121.74
"Communities, Customer & Commercial Services",Sport & Leisure,Premises-Related Expenditure,Clean Mats & Toilet Requisites,Border Janitorial Supplies Limited,17/07/2023,315.14
"Communities, Customer & Commercial Services",Sport & Leisure,Premises-Related Expenditure,Clean Mats & Toilet Requisites,Border Janitorial Supplies Limited,13/07/2023,111.70
"Communities, Customer & Commercial Services",Sport & Leisure,Premises-Related Expenditure,Clean Mats & Toilet Requisites,Border Janitorial Supplies Limited,13/07/2023,210.25
"Communities, Customer & Commercial Services",Sport & Leisure,Premises-Related Expenditure,Clean Mats & Toilet Requisites,Border Janitorial Supplies Limited,26/07/2023,202.21
"Communities, Customer & Commercial Services",Sport & Leisure,Premises-Related Expenditure,Clean Mats & Toilet Requisites,Border Janitorial Supplies Limited,20/07/2023,184.51
"Communities, Customer & Commercial Services",Sport & Leisure,Supplies & Services,Crockery/Hardware/Light Equip,CALTEL CATERING & LAUNDRY EQUIPMENT LLP,26/07/2023,"2,113.87"
"Communities, Customer & Commercial Services",Sport & Leisure,Supplies & Services,Computer Hardware (Maint),CIVICA UK LIMITED ,24/07/2023,350.00
"Communities, Customer & Commercial Services",Sport & Leisure,Supplies & Services,Provisions,BIKOLD,06/07/2023,370.63
"Communities, Customer & Commercial Services",Sport & Leisure,Supplies & Services,Provisions,BIKOLD,06/07/2023,540.04
"Communities, Customer & Commercial Services",Sport & Leisure,Supplies & Services,Provisions,BIKOLD,06/07/2023,190.06
"Communities, Customer & Commercial Services",Sport & Leisure,Supplies & Services,Provisions,BIKOLD,06/07/2023,444.48
"Communities, Customer & Commercial Services",Sport & Leisure,Supplies & Services,Provisions,BIKOLD,06/07/2023,100.86
"Communities, Customer & Commercial Services",Sport & Leisure,Supplies & Services,Provisions,BIKOLD,06/07/2023,368.12
"Communities, Customer & Commercial Services",Sport & Leisure,Supplies & Services,Provisions,BIKOLD,06/07/2023,229.58
"Communities, Customer & Commercial Services",Sport & Leisure,Supplies & Services,Provisions,BIKOLD,06/07/2023,117.72
"Communities, Customer & Commercial Services",Sport & Leisure,Supplies & Services,Provisions,BIKOLD,06/07/2023,214.40
"Communities, Customer & Commercial Services",Sport & Leisure,Supplies & Services,Provisions,BIKOLD,06/07/2023,319.59
"Communities, Customer & Commercial Services",Sport & Leisure,Supplies & Services,Provisions,BIKOLD,06/07/2023,425.52
"Communities, Customer & Commercial Services",Sport & Leisure,Supplies & Services,Provisions,BIKOLD,06/07/2023,354.03
"Communities, Customer & Commercial Services",Sport & Leisure,Supplies & Services,Provisions,BIKOLD,06/07/2023,218.56
"Communities, Customer & Commercial Services",Sport & Leisure,Supplies & Services,Provisions,BIKOLD,06/07/2023,506.00
"Communities, Customer & Commercial Services",Sport & Leisure,Supplies & Services,Provisions,BIKOLD,06/07/2023,215.41
"Communities, Customer & Commercial Services",Sport & Leisure,Supplies & Services,Provisions,BIKOLD,06/07/2023,268.62
"Communities, Customer & Commercial Services",Sport & Leisure,Supplies & Services,Provisions,BIKOLD,06/07/2023,107.06
"Communities, Customer & Commercial Services",Sport & Leisure,Supplies & Services,Provisions,BIKOLD,06/07/2023,111.60
"Communities, Customer & Commercial Services",Sport & Leisure,Supplies & Services,Provisions,BIKOLD,06/07/2023,251.96
"Communities, Customer & Commercial Services",Sport & Leisure,Supplies & Services,Provisions,BIKOLD,06/07/2023,158.91
"Communities, Customer & Commercial Services",Sport & Leisure,Supplies & Services,Provisions,BIKOLD,06/07/2023,125.08
"Communities, Customer & Commercial Services",Sport & Leisure,Supplies & Services,Provisions,BIKOLD,06/07/2023,337.01
"Communities, Customer & Commercial Services",Sport & Leisure,Supplies & Services,Provisions,BIKOLD,06/07/2023,236.53
"Communities, Customer & Commercial Services",Sport & Leisure,Supplies & Services,Provisions,BIKOLD,06/07/2023,-209.60
"Communities, Customer & Commercial Services",Sport & Leisure,Supplies & Services,Provisions,BIKOLD,06/07/2023,169.55
"Communities, Customer & Commercial Services",Sport & Leisure,Supplies & Services,Provisions,BIKOLD,06/07/2023,131.92
"Communities, Customer & Commercial Services",Sport & Leisure,Supplies & Services,Provisions,BIKOLD,06/07/2023,149.93
"Communities, Customer & Commercial Services",Sport & Leisure,Supplies & Services,Provisions,BIKOLD,06/07/2023,211.21
"Communities, Customer & Commercial Services",Sport & Leisure,Supplies & Services,Provisions,BIKOLD,06/07/2023,258.69
"Communities, Customer & Commercial Services",Sport & Leisure,Supplies & Services,Provisions,BIKOLD,06/07/2023,370.64
"Communities, Customer & Commercial Services",Sport & Leisure,Supplies & Services,Provisions,BIKOLD,06/07/2023,536.84
"Communities, Customer & Commercial Services",Sport & Leisure,Supplies & Services,Provisions,BIKOLD,06/07/2023,298.54
"Communities, Customer & Commercial Services",Sport & Leisure,Supplies & Services,Provisions,BIKOLD,06/07/2023,298.69
"Communities, Customer & Commercial Services",Sport & Leisure,Supplies & Services,Provisions,BIKOLD,06/07/2023,171.45
"Communities, Customer & Commercial Services",Sport & Leisure,Supplies & Services,Provisions,BIKOLD,06/07/2023,150.52
"Communities, Customer & Commercial Services",Sport & Leisure,Supplies & Services,Provisions,BIKOLD,06/07/2023,117.48
"Communities, Customer & Commercial Services",Sport & Leisure,Supplies & Services,Provisions,BIKOLD,06/07/2023,276.22
"Communities, Customer & Commercial Services",Sport & Leisure,Supplies & Services,Provisions,BIKOLD,06/07/2023,112.66
"Communities, Customer & Commercial Services",Sport & Leisure,Supplies & Services,Provisions,BIKOLD,06/07/2023,147.39
"Communities, Customer & Commercial Services",Sport & Leisure,Supplies & Services,Provisions,BIKOLD,06/07/2023,158.87
"Communities, Customer & Commercial Services",Sport & Leisure,Supplies & Services,Provisions,BIKOLD,06/07/2023,327.82
"Communities, Customer & Commercial Services",Sport & Leisure,Supplies & Services,Provisions,BIKOLD,06/07/2023,111.53
"Communities, Customer & Commercial Services",Sport & Leisure,Supplies & Services,Provisions,BIKOLD,06/07/2023,155.96
"Communities, Customer & Commercial Services",Sport & Leisure,Supplies & Services,Provisions,BIKOLD,06/07/2023,320.88
"Communities, Customer & Commercial Services",Sport & Leisure,Supplies & Services,Provisions,BIKOLD,06/07/2023,391.25
"Communities, Customer & Commercial Services",Sport & Leisure,Supplies & Services,Provisions,BIKOLD,06/07/2023,455.83
"Communities, Customer & Commercial Services",Sport & Leisure,Supplies & Services,Provisions,BIKOLD,06/07/2023,148.45
"Communities, Customer & Commercial Services",Sport & Leisure,Supplies & Services,Provisions,BIKOLD,06/07/2023,360.66
"Communities, Customer & Commercial Services",Sport & Leisure,Supplies & Services,Provisions,BIKOLD,06/07/2023,317.82
"Communities, Customer & Commercial Services",Sport & Leisure,Supplies & Services,Provisions,BIKOLD,06/07/2023,150.70
"Communities, Customer & Commercial Services",Sport & Leisure,Supplies & Services,Provisions,BIKOLD,06/07/2023,260.52
"Communities, Customer & Commercial Services",Sport & Leisure,Supplies & Services,Provisions,BIKOLD,06/07/2023,217.18
"Communities, Customer & Commercial Services",Sport & Leisure,Supplies & Services,Provisions,BIKOLD,06/07/2023,209.28
"Communities, Customer & Commercial Services",Sport & Leisure,Supplies & Services,Provisions,BIKOLD,06/07/2023,192.73
"Communities, Customer & Commercial Services",Sport & Leisure,Supplies & Services,Provisions,BIKOLD,06/07/2023,147.51
"Communities, Customer & Commercial Services",Sport & Leisure,Supplies & Services,Provisions,BIKOLD,06/07/2023,169.10
"Communities, Customer & Commercial Services",Sport & Leisure,Supplies & Services,Provisions,BIKOLD,06/07/2023,222.46
"Communities, Customer & Commercial Services",Sport & Leisure,Supplies & Services,Provisions,BIKOLD,06/07/2023,635.19
"Communities, Customer & Commercial Services",Sport & Leisure,Supplies & Services,Provisions,BIKOLD,06/07/2023,165.31
"Communities, Customer & Commercial Services",Sport & Leisure,Supplies & Services,Provisions,BIKOLD,06/07/2023,330.28
"Communities, Customer & Commercial Services",Sport & Leisure,Supplies & Services,Provisions,BIKOLD,06/07/2023,143.40
"Communities, Customer & Commercial Services",Sport & Leisure,Supplies & Services,Provisions,BIKOLD,06/07/2023,137.88
"Communities, Customer & Commercial Services",Sport & Leisure,Supplies & Services,Provisions,BIKOLD,06/07/2023,100.68
"Communities, Customer & Commercial Services",Sport & Leisure,Supplies & Services,Provisions,BIKOLD,06/07/2023,374.85
"Communities, Customer & Commercial Services",Sport & Leisure,Supplies & Services,Provisions,BIKOLD,06/07/2023,136.98
"Communities, Customer & Commercial Services",Sport & Leisure,Supplies & Services,Provisions,BIKOLD,06/07/2023,135.42
"Communities, Customer & Commercial Services",Sport & Leisure,Supplies & Services,Provisions,BIKOLD,06/07/2023,490.54
"Communities, Customer & Commercial Services",Sport & Leisure,Supplies & Services,Provisions,BIKOLD,06/07/2023,459.16
"Communities, Customer & Commercial Services",Sport & Leisure,Supplies & Services,Provisions,BIKOLD,06/07/2023,129.08
"Communities, Customer & Commercial Services",Sport & Leisure,Supplies & Services,Provisions,BIKOLD,06/07/2023,272.36
"Communities, Customer & Commercial Services",Sport & Leisure,Supplies & Services,Provisions,BIKOLD,06/07/2023,121.07
"Communities, Customer & Commercial Services",Sport & Leisure,Supplies & Services,Provisions,BIKOLD,06/07/2023,132.95
"Communities, Customer & Commercial Services",Sport & Leisure,Supplies & Services,Provisions,BIKOLD,06/07/2023,543.60
"Communities, Customer & Commercial Services",Sport & Leisure,Supplies & Services,Provisions,BIKOLD,06/07/2023,221.12
"Communities, Customer & Commercial Services",Sport & Leisure,Supplies & Services,Provisions,BIKOLD,06/07/2023,170.10
"Communities, Customer & Commercial Services",Sport & Leisure,Supplies & Services,Provisions,BIKOLD,06/07/2023,198.01
"Communities, Customer & Commercial Services",Sport & Leisure,Supplies & Services,Provisions,BIKOLD,06/07/2023,111.99
"Communities, Customer & Commercial Services",Sport & Leisure,Supplies & Services,Provisions,BIKOLD,06/07/2023,466.52
"Communities, Customer & Commercial Services",Sport & Leisure,Supplies & Services,Provisions,BIKOLD,06/07/2023,126.41
"Communities, Customer & Commercial Services",Sport & Leisure,Supplies & Services,Provisions,BIKOLD,06/07/2023,317.06
"Communities, Customer & Commercial Services",Sport & Leisure,Supplies & Services,Provisions,BIKOLD,06/07/2023,540.94
"Communities, Customer & Commercial Services",Sport & Leisure,Supplies & Services,Provisions,BIKOLD,06/07/2023,255.53
"Communities, Customer & Commercial Services",Sport & Leisure,Supplies & Services,Provisions,BIKOLD,06/07/2023,110.00
"Communities, Customer & Commercial Services",Sport & Leisure,Supplies & Services,Provisions,BIKOLD,06/07/2023,231.05
"Communities, Customer & Commercial Services",Sport & Leisure,Supplies & Services,Provisions,BIKOLD,06/07/2023,118.44
"Communities, Customer & Commercial Services",Sport & Leisure,Supplies & Services,Provisions,BIKOLD,06/07/2023,578.70
"Communities, Customer & Commercial Services",Sport & Leisure,Supplies & Services,Provisions,BIKOLD,06/07/2023,309.70
"Communities, Customer & Commercial Services",Sport & Leisure,Supplies & Services,Provisions,BIKOLD,06/07/2023,340.26
"Communities, Customer & Commercial Services",Sport & Leisure,Supplies & Services,Provisions,BIKOLD,06/07/2023,185.23
"Communities, Customer & Commercial Services",Sport & Leisure,Supplies & Services,Provisions,BIKOLD,06/07/2023,114.45
"Communities, Customer & Commercial Services",Sport & Leisure,Supplies & Services,Provisions,BIKOLD,06/07/2023,178.14
"Communities, Customer & Commercial Services",Sport & Leisure,Supplies & Services,Provisions,BIKOLD,06/07/2023,215.21
"Communities, Customer & Commercial Services",Sport & Leisure,Supplies & Services,Provisions,BIKOLD,06/07/2023,228.10
"Communities, Customer & Commercial Services",Sport & Leisure,Supplies & Services,Provisions,BIKOLD,06/07/2023,195.72
"Communities, Customer & Commercial Services",Sport & Leisure,Supplies & Services,Provisions,BIKOLD,06/07/2023,175.32
"Communities, Customer & Commercial Services",Sport & Leisure,Supplies & Services,Provisions,BIKOLD,06/07/2023,221.27
"Communities, Customer & Commercial Services",Sport & Leisure,Supplies & Services,Provisions,BIKOLD,06/07/2023,457.15
"Communities, Customer & Commercial Services",Sport & Leisure,Supplies & Services,Provisions,BIKOLD,06/07/2023,159.76
"Communities, Customer & Commercial Services",Sport & Leisure,Supplies & Services,Provisions,BIKOLD,06/07/2023,114.24
"Communities, Customer & Commercial Services",Sport & Leisure,Supplies & Services,Provisions,BIKOLD,06/07/2023,217.22
"Communities, Customer & Commercial Services",Sport & Leisure,Supplies & Services,Provisions,BIKOLD,06/07/2023,109.04
"Communities, Customer & Commercial Services",Sport & Leisure,Supplies & Services,Provisions,BIKOLD,06/07/2023,102.68
"Communities, Customer & Commercial Services",Sport & Leisure,Supplies & Services,Provisions,BIKOLD,06/07/2023,124.73
"Communities, Customer & Commercial Services",Sport & Leisure,Supplies & Services,Provisions,BIKOLD,06/07/2023,111.07
"Communities, Customer & Commercial Services",Sport & Leisure,Supplies & Services,Provisions,BIKOLD,06/07/2023,280.00
"Communities, Customer & Commercial Services",Sport & Leisure,Supplies & Services,Provisions,BIKOLD,14/07/2023,240.59
"Communities, Customer & Commercial Services",Sport & Leisure,Supplies & Services,Provisions,BIKOLD,14/07/2023,125.60
"Communities, Customer & Commercial Services",Sport & Leisure,Supplies & Services,Provisions,BIKOLD,14/07/2023,163.50
"Communities, Customer & Commercial Services",Sport & Leisure,Supplies & Services,Provisions,BIKOLD,14/07/2023,207.95
"Communities, Customer & Commercial Services",Sport & Leisure,Supplies & Services,Provisions,BIKOLD,14/07/2023,187.04
"Communities, Customer & Commercial Services",Sport & Leisure,Supplies & Services,Provisions,BIKOLD,14/07/2023,317.82
"Communities, Customer & Commercial Services",Sport & Leisure,Supplies & Services,Provisions,BIKOLD,14/07/2023,241.86
"Communities, Customer & Commercial Services",Sport & Leisure,Supplies & Services,Provisions,BIKOLD,14/07/2023,419.29
"Communities, Customer & Commercial Services",Sport & Leisure,Supplies & Services,Provisions,BIKOLD,14/07/2023,105.47
"Communities, Customer & Commercial Services",Sport & Leisure,Supplies & Services,Provisions,BIKOLD,14/07/2023,175.79
"Communities, Customer & Commercial Services",Sport & Leisure,Supplies & Services,Provisions,BIKOLD,14/07/2023,173.28
"Communities, Customer & Commercial Services",Sport & Leisure,Supplies & Services,Provisions,BIKOLD,14/07/2023,395.01
"Communities, Customer & Commercial Services",Sport & Leisure,Supplies & Services,Provisions,BIKOLD,14/07/2023,464.64
"Communities, Customer & Commercial Services",Sport & Leisure,Supplies & Services,Provisions,BIKOLD,14/07/2023,256.33
"Communities, Customer & Commercial Services",Sport & Leisure,Supplies & Services,Provisions,BIKOLD,14/07/2023,150.31
"Communities, Customer & Commercial Services",Sport & Leisure,Supplies & Services,Provisions,BIKOLD,14/07/2023,234.07
"Communities, Customer & Commercial Services",Sport & Leisure,Supplies & Services,Provisions,BIKOLD,14/07/2023,317.11
"Communities, Customer & Commercial Services",Sport & Leisure,Supplies & Services,Provisions,BIKOLD,14/07/2023,187.25
"Communities, Customer & Commercial Services",Sport & Leisure,Supplies & Services,Provisions,BIKOLD,14/07/2023,454.73
"Communities, Customer & Commercial Services",Sport & Leisure,Supplies & Services,Provisions,BIKOLD,14/07/2023,335.16
"Communities, Customer & Commercial Services",Sport & Leisure,Supplies & Services,Provisions,BIKOLD,14/07/2023,265.71
"Communities, Customer & Commercial Services",Sport & Leisure,Supplies & Services,Provisions,BIKOLD,14/07/2023,246.33
"Communities, Customer & Commercial Services",Sport & Leisure,Supplies & Services,Provisions,BIKOLD,14/07/2023,120.02
"Communities, Customer & Commercial Services",Sport & Leisure,Supplies & Services,Provisions,BIKOLD,14/07/2023,298.26
"Communities, Customer & Commercial Services",Sport & Leisure,Supplies & Services,Provisions,BIKOLD,14/07/2023,145.30
"Communities, Customer & Commercial Services",Sport & Leisure,Supplies & Services,Provisions,BIKOLD,14/07/2023,125.10
"Communities, Customer & Commercial Services",Sport & Leisure,Supplies & Services,Provisions,BIKOLD,14/07/2023,262.50
"Communities, Customer & Commercial Services",Sport & Leisure,Supplies & Services,Provisions,BIKOLD,14/07/2023,136.28
"Communities, Customer & Commercial Services",Sport & Leisure,Supplies & Services,Provisions,BIKOLD,14/07/2023,137.84
"Communities, Customer & Commercial Services",Sport & Leisure,Supplies & Services,Provisions,BIKOLD,14/07/2023,389.45
"Communities, Customer & Commercial Services",Sport & Leisure,Supplies & Services,Provisions,BIKOLD,14/07/2023,293.55
"Communities, Customer & Commercial Services",Sport & Leisure,Supplies & Services,Provisions,BIKOLD,14/07/2023,185.57
"Communities, Customer & Commercial Services",Sport & Leisure,Supplies & Services,Provisions,BIKOLD,14/07/2023,125.22
"Communities, Customer & Commercial Services",Sport & Leisure,Supplies & Services,Provisions,BIKOLD,14/07/2023,126.36
"Communities, Customer & Commercial Services",Sport & Leisure,Supplies & Services,Provisions,BIKOLD,14/07/2023,140.48
"Communities, Customer & Commercial Services",Sport & Leisure,Supplies & Services,Provisions,BIKOLD,14/07/2023,327.62
"Communities, Customer & Commercial Services",Sport & Leisure,Supplies & Services,Provisions,BIKOLD,14/07/2023,111.14
"Communities, Customer & Commercial Services",Sport & Leisure,Supplies & Services,Provisions,BIKOLD,14/07/2023,403.87
"Communities, Customer & Commercial Services",Sport & Leisure,Supplies & Services,Provisions,BIKOLD,14/07/2023,254.74
"Communities, Customer & Commercial Services",Sport & Leisure,Supplies & Services,Provisions,BIKOLD,14/07/2023,190.50
"Communities, Customer & Commercial Services",Sport & Leisure,Supplies & Services,Provisions,BIKOLD,14/07/2023,185.20
"Communities, Customer & Commercial Services",Sport & Leisure,Supplies & Services,Provisions,BIKOLD,14/07/2023,189.77
"Communities, Customer & Commercial Services",Sport & Leisure,Supplies & Services,Provisions,BIKOLD,14/07/2023,254.22
"Communities, Customer & Commercial Services",Sport & Leisure,Supplies & Services,Provisions,BIKOLD,14/07/2023,125.58
"Communities, Customer & Commercial Services",Sport & Leisure,Supplies & Services,Provisions,BIKOLD,14/07/2023,465.84
"Communities, Customer & Commercial Services",Sport & Leisure,Supplies & Services,Provisions,BIKOLD,14/07/2023,581.53
"Communities, Customer & Commercial Services",Sport & Leisure,Supplies & Services,Provisions,BIKOLD,14/07/2023,606.56
"Communities, Customer & Commercial Services",Sport & Leisure,Supplies & Services,Provisions,BIKOLD,14/07/2023,362.73
"Communities, Customer & Commercial Services",Sport & Leisure,Supplies & Services,Provisions,BIKOLD,14/07/2023,133.51
"Communities, Customer & Commercial Services",Sport & Leisure,Supplies & Services,Provisions,BIKOLD,14/07/2023,139.64
"Communities, Customer & Commercial Services",Sport & Leisure,Supplies & Services,Provisions,BIKOLD,14/07/2023,291.87
"Communities, Customer & Commercial Services",Sport & Leisure,Supplies & Services,Provisions,BIKOLD,14/07/2023,350.33
"Communities, Customer & Commercial Services",Sport & Leisure,Supplies & Services,Provisions,BIKOLD,14/07/2023,139.70
"Communities, Customer & Commercial Services",Sport & Leisure,Supplies & Services,Provisions,BIKOLD,14/07/2023,328.12
"Communities, Customer & Commercial Services",Sport & Leisure,Supplies & Services,Provisions,BIKOLD,14/07/2023,453.09
"Communities, Customer & Commercial Services",Sport & Leisure,Supplies & Services,Provisions,BIKOLD,14/07/2023,126.10
"Communities, Customer & Commercial Services",Sport & Leisure,Supplies & Services,Provisions,BIKOLD,14/07/2023,132.84
"Communities, Customer & Commercial Services",Sport & Leisure,Supplies & Services,Provisions,BIKOLD,14/07/2023,297.77
"Communities, Customer & Commercial Services",Sport & Leisure,Supplies & Services,Provisions,BIKOLD,14/07/2023,164.32
"Communities, Customer & Commercial Services",Sport & Leisure,Supplies & Services,Provisions,BIKOLD,14/07/2023,104.43
"Communities, Customer & Commercial Services",Sport & Leisure,Supplies & Services,Provisions,BIKOLD,14/07/2023,151.81
"Communities, Customer & Commercial Services",Sport & Leisure,Supplies & Services,Provisions,BIKOLD,14/07/2023,115.35
"Communities, Customer & Commercial Services",Sport & Leisure,Supplies & Services,Provisions,BIKOLD,14/07/2023,217.74
"Communities, Customer & Commercial Services",Sport & Leisure,Supplies & Services,Provisions,BIKOLD,14/07/2023,455.06
"Communities, Customer & Commercial Services",Sport & Leisure,Supplies & Services,Provisions,BIKOLD,14/07/2023,149.70
"Communities, Customer & Commercial Services",Sport & Leisure,Supplies & Services,Provisions,BIKOLD,14/07/2023,165.54
"Communities, Customer & Commercial Services",Sport & Leisure,Supplies & Services,Provisions,BIKOLD,14/07/2023,491.15
"Communities, Customer & Commercial Services",Sport & Leisure,Supplies & Services,Provisions,BIKOLD,14/07/2023,193.42
"Communities, Customer & Commercial Services",Sport & Leisure,Supplies & Services,Provisions,BIKOLD,14/07/2023,257.30
"Communities, Customer & Commercial Services",Sport & Leisure,Supplies & Services,Provisions,BIKOLD,14/07/2023,441.74
"Communities, Customer & Commercial Services",Sport & Leisure,Supplies & Services,Provisions,BIKOLD,14/07/2023,177.16
"Communities, Customer & Commercial Services",Sport & Leisure,Supplies & Services,Provisions,BIKOLD,14/07/2023,258.33
"Communities, Customer & Commercial Services",Sport & Leisure,Supplies & Services,Provisions,BIKOLD,14/07/2023,189.31
"Communities, Customer & Commercial Services",Sport & Leisure,Supplies & Services,Provisions,BIKOLD,14/07/2023,318.71
"Communities, Customer & Commercial Services",Sport & Leisure,Supplies & Services,Provisions,BIKOLD,14/07/2023,102.55
"Communities, Customer & Commercial Services",Sport & Leisure,Supplies & Services,Provisions,BIKOLD,14/07/2023,304.15
"Communities, Customer & Commercial Services",Sport & Leisure,Supplies & Services,Provisions,BIKOLD,14/07/2023,123.87
"Communities, Customer & Commercial Services",Sport & Leisure,Supplies & Services,Provisions,BIKOLD,14/07/2023,123.69
"Communities, Customer & Commercial Services",Sport & Leisure,Supplies & Services,Provisions,BIKOLD,14/07/2023,121.94
"Communities, Customer & Commercial Services",Sport & Leisure,Supplies & Services,Provisions,BIKOLD,14/07/2023,180.62
"Communities, Customer & Commercial Services",Sport & Leisure,Supplies & Services,Provisions,BIKOLD,14/07/2023,133.31
"Communities, Customer & Commercial Services",Sport & Leisure,Supplies & Services,Provisions,BIKOLD,14/07/2023,352.14
"Communities, Customer & Commercial Services",Sport & Leisure,Supplies & Services,Provisions,BIKOLD,14/07/2023,147.24
"Communities, Customer & Commercial Services",Sport & Leisure,Supplies & Services,Provisions,BIKOLD,14/07/2023,150.87
"Communities, Customer & Commercial Services",Sport & Leisure,Supplies & Services,Provisions,BIKOLD,14/07/2023,275.22
"Communities, Customer & Commercial Services",Sport & Leisure,Supplies & Services,Provisions,BIKOLD,14/07/2023,117.39
"Communities, Customer & Commercial Services",Sport & Leisure,Supplies & Services,Provisions,BIKOLD,14/07/2023,132.01
"Communities, Customer & Commercial Services",Sport & Leisure,Supplies & Services,Provisions,BIKOLD,14/07/2023,103.09
"Communities, Customer & Commercial Services",Sport & Leisure,Supplies & Services,Provisions,BIKOLD,14/07/2023,142.92
"Communities, Customer & Commercial Services",Sport & Leisure,Supplies & Services,Provisions,BIKOLD,14/07/2023,313.76
"Communities, Customer & Commercial Services",Sport & Leisure,Supplies & Services,Provisions,BIKOLD,14/07/2023,420.50
"Communities, Customer & Commercial Services",Sport & Leisure,Supplies & Services,Provisions,BIKOLD,14/07/2023,362.88
"Communities, Customer & Commercial Services",Sport & Leisure,Supplies & Services,Provisions,BIKOLD,14/07/2023,159.03
"Communities, Customer & Commercial Services",Sport & Leisure,Supplies & Services,Provisions,BIKOLD,14/07/2023,102.98
"Communities, Customer & Commercial Services",Sport & Leisure,Supplies & Services,Provisions,BIKOLD,14/07/2023,130.87
"Communities, Customer & Commercial Services",Sport & Leisure,Supplies & Services,Provisions,BIKOLD,14/07/2023,131.15
"Communities, Customer & Commercial Services",Sport & Leisure,Supplies & Services,Provisions,BIKOLD,14/07/2023,245.68
"Communities, Customer & Commercial Services",Sport & Leisure,Supplies & Services,Provisions,BIKOLD,14/07/2023,120.30
"Communities, Customer & Commercial Services",Sport & Leisure,Supplies & Services,Provisions,BIKOLD,14/07/2023,103.05
"Communities, Customer & Commercial Services",Sport & Leisure,Supplies & Services,Provisions,BIKOLD,14/07/2023,215.51
"Communities, Customer & Commercial Services",Sport & Leisure,Supplies & Services,Provisions,BIKOLD,14/07/2023,345.87
"Communities, Customer & Commercial Services",Sport & Leisure,Supplies & Services,Provisions,BIKOLD,14/07/2023,292.45
"Communities, Customer & Commercial Services",Sport & Leisure,Supplies & Services,Provisions,BIKOLD,14/07/2023,284.56
"Communities, Customer & Commercial Services",Sport & Leisure,Supplies & Services,Provisions,BIKOLD,20/07/2023,382.95
"Communities, Customer & Commercial Services",Sport & Leisure,Supplies & Services,Provisions,BIKOLD,20/07/2023,257.21
"Communities, Customer & Commercial Services",Sport & Leisure,Supplies & Services,Provisions,BIKOLD,20/07/2023,484.53
"Communities, Customer & Commercial Services",Sport & Leisure,Supplies & Services,Provisions,BIKOLD,20/07/2023,388.71
"Communities, Customer & Commercial Services",Sport & Leisure,Supplies & Services,Provisions,BIKOLD,20/07/2023,103.36
"Communities, Customer & Commercial Services",Sport & Leisure,Supplies & Services,Provisions,BIKOLD,20/07/2023,314.29
"Communities, Customer & Commercial Services",Sport & Leisure,Supplies & Services,Provisions,BIKOLD,20/07/2023,233.98
"Communities, Customer & Commercial Services",Sport & Leisure,Supplies & Services,Provisions,BIKOLD,20/07/2023,580.68
"Communities, Customer & Commercial Services",Sport & Leisure,Supplies & Services,Provisions,BIKOLD,20/07/2023,248.95
"Communities, Customer & Commercial Services",Sport & Leisure,Supplies & Services,Provisions,BIKOLD,20/07/2023,302.60
"Communities, Customer & Commercial Services",Sport & Leisure,Supplies & Services,Provisions,BIKOLD,20/07/2023,185.84
"Communities, Customer & Commercial Services",Sport & Leisure,Supplies & Services,Provisions,BIKOLD,20/07/2023,105.75
"Communities, Customer & Commercial Services",Sport & Leisure,Supplies & Services,Provisions,BIKOLD,20/07/2023,232.10
"Communities, Customer & Commercial Services",Sport & Leisure,Supplies & Services,Provisions,BIKOLD,20/07/2023,673.56
"Communities, Customer & Commercial Services",Sport & Leisure,Supplies & Services,Provisions,BIKOLD,20/07/2023,373.80
"Communities, Customer & Commercial Services",Sport & Leisure,Supplies & Services,Provisions,BIKOLD,20/07/2023,461.98
"Communities, Customer & Commercial Services",Sport & Leisure,Supplies & Services,Provisions,BIKOLD,20/07/2023,269.10
"Communities, Customer & Commercial Services",Sport & Leisure,Supplies & Services,Provisions,BIKOLD,20/07/2023,332.98
"Communities, Customer & Commercial Services",Sport & Leisure,Supplies & Services,Provisions,BIKOLD,20/07/2023,274.12
"Communities, Customer & Commercial Services",Sport & Leisure,Supplies & Services,Provisions,BIKOLD,20/07/2023,162.79
"Communities, Customer & Commercial Services",Sport & Leisure,Supplies & Services,Provisions,BIKOLD,20/07/2023,223.12
"Communities, Customer & Commercial Services",Sport & Leisure,Supplies & Services,Provisions,BIKOLD,20/07/2023,165.47
"Communities, Customer & Commercial Services",Sport & Leisure,Supplies & Services,Provisions,BIKOLD,20/07/2023,321.96
"Communities, Customer & Commercial Services",Sport & Leisure,Supplies & Services,Provisions,BIKOLD,20/07/2023,161.38
"Communities, Customer & Commercial Services",Sport & Leisure,Supplies & Services,Provisions,BIKOLD,20/07/2023,300.44
"Communities, Customer & Commercial Services",Sport & Leisure,Supplies & Services,Provisions,BIKOLD,20/07/2023,132.52
"Communities, Customer & Commercial Services",Sport & Leisure,Supplies & Services,Provisions,BIKOLD,20/07/2023,109.73
"Communities, Customer & Commercial Services",Sport & Leisure,Supplies & Services,Provisions,BIKOLD,20/07/2023,111.84
"Communities, Customer & Commercial Services",Sport & Leisure,Supplies & Services,Provisions,BIKOLD,20/07/2023,301.88
"Communities, Customer & Commercial Services",Sport & Leisure,Supplies & Services,Provisions,BIKOLD,20/07/2023,116.01
"Communities, Customer & Commercial Services",Sport & Leisure,Supplies & Services,Provisions,BIKOLD,20/07/2023,532.15
"Communities, Customer & Commercial Services",Sport & Leisure,Supplies & Services,Provisions,BIKOLD,20/07/2023,303.69
"Communities, Customer & Commercial Services",Sport & Leisure,Supplies & Services,Provisions,BIKOLD,20/07/2023,148.05
"Communities, Customer & Commercial Services",Sport & Leisure,Supplies & Services,Provisions,BIKOLD,20/07/2023,175.48
"Communities, Customer & Commercial Services",Sport & Leisure,Supplies & Services,Provisions,BIKOLD,20/07/2023,128.23
"Communities, Customer & Commercial Services",Sport & Leisure,Supplies & Services,Provisions,BIKOLD,20/07/2023,124.52
"Communities, Customer & Commercial Services",Sport & Leisure,Supplies & Services,Provisions,BIKOLD,20/07/2023,134.73
"Communities, Customer & Commercial Services",Sport & Leisure,Supplies & Services,Provisions,BIKOLD,20/07/2023,195.30
"Communities, Customer & Commercial Services",Sport & Leisure,Supplies & Services,Provisions,BIKOLD,20/07/2023,148.35
"Communities, Customer & Commercial Services",Sport & Leisure,Supplies & Services,Provisions,BIKOLD,20/07/2023,145.06
"Communities, Customer & Commercial Services",Sport & Leisure,Supplies & Services,Provisions,BIKOLD,20/07/2023,129.70
"Communities, Customer & Commercial Services",Sport & Leisure,Supplies & Services,Provisions,BIKOLD,20/07/2023,430.41
"Communities, Customer & Commercial Services",Sport & Leisure,Supplies & Services,Provisions,BIKOLD,14/07/2023,336.22
"Communities, Customer & Commercial Services",Sport & Leisure,Supplies & Services,Provisions,BIKOLD,14/07/2023,140.83
"Communities, Customer & Commercial Services",Sport & Leisure,Supplies & Services,Provisions,BIKOLD,20/07/2023,152.92
"Communities, Customer & Commercial Services",Sport & Leisure,Supplies & Services,Provisions,BIKOLD,20/07/2023,135.15
"Communities, Customer & Commercial Services",Sport & Leisure,Supplies & Services,Provisions,BIKOLD,20/07/2023,147.19
"Communities, Customer & Commercial Services",Sport & Leisure,Supplies & Services,Provisions,BIKOLD,20/07/2023,205.98
"Communities, Customer & Commercial Services",Sport & Leisure,Supplies & Services,Provisions,BIKOLD,20/07/2023,531.08
"Communities, Customer & Commercial Services",Sport & Leisure,Supplies & Services,Provisions,BIKOLD,20/07/2023,315.92
"Communities, Customer & Commercial Services",Sport & Leisure,Supplies & Services,Provisions,BIKOLD,20/07/2023,194.04
"Communities, Customer & Commercial Services",Sport & Leisure,Supplies & Services,Provisions,BIKOLD,20/07/2023,171.04
"Communities, Customer & Commercial Services",Sport & Leisure,Supplies & Services,Provisions,BIKOLD,20/07/2023,338.98
"Communities, Customer & Commercial Services",Sport & Leisure,Supplies & Services,Provisions,BIKOLD,20/07/2023,138.74
"Communities, Customer & Commercial Services",Sport & Leisure,Supplies & Services,Provisions,BIKOLD,20/07/2023,319.66
"Communities, Customer & Commercial Services",Sport & Leisure,Supplies & Services,Provisions,BIKOLD,20/07/2023,109.89
"Communities, Customer & Commercial Services",Sport & Leisure,Supplies & Services,Provisions,BIKOLD,20/07/2023,305.18
"Communities, Customer & Commercial Services",Sport & Leisure,Supplies & Services,Provisions,BIKOLD,20/07/2023,169.32
"Communities, Customer & Commercial Services",Sport & Leisure,Supplies & Services,Provisions,BIKOLD,20/07/2023,173.15
"Communities, Customer & Commercial Services",Sport & Leisure,Supplies & Services,Provisions,BIKOLD,20/07/2023,438.37
"Communities, Customer & Commercial Services",Sport & Leisure,Supplies & Services,Provisions,BIKOLD,20/07/2023,133.42
"Communities, Customer & Commercial Services",Sport & Leisure,Supplies & Services,Provisions,BIKOLD,20/07/2023,304.16
"Communities, Customer & Commercial Services",Sport & Leisure,Supplies & Services,Provisions,BIKOLD,20/07/2023,188.76
"Communities, Customer & Commercial Services",Sport & Leisure,Supplies & Services,Provisions,BIKOLD,20/07/2023,232.40
"Communities, Customer & Commercial Services",Sport & Leisure,Supplies & Services,Provisions,BIKOLD,20/07/2023,611.01
"Communities, Customer & Commercial Services",Sport & Leisure,Supplies & Services,Provisions,BIKOLD,20/07/2023,363.33
"Communities, Customer & Commercial Services",Sport & Leisure,Supplies & Services,Provisions,BIKOLD,20/07/2023,304.02
"Communities, Customer & Commercial Services",Sport & Leisure,Supplies & Services,Provisions,BIKOLD,20/07/2023,222.68
"Communities, Customer & Commercial Services",Sport & Leisure,Supplies & Services,Provisions,BIKOLD,20/07/2023,110.34
"Communities, Customer & Commercial Services",Sport & Leisure,Supplies & Services,Provisions,BIKOLD,20/07/2023,121.70
"Communities, Customer & Commercial Services",Sport & Leisure,Supplies & Services,Provisions,BIKOLD,20/07/2023,317.64
"Communities, Customer & Commercial Services",Sport & Leisure,Supplies & Services,Provisions,BIKOLD,20/07/2023,126.17
"Communities, Customer & Commercial Services",Sport & Leisure,Supplies & Services,Provisions,BIKOLD,20/07/2023,158.46
"Communities, Customer & Commercial Services",Sport & Leisure,Supplies & Services,Provisions,BIKOLD,20/07/2023,113.82
"Communities, Customer & Commercial Services",Sport & Leisure,Supplies & Services,Provisions,BIKOLD,20/07/2023,156.38
"Communities, Customer & Commercial Services",Sport & Leisure,Supplies & Services,Provisions,BIKOLD,20/07/2023,283.24
"Communities, Customer & Commercial Services",Sport & Leisure,Supplies & Services,Provisions,BIKOLD,20/07/2023,683.73
"Communities, Customer & Commercial Services",Sport & Leisure,Supplies & Services,Provisions,BIKOLD,20/07/2023,295.35
"Communities, Customer & Commercial Services",Sport & Leisure,Supplies & Services,Provisions,BIKOLD,20/07/2023,324.54
"Communities, Customer & Commercial Services",Sport & Leisure,Supplies & Services,Provisions,BIKOLD,20/07/2023,174.05
"Communities, Customer & Commercial Services",Sport & Leisure,Supplies & Services,Provisions,BIKOLD,20/07/2023,121.47
"Communities, Customer & Commercial Services",Sport & Leisure,Supplies & Services,Provisions,BIKOLD,20/07/2023,192.11
"Communities, Customer & Commercial Services",Sport & Leisure,Supplies & Services,Provisions,BIKOLD,20/07/2023,155.08
"Communities, Customer & Commercial Services",Sport & Leisure,Supplies & Services,Provisions,BIKOLD,20/07/2023,394.51
"Communities, Customer & Commercial Services",Sport & Leisure,Supplies & Services,Provisions,BIKOLD,20/07/2023,174.53
"Communities, Customer & Commercial Services",Sport & Leisure,Supplies & Services,Provisions,BIKOLD,20/07/2023,160.56
"Communities, Customer & Commercial Services",Sport & Leisure,Supplies & Services,Provisions,BIKOLD,20/07/2023,329.75
"Communities, Customer & Commercial Services",Sport & Leisure,Supplies & Services,Provisions,BIKOLD,20/07/2023,503.74
"Communities, Customer & Commercial Services",Sport & Leisure,Supplies & Services,Provisions,BIKOLD,27/07/2023,198.91
"Communities, Customer & Commercial Services",Sport & Leisure,Supplies & Services,Provisions,BIKOLD,27/07/2023,128.40
"Communities, Customer & Commercial Services",Sport & Leisure,Supplies & Services,Provisions,BIKOLD,27/07/2023,185.18
"Communities, Customer & Commercial Services",Sport & Leisure,Supplies & Services,Provisions,BIKOLD,27/07/2023,193.48
"Communities, Customer & Commercial Services",Sport & Leisure,Supplies & Services,Provisions,BIKOLD,27/07/2023,470.57
"Communities, Customer & Commercial Services",Sport & Leisure,Supplies & Services,Provisions,BIKOLD,27/07/2023,107.56
"Communities, Customer & Commercial Services",Sport & Leisure,Supplies & Services,Provisions,BIKOLD,27/07/2023,153.86
"Communities, Customer & Commercial Services",Sport & Leisure,Supplies & Services,Provisions,BIKOLD,27/07/2023,147.26
"Communities, Customer & Commercial Services",Sport & Leisure,Supplies & Services,Provisions,BIKOLD,27/07/2023,552.85
"Communities, Customer & Commercial Services",Sport & Leisure,Supplies & Services,Provisions,BIKOLD,27/07/2023,"1,021.30"
"Communities, Customer & Commercial Services",Sport & Leisure,Supplies & Services,Crockery/Hardware/Light Equip,Harfield Components Ltd,26/07/2023,"1,536.00"
"Communities, Customer & Commercial Services",Sport & Leisure,Supplies & Services,Provisions,J S Catering Butchers,21/07/2023,182.32
"Communities, Customer & Commercial Services",Sport & Leisure,Supplies & Services,Provisions,J S Catering Butchers,21/07/2023,127.00
"Communities, Customer & Commercial Services",Sport & Leisure,Supplies & Services,Provisions,J S Catering Butchers,03/07/2023,204.70
"Communities, Customer & Commercial Services",Sport & Leisure,Supplies & Services,Provisions,J S Catering Butchers,03/07/2023,182.32
"Communities, Customer & Commercial Services",Sport & Leisure,Supplies & Services,Provisions,J S Catering Butchers,03/07/2023,132.27
"Communities, Customer & Commercial Services",Sport & Leisure,Supplies & Services,Provisions,J S Catering Butchers,03/07/2023,119.62
"Communities, Customer & Commercial Services",Sport & Leisure,Supplies & Services,Provisions,J S Catering Butchers,17/07/2023,118.49
"Communities, Customer & Commercial Services",Sport & Leisure,Supplies & Services,Provisions,J S Catering Butchers,17/07/2023,110.40
"Communities, Customer & Commercial Services",Sport & Leisure,Supplies & Services,Provisions,J S Catering Butchers,17/07/2023,101.83
"Communities, Customer & Commercial Services",Sport & Leisure,Supplies & Services,Provisions,J S Catering Butchers,17/07/2023,213.30
"Communities, Customer & Commercial Services",Sport & Leisure,Supplies & Services,Provisions,J S Catering Butchers,10/07/2023,215.25
"Communities, Customer & Commercial Services",Sport & Leisure,Supplies & Services,Provisions,J S Catering Butchers,10/07/2023,267.55
"Communities, Customer & Commercial Services",Sport & Leisure,Supplies & Services,Provisions,J S Catering Butchers,10/07/2023,132.40
"Communities, Customer & Commercial Services",Sport & Leisure,Supplies & Services,Provisions,J S Catering Butchers,10/07/2023,222.25
"Communities, Customer & Commercial Services",Sport & Leisure,Supplies & Services,Provisions,On A Roll,10/07/2023,238.05
"Communities, Customer & Commercial Services",Sport & Leisure,Supplies & Services,Provisions,On A Roll,24/07/2023,267.30
"Communities, Customer & Commercial Services",Sport & Leisure,Supplies & Services,Provisions,On A Roll,17/07/2023,215.35
"Communities, Customer & Commercial Services",Sport & Leisure,Supplies & Services,Provisions,PASTA KING LIMITED,12/07/2023,150.24
"Communities, Customer & Commercial Services",Sport & Leisure,Supplies & Services,Provisions,ROWLANDS & COMPANY,10/07/2023,140.82
"Communities, Customer & Commercial Services",Sport & Leisure,Supplies & Services,Provisions,ROWLANDS & COMPANY,10/07/2023,105.92
"Communities, Customer & Commercial Services",Sport & Leisure,Supplies & Services,Provisions,ROWLANDS & COMPANY,10/07/2023,118.42
"Communities, Customer & Commercial Services",Sport & Leisure,Supplies & Services,Provisions,ROWLANDS & COMPANY,10/07/2023,126.37
"Communities, Customer & Commercial Services",Sport & Leisure,Supplies & Services,Provisions,ROWLANDS & COMPANY,10/07/2023,196.14
"Communities, Customer & Commercial Services",Sport & Leisure,Supplies & Services,Provisions,ROWLANDS & COMPANY,10/07/2023,107.07
"Communities, Customer & Commercial Services",Sport & Leisure,Supplies & Services,Provisions,ROWLANDS & COMPANY,21/07/2023,115.04
"Communities, Customer & Commercial Services",Sport & Leisure,Supplies & Services,Provisions,ROWLANDS & COMPANY,21/07/2023,121.66
"Communities, Customer & Commercial Services",Sport & Leisure,Supplies & Services,Provisions,ROWLANDS & COMPANY,21/07/2023,111.27
"Communities, Customer & Commercial Services",Sport & Leisure,Supplies & Services,Provisions,ROWLANDS & COMPANY,21/07/2023,121.64
"Communities, Customer & Commercial Services",Sport & Leisure,Supplies & Services,Provisions,ROWLANDS & COMPANY,21/07/2023,180.12
"Communities, Customer & Commercial Services",Sport & Leisure,Supplies & Services,Provisions,ROWLANDS & COMPANY,21/07/2023,108.45
"Communities, Customer & Commercial Services",Sport & Leisure,Supplies & Services,Provisions,ROWLANDS & COMPANY,21/07/2023,117.87
"Communities, Customer & Commercial Services",Sport & Leisure,Supplies & Services,Provisions,ROWLANDS & COMPANY,21/07/2023,153.42
"Communities, Customer & Commercial Services",Sport & Leisure,Supplies & Services,Provisions,ROWLANDS & COMPANY,21/07/2023,164.88
"Communities, Customer & Commercial Services",Sport & Leisure,Supplies & Services,Provisions,ROWLANDS & COMPANY,21/07/2023,122.77
"Communities, Customer & Commercial Services",Sport & Leisure,Supplies & Services,Provisions,ROWLANDS & COMPANY,21/07/2023,118.86
"Communities, Customer & Commercial Services",Sport & Leisure,Supplies & Services,Provisions,ROWLANDS & COMPANY,21/07/2023,146.38
"Communities, Customer & Commercial Services",Sport & Leisure,Supplies & Services,Provisions,ROWLANDS & COMPANY,21/07/2023,110.03
"Communities, Customer & Commercial Services",Sport & Leisure,Supplies & Services,Provisions,ROWLANDS & COMPANY,21/07/2023,132.55
"Communities, Customer & Commercial Services",Sport & Leisure,Supplies & Services,Provisions,ROWLANDS & COMPANY,21/07/2023,111.24
"Communities, Customer & Commercial Services",Sport & Leisure,Supplies & Services,Provisions,ROWLANDS & COMPANY,21/07/2023,283.61
"Communities, Customer & Commercial Services",Sport & Leisure,Supplies & Services,Provisions,ROWLANDS & COMPANY,21/07/2023,220.68
"Communities, Customer & Commercial Services",Sport & Leisure,Supplies & Services,Provisions,ROWLANDS & COMPANY,21/07/2023,121.49
"Communities, Customer & Commercial Services",Sport & Leisure,Supplies & Services,Provisions,ROWLANDS & COMPANY,21/07/2023,116.52
"Communities, Customer & Commercial Services",Sport & Leisure,Supplies & Services,Provisions,ROWLANDS & COMPANY,21/07/2023,115.69
"Communities, Customer & Commercial Services",Sport & Leisure,Supplies & Services,Provisions,ROWLANDS & COMPANY,21/07/2023,180.02
"Communities, Customer & Commercial Services",Sport & Leisure,Supplies & Services,Provisions,ROWLANDS & COMPANY,21/07/2023,153.35
"Communities, Customer & Commercial Services",Sport & Leisure,Supplies & Services,Provisions,ROWLANDS & COMPANY,03/07/2023,125.69
"Communities, Customer & Commercial Services",Sport & Leisure,Supplies & Services,Provisions,ROWLANDS & COMPANY,03/07/2023,113.19
"Communities, Customer & Commercial Services",Sport & Leisure,Supplies & Services,Provisions,ROWLANDS & COMPANY,03/07/2023,116.98
"Communities, Customer & Commercial Services",Sport & Leisure,Supplies & Services,Provisions,ROWLANDS & COMPANY,03/07/2023,127.06
"Communities, Customer & Commercial Services",Sport & Leisure,Supplies & Services,Provisions,ROWLANDS & COMPANY,03/07/2023,134.27
"Communities, Customer & Commercial Services",Sport & Leisure,Supplies & Services,Provisions,ROWLANDS & COMPANY,03/07/2023,183.52
"Communities, Customer & Commercial Services",Sport & Leisure,Supplies & Services,Provisions,ROWLANDS & COMPANY,03/07/2023,114.08
"Communities, Customer & Commercial Services",Sport & Leisure,Supplies & Services,Provisions,ROWLANDS & COMPANY,03/07/2023,160.17
"Communities, Customer & Commercial Services",Sport & Leisure,Supplies & Services,Provisions,ROWLANDS & COMPANY,03/07/2023,109.08
"Communities, Customer & Commercial Services",Sport & Leisure,Supplies & Services,Provisions,ROWLANDS & COMPANY,03/07/2023,116.78
"Communities, Customer & Commercial Services",Sport & Leisure,Supplies & Services,Provisions,ROWLANDS & COMPANY,03/07/2023,114.01
"Communities, Customer & Commercial Services",Sport & Leisure,Supplies & Services,Provisions,ROWLANDS & COMPANY,03/07/2023,109.49
"Communities, Customer & Commercial Services",Sport & Leisure,Supplies & Services,Provisions,ROWLANDS & COMPANY,03/07/2023,165.09
"Communities, Customer & Commercial Services",Sport & Leisure,Supplies & Services,Provisions,ROWLANDS & COMPANY,03/07/2023,162.90
"Communities, Customer & Commercial Services",Sport & Leisure,Supplies & Services,Provisions,ROWLANDS & COMPANY,03/07/2023,119.03
"Communities, Customer & Commercial Services",Sport & Leisure,Supplies & Services,Provisions,ROWLANDS & COMPANY,03/07/2023,324.59
"Communities, Customer & Commercial Services",Sport & Leisure,Supplies & Services,Provisions,ROWLANDS & COMPANY,03/07/2023,187.41
"Communities, Customer & Commercial Services",Sport & Leisure,Supplies & Services,Provisions,ROWLANDS & COMPANY,03/07/2023,327.60
"Communities, Customer & Commercial Services",Sport & Leisure,Supplies & Services,Provisions,ROWLANDS & COMPANY,03/07/2023,103.88
"Communities, Customer & Commercial Services",Sport & Leisure,Supplies & Services,Provisions,ROWLANDS & COMPANY,03/07/2023,124.03
"Communities, Customer & Commercial Services",Sport & Leisure,Supplies & Services,Provisions,ROWLANDS & COMPANY,03/07/2023,120.02
"Communities, Customer & Commercial Services",Sport & Leisure,Supplies & Services,Provisions,ROWLANDS & COMPANY,03/07/2023,105.48
"Communities, Customer & Commercial Services",Sport & Leisure,Supplies & Services,Provisions,ROWLANDS & COMPANY,03/07/2023,139.35
"Communities, Customer & Commercial Services",Sport & Leisure,Supplies & Services,Provisions,ROWLANDS & COMPANY,03/07/2023,145.10
"Communities, Customer & Commercial Services",Sport & Leisure,Supplies & Services,Provisions,ROWLANDS & COMPANY,03/07/2023,164.52
"Communities, Customer & Commercial Services",Sport & Leisure,Supplies & Services,Provisions,ROWLANDS & COMPANY,03/07/2023,149.94
"Communities, Customer & Commercial Services",Sport & Leisure,Supplies & Services,Provisions,ROWLANDS & COMPANY,17/07/2023,201.77
"Communities, Customer & Commercial Services",Sport & Leisure,Supplies & Services,Provisions,ROWLANDS & COMPANY,17/07/2023,133.65
"Communities, Customer & Commercial Services",Sport & Leisure,Supplies & Services,Provisions,ROWLANDS & COMPANY,17/07/2023,153.01
"Communities, Customer & Commercial Services",Sport & Leisure,Supplies & Services,Provisions,ROWLANDS & COMPANY,17/07/2023,126.00
"Communities, Customer & Commercial Services",Sport & Leisure,Supplies & Services,Provisions,ROWLANDS & COMPANY,17/07/2023,133.93
"Communities, Customer & Commercial Services",Sport & Leisure,Supplies & Services,Provisions,ROWLANDS & COMPANY,17/07/2023,134.05
"Communities, Customer & Commercial Services",Sport & Leisure,Supplies & Services,Provisions,ROWLANDS & COMPANY,17/07/2023,140.67
"Communities, Customer & Commercial Services",Sport & Leisure,Supplies & Services,Provisions,ROWLANDS & COMPANY,17/07/2023,104.89
"Communities, Customer & Commercial Services",Sport & Leisure,Supplies & Services,Provisions,ROWLANDS & COMPANY,17/07/2023,189.77
"Communities, Customer & Commercial Services",Sport & Leisure,Supplies & Services,Provisions,ROWLANDS & COMPANY,17/07/2023,178.44
"Communities, Customer & Commercial Services",Sport & Leisure,Supplies & Services,Provisions,ROWLANDS & COMPANY,17/07/2023,107.12
"Communities, Customer & Commercial Services",Sport & Leisure,Supplies & Services,Provisions,ROWLANDS & COMPANY,17/07/2023,102.76
"Communities, Customer & Commercial Services",Sport & Leisure,Supplies & Services,Provisions,ROWLANDS & COMPANY,17/07/2023,114.74
"Communities, Customer & Commercial Services",Sport & Leisure,Supplies & Services,Provisions,ROWLANDS & COMPANY,17/07/2023,126.24
"Communities, Customer & Commercial Services",Sport & Leisure,Supplies & Services,Provisions,ROWLANDS & COMPANY,17/07/2023,156.64
"Communities, Customer & Commercial Services",Sport & Leisure,Supplies & Services,Provisions,ROWLANDS & COMPANY,17/07/2023,123.72
"Communities, Customer & Commercial Services",Sport & Leisure,Supplies & Services,Provisions,ROWLANDS & COMPANY,17/07/2023,166.37
"Communities, Customer & Commercial Services",Sport & Leisure,Supplies & Services,Provisions,ROWLANDS & COMPANY,17/07/2023,116.80
"Communities, Customer & Commercial Services",Sport & Leisure,Supplies & Services,Provisions,ROWLANDS & COMPANY,17/07/2023,130.85
"Communities, Customer & Commercial Services",Sport & Leisure,Supplies & Services,Provisions,ROWLANDS & COMPANY,17/07/2023,232.21
"Communities, Customer & Commercial Services",Sport & Leisure,Supplies & Services,Provisions,ROWLANDS & COMPANY,17/07/2023,105.65
"Communities, Customer & Commercial Services",Sport & Leisure,Supplies & Services,Provisions,ROWLANDS & COMPANY,17/07/2023,112.38
"Communities, Customer & Commercial Services",Sport & Leisure,Supplies & Services,Provisions,ROWLANDS & COMPANY,17/07/2023,171.60
"Communities, Customer & Commercial Services",Sport & Leisure,Supplies & Services,Provisions,ROWLANDS & COMPANY,17/07/2023,155.10
"Communities, Customer & Commercial Services",Sport & Leisure,Supplies & Services,Provisions,ROWLANDS & COMPANY,17/07/2023,321.63
"Communities, Customer & Commercial Services",Sport & Leisure,Supplies & Services,Provisions,ROWLANDS & COMPANY,17/07/2023,231.37
"Communities, Customer & Commercial Services",Sport & Leisure,Supplies & Services,Provisions,ROWLANDS & COMPANY,10/07/2023,126.73
"Communities, Customer & Commercial Services",Sport & Leisure,Supplies & Services,Provisions,ROWLANDS & COMPANY,10/07/2023,204.64
"Communities, Customer & Commercial Services",Sport & Leisure,Supplies & Services,Provisions,ROWLANDS & COMPANY,10/07/2023,179.21
"Communities, Customer & Commercial Services",Sport & Leisure,Supplies & Services,Provisions,ROWLANDS & COMPANY,10/07/2023,158.46
"Communities, Customer & Commercial Services",Sport & Leisure,Supplies & Services,Provisions,ROWLANDS & COMPANY,10/07/2023,151.38
"Communities, Customer & Commercial Services",Sport & Leisure,Supplies & Services,Provisions,ROWLANDS & COMPANY,10/07/2023,114.54
"Communities, Customer & Commercial Services",Sport & Leisure,Supplies & Services,Provisions,ROWLANDS & COMPANY,10/07/2023,120.64
"Communities, Customer & Commercial Services",Sport & Leisure,Supplies & Services,Provisions,ROWLANDS & COMPANY,10/07/2023,102.41
"Communities, Customer & Commercial Services",Sport & Leisure,Supplies & Services,Provisions,ROWLANDS & COMPANY,10/07/2023,284.63
"Communities, Customer & Commercial Services",Sport & Leisure,Supplies & Services,Provisions,ROWLANDS & COMPANY,10/07/2023,-184.68
"Communities, Customer & Commercial Services",Sport & Leisure,Supplies & Services,Provisions,ROWLANDS & COMPANY,10/07/2023,186.57
"Communities, Customer & Commercial Services",Sport & Leisure,Supplies & Services,Provisions,ROWLANDS & COMPANY,10/07/2023,114.59
"Communities, Customer & Commercial Services",Sport & Leisure,Supplies & Services,Provisions,ROWLANDS & COMPANY,10/07/2023,118.23
"Communities, Customer & Commercial Services",Sport & Leisure,Supplies & Services,Provisions,ROWLANDS & COMPANY,10/07/2023,276.78
"Communities, Customer & Commercial Services",Sport & Leisure,Supplies & Services,Provisions,ROWLANDS & COMPANY,10/07/2023,227.80
"Communities, Customer & Commercial Services",Sport & Leisure,Supplies & Services,Provisions,ROWLANDS & COMPANY,10/07/2023,155.30
"Communities, Customer & Commercial Services",Sport & Leisure,Supplies & Services,Provisions,ROWLANDS & COMPANY,10/07/2023,333.44
"Communities, Customer & Commercial Services",Sport & Leisure,Supplies & Services,Provisions,ROWLANDS & COMPANY,10/07/2023,104.85
"Communities, Customer & Commercial Services",Sport & Leisure,Supplies & Services,Provisions,ROWLANDS & COMPANY,10/07/2023,138.72
"Communities, Customer & Commercial Services",Sport & Leisure,Supplies & Services,Provisions,ROWLANDS & COMPANY,10/07/2023,194.51
"Communities, Customer & Commercial Services",Sport & Leisure,Supplies & Services,Provisions,ROWLANDS & COMPANY,10/07/2023,105.31
"Communities, Customer & Commercial Services",Sport & Leisure,Supplies & Services,Provisions,ROWLANDS & COMPANY,10/07/2023,161.29
"Communities, Customer & Commercial Services",Sport & Leisure,Supplies & Services,Provisions,ROWLANDS & COMPANY,10/07/2023,102.75
"Communities, Customer & Commercial Services",Sport & Leisure,Supplies & Services,Provisions,ROWLANDS & COMPANY,10/07/2023,131.08
"Communities, Customer & Commercial Services",Sport & Leisure,Supplies & Services,Provisions,ROWLANDS & COMPANY,10/07/2023,115.34
"Communities, Customer & Commercial Services",Sport & Leisure,Supplies & Services,Provisions,ROWLANDS & COMPANY,10/07/2023,177.20
"Communities, Customer & Commercial Services",Sport & Leisure,Supplies & Services,Provisions,ROWLANDS & COMPANY,10/07/2023,226.65
"Communities, Customer & Commercial Services",Sport & Leisure,Supplies & Services,Provisions,ROWLANDS & COMPANY,10/07/2023,144.57
"Communities, Customer & Commercial Services",Sport & Leisure,Supplies & Services,Provisions,ROWLANDS & COMPANY,10/07/2023,140.29
"Communities, Customer & Commercial Services",Sport & Leisure,Supplies & Services,Provisions,ROWLANDS & COMPANY,10/07/2023,122.68
"Communities, Customer & Commercial Services",Sport & Leisure,Supplies & Services,Provisions,ROWLANDS & COMPANY,10/07/2023,144.19
"Communities, Customer & Commercial Services",Sport & Leisure,Supplies & Services,Provisions,ROWLANDS & COMPANY,10/07/2023,110.53
"Communities, Customer & Commercial Services",Sport & Leisure,Supplies & Services,Provisions,ROWLANDS & COMPANY,10/07/2023,104.87
"Communities, Customer & Commercial Services",Sport & Leisure,Supplies & Services,Provisions,ROWLANDS & COMPANY,10/07/2023,137.25
"Communities, Customer & Commercial Services",Sport & Leisure,Supplies & Services,Provisions,ROWLANDS & COMPANY,10/07/2023,108.73
"Communities, Customer & Commercial Services",Sport & Leisure,Supplies & Services,Provisions,ROWLANDS & COMPANY,10/07/2023,140.17
"Communities, Customer & Commercial Services",Sport & Leisure,Supplies & Services,Provisions,ROWLANDS & COMPANY,10/07/2023,163.17
"Communities, Customer & Commercial Services",Sport & Leisure,Supplies & Services,Provisions,ROWLANDS & COMPANY,10/07/2023,161.62
"Communities, Customer & Commercial Services",Sport & Leisure,Supplies & Services,Provisions,ROWLANDS & COMPANY,10/07/2023,100.50
"Communities, Customer & Commercial Services",Sport & Leisure,Supplies & Services,Provisions,ROWLANDS & COMPANY,10/07/2023,143.51
"Communities, Customer & Commercial Services",Sport & Leisure,Supplies & Services,Provisions,ROWLANDS & COMPANY,10/07/2023,122.52
"Communities, Customer & Commercial Services",Sport & Leisure,Supplies & Services,Provisions,ROWLANDS & COMPANY,10/07/2023,187.75
"Communities, Customer & Commercial Services",Sport & Leisure,Supplies & Services,Provisions,ROWLANDS & COMPANY,10/07/2023,106.63
"Communities, Customer & Commercial Services",Sport & Leisure,Supplies & Services,Provisions,ROWLANDS & COMPANY,10/07/2023,185.81
"Communities, Customer & Commercial Services",Sport & Leisure,Supplies & Services,Provisions,ROWLANDS & COMPANY,10/07/2023,111.76
"Communities, Customer & Commercial Services",Sport & Leisure,Supplies & Services,Provisions,ROWLANDS & COMPANY,10/07/2023,120.64
"Communities, Customer & Commercial Services",Sport & Leisure,Supplies & Services,Provisions,ROWLANDS & COMPANY,10/07/2023,134.46
"Communities, Customer & Commercial Services",Sport & Leisure,Premises-Related Expenditure,Clean Mats & Toilet Requisites,Border Janitorial Supplies Limited,20/07/2023,198.25
"Communities, Customer & Commercial Services",Sport & Leisure,Supplies & Services,Provisions,Delice de France,10/07/2023,316.08
"Communities, Customer & Commercial Services",Sport & Leisure,Supplies & Services,Provisions,Delice de France,10/07/2023,316.08
"Communities, Customer & Commercial Services",Sport & Leisure,Supplies & Services,Provisions,Delice de France,10/07/2023,121.46
"Communities, Customer & Commercial Services",Sport & Leisure,Supplies & Services,Provisions,Delice de France,03/07/2023,295.40
"Communities, Customer & Commercial Services",Sport & Leisure,Supplies & Services,Provisions,Delice de France,03/07/2023,886.80
"Communities, Customer & Commercial Services",Sport & Leisure,Supplies & Services,Provisions,Delice de France,03/07/2023,237.06
"Communities, Customer & Commercial Services",Sport & Leisure,Supplies & Services,Provisions,BIKOLD,06/07/2023,"1,563.15"
"Communities, Customer & Commercial Services",Sport & Leisure,Supplies & Services,Provisions,BIKOLD,06/07/2023,148.69
"Communities, Customer & Commercial Services",Sport & Leisure,Supplies & Services,Provisions,BIKOLD,06/07/2023,162.94
"Communities, Customer & Commercial Services",Sport & Leisure,Supplies & Services,Provisions,BIKOLD,06/07/2023,144.48
"Communities, Customer & Commercial Services",Sport & Leisure,Supplies & Services,Provisions,BIKOLD,06/07/2023,135.20
"Communities, Customer & Commercial Services",Sport & Leisure,Supplies & Services,Provisions,BIKOLD,06/07/2023,100.78
"Communities, Customer & Commercial Services",Sport & Leisure,Supplies & Services,Provisions,BIKOLD,06/07/2023,206.49
"Communities, Customer & Commercial Services",Sport & Leisure,Supplies & Services,Provisions,BIKOLD,06/07/2023,103.43
"Communities, Customer & Commercial Services",Sport & Leisure,Supplies & Services,Provisions,BIKOLD,06/07/2023,151.93
"Communities, Customer & Commercial Services",Sport & Leisure,Supplies & Services,Provisions,BIKOLD,06/07/2023,308.67
"Communities, Customer & Commercial Services",Sport & Leisure,Supplies & Services,Provisions,BIKOLD,06/07/2023,327.29
"Communities, Customer & Commercial Services",Sport & Leisure,Supplies & Services,Provisions,BIKOLD,06/07/2023,135.32
"Communities, Customer & Commercial Services",Sport & Leisure,Supplies & Services,Provisions,BIKOLD,06/07/2023,681.78
"Communities, Customer & Commercial Services",Sport & Leisure,Supplies & Services,Provisions,BIKOLD,06/07/2023,239.05
"Communities, Customer & Commercial Services",Sport & Leisure,Supplies & Services,Provisions,BIKOLD,06/07/2023,451.27
"Communities, Customer & Commercial Services",Sport & Leisure,Supplies & Services,Provisions,BIKOLD,06/07/2023,222.54
"Communities, Customer & Commercial Services",Sport & Leisure,Supplies & Services,Provisions,BIKOLD,06/07/2023,226.79
"Communities, Customer & Commercial Services",Sport & Leisure,Supplies & Services,Provisions,BIKOLD,06/07/2023,279.93
"Communities, Customer & Commercial Services",Sport & Leisure,Supplies & Services,Provisions,BIKOLD,06/07/2023,478.16
"Communities, Customer & Commercial Services",Sport & Leisure,Supplies & Services,Provisions,BIKOLD,06/07/2023,212.09
"Communities, Customer & Commercial Services",Sport & Leisure,Supplies & Services,Provisions,BIKOLD,06/07/2023,306.18
"Communities, Customer & Commercial Services",Sport & Leisure,Supplies & Services,Provisions,BIKOLD,14/07/2023,201.58
"Communities, Customer & Commercial Services",Sport & Leisure,Supplies & Services,Provisions,BIKOLD,14/07/2023,358.21
"Communities, Customer & Commercial Services",Sport & Leisure,Supplies & Services,Provisions,BIKOLD,14/07/2023,204.21
"Communities, Customer & Commercial Services",Sport & Leisure,Supplies & Services,Provisions,BIKOLD,14/07/2023,254.68
"Communities, Customer & Commercial Services",Sport & Leisure,Supplies & Services,Provisions,BIKOLD,14/07/2023,701.12
"Communities, Customer & Commercial Services",Sport & Leisure,Supplies & Services,Provisions,BIKOLD,14/07/2023,180.60
"Communities, Customer & Commercial Services",Sport & Leisure,Supplies & Services,Provisions,BIKOLD,14/07/2023,312.58
"Communities, Customer & Commercial Services",Sport & Leisure,Supplies & Services,Provisions,BIKOLD,14/07/2023,222.42
"Communities, Customer & Commercial Services",Sport & Leisure,Supplies & Services,Provisions,BIKOLD,14/07/2023,513.00
"Communities, Customer & Commercial Services",Sport & Leisure,Supplies & Services,Provisions,BIKOLD,14/07/2023,282.41
"Communities, Customer & Commercial Services",Sport & Leisure,Supplies & Services,Provisions,BIKOLD,14/07/2023,116.73
"Communities, Customer & Commercial Services",Sport & Leisure,Supplies & Services,Provisions,BIKOLD,14/07/2023,"1,210.35"
"Communities, Customer & Commercial Services",Sport & Leisure,Supplies & Services,Provisions,BIKOLD,14/07/2023,192.81
"Communities, Customer & Commercial Services",Sport & Leisure,Supplies & Services,Provisions,BIKOLD,14/07/2023,532.97
"Communities, Customer & Commercial Services",Sport & Leisure,Supplies & Services,Provisions,BIKOLD,14/07/2023,791.77
"Communities, Customer & Commercial Services",Sport & Leisure,Supplies & Services,Provisions,BIKOLD,14/07/2023,339.74
"Communities, Customer & Commercial Services",Sport & Leisure,Supplies & Services,Provisions,BIKOLD,14/07/2023,110.52
"Communities, Customer & Commercial Services",Sport & Leisure,Supplies & Services,Provisions,BIKOLD,14/07/2023,209.73
"Communities, Customer & Commercial Services",Sport & Leisure,Supplies & Services,Provisions,BIKOLD,20/07/2023,169.60
"Communities, Customer & Commercial Services",Sport & Leisure,Supplies & Services,Provisions,BIKOLD,20/07/2023,244.12
"Communities, Customer & Commercial Services",Sport & Leisure,Supplies & Services,Provisions,BIKOLD,20/07/2023,274.70
"Communities, Customer & Commercial Services",Sport & Leisure,Supplies & Services,Provisions,BIKOLD,20/07/2023,307.80
"Communities, Customer & Commercial Services",Sport & Leisure,Supplies & Services,Provisions,BIKOLD,20/07/2023,205.99
"Communities, Customer & Commercial Services",Sport & Leisure,Supplies & Services,Provisions,BIKOLD,20/07/2023,138.34
"Communities, Customer & Commercial Services",Sport & Leisure,Supplies & Services,Provisions,BIKOLD,20/07/2023,583.08
"Communities, Customer & Commercial Services",Sport & Leisure,Supplies & Services,Provisions,BIKOLD,20/07/2023,718.79
"Communities, Customer & Commercial Services",Sport & Leisure,Supplies & Services,Provisions,BIKOLD,20/07/2023,550.34
"Communities, Customer & Commercial Services",Sport & Leisure,Supplies & Services,Provisions,BIKOLD,20/07/2023,230.89
"Communities, Customer & Commercial Services",Sport & Leisure,Supplies & Services,Provisions,BIKOLD,20/07/2023,791.53
"Communities, Customer & Commercial Services",Sport & Leisure,Supplies & Services,Provisions,BIKOLD,20/07/2023,148.91
"Communities, Customer & Commercial Services",Sport & Leisure,Supplies & Services,Provisions,BIKOLD,20/07/2023,226.60
"Communities, Customer & Commercial Services",Sport & Leisure,Supplies & Services,Provisions,BIKOLD,20/07/2023,125.71
"Communities, Customer & Commercial Services",Sport & Leisure,Supplies & Services,Provisions,BIKOLD,20/07/2023,197.28
"Communities, Customer & Commercial Services",Sport & Leisure,Supplies & Services,Provisions,BIKOLD,20/07/2023,376.76
"Communities, Customer & Commercial Services",Sport & Leisure,Supplies & Services,Provisions,BIKOLD,20/07/2023,379.81
"Communities, Customer & Commercial Services",Sport & Leisure,Supplies & Services,Provisions,BIKOLD,27/07/2023,126.66
"Communities, Customer & Commercial Services",Sport & Leisure,Supplies & Services,Provisions,Handmade Speciality Products Ltd,03/07/2023,341.48
"Communities, Customer & Commercial Services",Sport & Leisure,Supplies & Services,Provisions,J S Catering Butchers,10/07/2023,111.30
"Communities, Customer & Commercial Services",Sport & Leisure,Supplies & Services,Provisions,On A Roll,10/07/2023,295.05
"Communities, Customer & Commercial Services",Sport & Leisure,Supplies & Services,Provisions,On A Roll,10/07/2023,112.85
"Communities, Customer & Commercial Services",Sport & Leisure,Supplies & Services,Provisions,On A Roll,10/07/2023,305.95
"Communities, Customer & Commercial Services",Sport & Leisure,Supplies & Services,Provisions,On A Roll,24/07/2023,129.21
"Communities, Customer & Commercial Services",Sport & Leisure,Supplies & Services,Provisions,On A Roll,24/07/2023,152.80
"Communities, Customer & Commercial Services",Sport & Leisure,Supplies & Services,Provisions,On A Roll,24/07/2023,654.45
"Communities, Customer & Commercial Services",Sport & Leisure,Supplies & Services,Provisions,On A Roll,17/07/2023,428.01
"Communities, Customer & Commercial Services",Sport & Leisure,Supplies & Services,Provisions,On A Roll,17/07/2023,473.83
"Communities, Customer & Commercial Services",Sport & Leisure,Supplies & Services,Provisions,On A Roll,17/07/2023,299.95
"Communities, Customer & Commercial Services",Sport & Leisure,Supplies & Services,Provisions,PASTA KING LIMITED,10/07/2023,413.16
"Communities, Customer & Commercial Services",Sport & Leisure,Supplies & Services,Crockery/Hardware/Light Equip,PLANGLOW LTD,03/07/2023,129.80
"Communities, Customer & Commercial Services",Sport & Leisure,Supplies & Services,Crockery/Hardware/Light Equip,PLANGLOW LTD,13/07/2023,506.22
"Communities, Customer & Commercial Services",Sport & Leisure,Supplies & Services,Crockery/Hardware/Light Equip,PLANGLOW LTD,13/07/2023,259.60
"Communities, Customer & Commercial Services",Sport & Leisure,Supplies & Services,Provisions,ROWLANDS & COMPANY,17/07/2023,146.87
"Communities, Customer & Commercial Services",Sport & Leisure,Supplies & Services,Provisions,ROWLANDS & COMPANY,10/07/2023,103.39
"Communities, Customer & Commercial Services",Sport & Leisure,Supplies & Services,Provisions,ROWLANDS & COMPANY,10/07/2023,287.10
"Communities, Customer & Commercial Services",Sport & Leisure,Supplies & Services,Provisions,ROWLANDS & COMPANY,10/07/2023,229.84
"Communities, Customer & Commercial Services",Sport & Leisure,Supplies & Services,Provisions,ROWLANDS & COMPANY,10/07/2023,153.76
"Communities, Customer & Commercial Services",Sport & Leisure,Supplies & Services,Provisions,ROWLANDS & COMPANY,10/07/2023,204.75
"Communities, Customer & Commercial Services",Sport & Leisure,Supplies & Services,Provisions,T FOOD SERVICE LTD,10/07/2023,"1,084.55"
"Communities, Customer & Commercial Services",Sport & Leisure,Supplies & Services,Provisions,T FOOD SERVICE LTD,10/07/2023,193.32
"Communities, Customer & Commercial Services",Sport & Leisure,Supplies & Services,Provisions,T FOOD SERVICE LTD,10/07/2023,170.05
"Communities, Customer & Commercial Services",Sport & Leisure,Supplies & Services,Provisions,T FOOD SERVICE LTD,10/07/2023,"1,124.30"
"Communities, Customer & Commercial Services",Sport & Leisure,Supplies & Services,Provisions,T FOOD SERVICE LTD,10/07/2023,197.72
"Communities, Customer & Commercial Services",Sport & Leisure,Supplies & Services,Provisions,T FOOD SERVICE LTD,10/07/2023,"1,059.00"
"Communities, Customer & Commercial Services",Sport & Leisure,Supplies & Services,Provisions,T FOOD SERVICE LTD,13/07/2023,201.40
"Communities, Customer & Commercial Services",Sport & Leisure,Supplies & Services,Provisions,T FOOD SERVICE LTD,13/07/2023,"1,148.87"
"Communities, Customer & Commercial Services",Sport & Leisure,Supplies & Services,Provisions,T FOOD SERVICE LTD,28/07/2023,396.33
"Communities, Customer & Commercial Services",Sport & Leisure,Supplies & Services,Crockery/Hardware/Light Equip,Vegware,10/07/2023,252.00
"Communities, Customer & Commercial Services",Sport & Leisure,Supplies & Services,Crockery/Hardware/Light Equip,Vegware,18/07/2023,630.00
"Communities, Customer & Commercial Services",Sport & Leisure,Supplies & Services,Crockery/Hardware/Light Equip,Vegware,17/07/2023,441.60
"Communities, Customer & Commercial Services",Sport & Leisure,Supplies & Services,Protective Clothing,MYWORKWEAR,04/07/2023,603.41
"Communities, Customer & Commercial Services",Sport & Leisure,Premises-Related Expenditure,Clean Mats & Toilet Requisites,Border Janitorial Supplies Limited,20/07/2023,579.90
"Communities, Customer & Commercial Services",Sport & Leisure,Premises-Related Expenditure,Clean Mats & Toilet Requisites,Border Janitorial Supplies Limited,20/07/2023,108.45
"Communities, Customer & Commercial Services",Sport & Leisure,Premises-Related Expenditure,Clean Mats & Toilet Requisites,Border Janitorial Supplies Limited,13/07/2023,268.92
"Communities, Customer & Commercial Services",Sport & Leisure,Premises-Related Expenditure,Clean Mats & Toilet Requisites,Border Janitorial Supplies Limited,04/07/2023,144.87
"Communities, Customer & Commercial Services",Sport & Leisure,Premises-Related Expenditure,Clean Mats & Toilet Requisites,Border Janitorial Supplies Limited,04/07/2023,492.09
"Communities, Customer & Commercial Services",Sport & Leisure,Premises-Related Expenditure,Clean Mats & Toilet Requisites,Border Janitorial Supplies Limited,04/07/2023,168.32
"Communities, Customer & Commercial Services",Sport & Leisure,Premises-Related Expenditure,Clean Mats & Toilet Requisites,Border Janitorial Supplies Limited,04/07/2023,257.79
"Communities, Customer & Commercial Services",Sport & Leisure,Premises-Related Expenditure,Clean Mats & Toilet Requisites,Border Janitorial Supplies Limited,04/07/2023,102.21
"Communities, Customer & Commercial Services",Sport & Leisure,Premises-Related Expenditure,Clean Mats & Toilet Requisites,Border Janitorial Supplies Limited,04/07/2023,842.73
"Communities, Customer & Commercial Services",Sport & Leisure,Premises-Related Expenditure,Clean Mats & Toilet Requisites,Border Janitorial Supplies Limited,04/07/2023,270.95
"Communities, Customer & Commercial Services",Sport & Leisure,Premises-Related Expenditure,Clean Mats & Toilet Requisites,Border Janitorial Supplies Limited,04/07/2023,129.78
"Communities, Customer & Commercial Services",Sport & Leisure,Premises-Related Expenditure,Clean Mats & Toilet Requisites,Border Janitorial Supplies Limited,04/07/2023,175.21
"Communities, Customer & Commercial Services",Sport & Leisure,Premises-Related Expenditure,Clean Mats & Toilet Requisites,Border Janitorial Supplies Limited,04/07/2023,179.74
"Communities, Customer & Commercial Services",Sport & Leisure,Premises-Related Expenditure,Clean Mats & Toilet Requisites,Border Janitorial Supplies Limited,04/07/2023,184.60
"Communities, Customer & Commercial Services",Sport & Leisure,Premises-Related Expenditure,Clean Mats & Toilet Requisites,Border Janitorial Supplies Limited,04/07/2023,239.96
"Communities, Customer & Commercial Services",Sport & Leisure,Premises-Related Expenditure,Clean Mats & Toilet Requisites,Border Janitorial Supplies Limited,20/07/2023,483.31
"Communities, Customer & Commercial Services",Sport & Leisure,Premises-Related Expenditure,Clean Mats & Toilet Requisites,Border Janitorial Supplies Limited,20/07/2023,574.25
"Communities, Customer & Commercial Services",Sport & Leisure,Premises-Related Expenditure,Clean Mats & Toilet Requisites,Border Janitorial Supplies Limited,21/07/2023,157.00
"Communities, Customer & Commercial Services",Sport & Leisure,Premises-Related Expenditure,Clean Mats & Toilet Requisites,Border Janitorial Supplies Limited,21/07/2023,191.26
"Communities, Customer & Commercial Services",Sport & Leisure,Premises-Related Expenditure,Clean Mats & Toilet Requisites,Border Janitorial Supplies Limited,31/07/2023,127.08
"Communities, Customer & Commercial Services",Sport & Leisure,Premises-Related Expenditure,Clean Mats & Toilet Requisites,Border Janitorial Supplies Limited,31/07/2023,289.00
"Communities, Customer & Commercial Services",Sport & Leisure,Premises-Related Expenditure,Clean Mats & Toilet Requisites,Border Janitorial Supplies Limited,31/07/2023,784.00
"Communities, Customer & Commercial Services",Sport & Leisure,Premises-Related Expenditure,Clean Mats & Toilet Requisites,Border Janitorial Supplies Limited,11/07/2023,283.13
"Communities, Customer & Commercial Services",Sport & Leisure,Premises-Related Expenditure,Clean Mats & Toilet Requisites,Border Janitorial Supplies Limited,13/07/2023,226.41
"Communities, Customer & Commercial Services",Sport & Leisure,Premises-Related Expenditure,Clean Mats & Toilet Requisites,Border Janitorial Supplies Limited,13/07/2023,271.70
"Communities, Customer & Commercial Services",Sport & Leisure,Premises-Related Expenditure,Clean Mats & Toilet Requisites,Border Janitorial Supplies Limited,13/07/2023,464.07
"Communities, Customer & Commercial Services",Sport & Leisure,Premises-Related Expenditure,Clean Mats & Toilet Requisites,Border Janitorial Supplies Limited,04/07/2023,213.90
"Communities, Customer & Commercial Services",Sport & Leisure,Premises-Related Expenditure,Clean Mats & Toilet Requisites,Border Janitorial Supplies Limited,04/07/2023,255.20
"Communities, Customer & Commercial Services",Sport & Leisure,Premises-Related Expenditure,Clean Mats & Toilet Requisites,Border Janitorial Supplies Limited,04/07/2023,528.66
"Communities, Customer & Commercial Services",Sport & Leisure,Premises-Related Expenditure,Clean Mats & Toilet Requisites,Border Janitorial Supplies Limited,05/07/2023,359.08
"Communities, Customer & Commercial Services",Sport & Leisure,Premises-Related Expenditure,Clean Mats & Toilet Requisites,Border Janitorial Supplies Limited,05/07/2023,289.10
"Communities, Customer & Commercial Services",Sport & Leisure,Premises-Related Expenditure,Clean Mats & Toilet Requisites,Border Janitorial Supplies Limited,05/07/2023,116.14
"Communities, Customer & Commercial Services",Sport & Leisure,Premises-Related Expenditure,Clean Mats & Toilet Requisites,Border Janitorial Supplies Limited,05/07/2023,688.54
"Communities, Customer & Commercial Services",Sport & Leisure,Premises-Related Expenditure,Clean Mats & Toilet Requisites,Border Janitorial Supplies Limited,05/07/2023,107.62
"Communities, Customer & Commercial Services",Sport & Leisure,Premises-Related Expenditure,Clean Mats & Toilet Requisites,Border Janitorial Supplies Limited,05/07/2023,337.66
"Communities, Customer & Commercial Services",Sport & Leisure,Premises-Related Expenditure,Clean Mats & Toilet Requisites,Border Janitorial Supplies Limited,20/07/2023,177.23
"Communities, Customer & Commercial Services",Sport & Leisure,Premises-Related Expenditure,Clean Mats & Toilet Requisites,Border Janitorial Supplies Limited,21/07/2023,108.27
"Communities, Customer & Commercial Services",Sport & Leisure,Premises-Related Expenditure,Clean Mats & Toilet Requisites,Border Janitorial Supplies Limited,31/07/2023,268.42
"Communities, Customer & Commercial Services",Sport & Leisure,Premises-Related Expenditure,Clean Mats & Toilet Requisites,Border Janitorial Supplies Limited,27/07/2023,"3,103.42"
"Communities, Customer & Commercial Services",Sport & Leisure,Premises-Related Expenditure,Clean Mats & Toilet Requisites,Border Janitorial Supplies Limited,27/07/2023,105.93
"Communities, Customer & Commercial Services",Sport & Leisure,Supplies & Services,Equipment - Repair,THE CLEAN MACHINE DIRECT LTD,21/07/2023,145.50
"Communities, Customer & Commercial Services",Sport & Leisure,Premises-Related Expenditure,Clean Mats & Toilet Requisites,Border Janitorial Supplies Limited,13/07/2023,286.41
"Communities, Customer & Commercial Services",Sport & Leisure,Premises-Related Expenditure,Clean Mats & Toilet Requisites,Border Janitorial Supplies Limited,13/07/2023,132.60
"Communities, Customer & Commercial Services",Sport & Leisure,Premises-Related Expenditure,Clean Mats & Toilet Requisites,Border Janitorial Supplies Limited,20/07/2023,100.45
"Communities, Customer & Commercial Services",Sport & Leisure,Premises-Related Expenditure,Clean Mats & Toilet Requisites,Border Janitorial Supplies Limited,27/07/2023,"1,036.00"
"Communities, Customer & Commercial Services",Sport & Leisure,Premises-Related Expenditure,Clean Mats & Toilet Requisites,Border Janitorial Supplies Limited,20/07/2023,101.49
"Communities, Customer & Commercial Services",Sport & Leisure,Premises-Related Expenditure,Clean Mats & Toilet Requisites,Border Janitorial Supplies Limited,07/07/2023,290.20
"Communities, Customer & Commercial Services",Sport & Leisure,Premises-Related Expenditure,Clean Mats & Toilet Requisites,Border Janitorial Supplies Limited,07/07/2023,220.55
"Communities, Customer & Commercial Services",Sport & Leisure,Premises-Related Expenditure,Clean Mats & Toilet Requisites,Border Janitorial Supplies Limited,07/07/2023,142.91
"Communities, Customer & Commercial Services",Sport & Leisure,Premises-Related Expenditure,Clean Mats & Toilet Requisites,Border Janitorial Supplies Limited,04/07/2023,181.53
"Communities, Customer & Commercial Services",Sport & Leisure,Premises-Related Expenditure,Clean Mats & Toilet Requisites,Border Janitorial Supplies Limited,04/07/2023,154.47
"Communities, Customer & Commercial Services",Sport & Leisure,Premises-Related Expenditure,Clean Mats & Toilet Requisites,Border Janitorial Supplies Limited,04/07/2023,213.14
"Communities, Customer & Commercial Services",Sport & Leisure,Premises-Related Expenditure,Clean Mats & Toilet Requisites,Border Janitorial Supplies Limited,04/07/2023,255.78
"Communities, Customer & Commercial Services",Sport & Leisure,Premises-Related Expenditure,Clean Mats & Toilet Requisites,Border Janitorial Supplies Limited,04/07/2023,211.84
"Communities, Customer & Commercial Services",Sport & Leisure,Premises-Related Expenditure,Clean Mats & Toilet Requisites,Border Janitorial Supplies Limited,04/07/2023,143.19
"Communities, Customer & Commercial Services",Sport & Leisure,Premises-Related Expenditure,Clean Mats & Toilet Requisites,Border Janitorial Supplies Limited,04/07/2023,441.57
"Communities, Customer & Commercial Services",Sport & Leisure,Premises-Related Expenditure,Clean Mats & Toilet Requisites,Border Janitorial Supplies Limited,04/07/2023,176.71
"Communities, Customer & Commercial Services",Sport & Leisure,Premises-Related Expenditure,Clean Mats & Toilet Requisites,Border Janitorial Supplies Limited,04/07/2023,142.27
"Communities, Customer & Commercial Services",Sport & Leisure,Premises-Related Expenditure,Clean Mats & Toilet Requisites,Border Janitorial Supplies Limited,04/07/2023,158.55
"Communities, Customer & Commercial Services",Sport & Leisure,Premises-Related Expenditure,Clean Mats & Toilet Requisites,Border Janitorial Supplies Limited,04/07/2023,174.16
"Communities, Customer & Commercial Services",Sport & Leisure,Premises-Related Expenditure,Clean Mats & Toilet Requisites,Border Janitorial Supplies Limited,04/07/2023,121.54
"Communities, Customer & Commercial Services",Sport & Leisure,Premises-Related Expenditure,Clean Mats & Toilet Requisites,Border Janitorial Supplies Limited,04/07/2023,178.79
"Communities, Customer & Commercial Services",Sport & Leisure,Premises-Related Expenditure,Clean Mats & Toilet Requisites,Border Janitorial Supplies Limited,04/07/2023,246.83
"Communities, Customer & Commercial Services",Sport & Leisure,Premises-Related Expenditure,Clean Mats & Toilet Requisites,Border Janitorial Supplies Limited,04/07/2023,277.20
"Communities, Customer & Commercial Services",Sport & Leisure,Premises-Related Expenditure,Clean Mats & Toilet Requisites,Border Janitorial Supplies Limited,20/07/2023,318.82
"Communities, Customer & Commercial Services",Sport & Leisure,Premises-Related Expenditure,Clean Mats & Toilet Requisites,Border Janitorial Supplies Limited,21/07/2023,101.71
"Communities, Customer & Commercial Services",Sport & Leisure,Premises-Related Expenditure,Clean Mats & Toilet Requisites,Border Janitorial Supplies Limited,21/07/2023,104.17
"Communities, Customer & Commercial Services",Sport & Leisure,Premises-Related Expenditure,Clean Mats & Toilet Requisites,Border Janitorial Supplies Limited,21/07/2023,148.65
"Communities, Customer & Commercial Services",Sport & Leisure,Premises-Related Expenditure,Clean Mats & Toilet Requisites,Border Janitorial Supplies Limited,26/07/2023,258.26
"Communities, Customer & Commercial Services",Sport & Leisure,Premises-Related Expenditure,Clean Mats & Toilet Requisites,Border Janitorial Supplies Limited,26/07/2023,165.65
"Communities, Customer & Commercial Services",Sport & Leisure,Premises-Related Expenditure,Clean Mats & Toilet Requisites,Border Janitorial Supplies Limited,07/07/2023,546.14
"Communities, Customer & Commercial Services",Sport & Leisure,Premises-Related Expenditure,R&M -Building Other,COOL SERVICES LTD,10/07/2023,230.00
"Communities, Customer & Commercial Services",Sport & Leisure,Supplies & Services,Libraries Book Fund,Charnwood Instrumentation Services Ltd,24/07/2023,541.00
"Communities, Customer & Commercial Services",Sport & Leisure,Supplies & Services,Provisions,BIKOLD,06/07/2023,107.34
"Communities, Customer & Commercial Services",Sport & Leisure,Supplies & Services,Provisions,BIKOLD,27/07/2023,212.55
"Communities, Customer & Commercial Services",Sport & Leisure,Supplies & Services,Provisions,Handmade Speciality Products Ltd,12/07/2023,361.79
"Communities, Customer & Commercial Services",Sport & Leisure,Supplies & Services,Crockery/Hardware/Light Equip,PLANGLOW LTD,13/07/2023,313.42
"Communities, Customer & Commercial Services",Sport & Leisure,Premises-Related Expenditure,Electricity,West Mercia Energy,24/07/2023,411.18
"Communities, Customer & Commercial Services",Sport & Leisure,Supplies & Services,Other Materials,AMENITY & HORTICULTURAL SERVICES LTD,04/07/2023,"3,572.00"
"Communities, Customer & Commercial Services",Sport & Leisure,Supplies & Services,Other Materials,AMENITY & HORTICULTURAL SERVICES LTD,03/07/2023,"3,572.00"
"Communities, Customer & Commercial Services",Sport & Leisure,Supplies & Services,Sub Contractors,JCE & SONS LTD,17/07/2023,600.00
"Communities, Customer & Commercial Services",Sport & Leisure,Supplies & Services,Other Materials,PROVAC CLEANING SUPPLIES LTD,28/07/2023,481.14
"Communities, Customer & Commercial Services",Sport & Leisure,Supplies & Services,Sub Contractors,Security Wise Ltd,24/07/2023,204.00
"Communities, Customer & Commercial Services",Sport & Leisure,Supplies & Services,Sub Contractors,SPLAY LTD,05/07/2023,"1,649.54"
"Communities, Customer & Commercial Services",Sport & Leisure,Supplies & Services,Sub Contractors,Waterplay Solutions Limited,27/07/2023,550.00
"Communities, Customer & Commercial Services",Sport & Leisure,Supplies & Services,Sub Contractors,W Sawmill & Nursery,04/07/2023,"2,177.71"
"Communities, Customer & Commercial Services",Sport & Leisure,Supplies & Services,Payment Of Income Collected,ABRAHAM DARBY ACADEMY ,28/07/2023,"5,114.00"
"Communities, Customer & Commercial Services",Sport & Leisure,Supplies & Services,Chemicals/Cleaning Products,BRENNTAG UK LIMITED,15/07/2023,"2,632.00"
"Communities, Customer & Commercial Services",Sport & Leisure,Supplies & Services,Equipment - Purchase,LOCSAFE SECURITY SYSTEMS,27/07/2023,282.00
"Communities, Customer & Commercial Services",Sport & Leisure,Supplies & Services,Equipment - Purchase,Id verde,26/07/2023,"1,098.00"
"Communities, Customer & Commercial Services",Sport & Leisure,Premises-Related Expenditure,Grounds Maint - Sports Pitches,Technical Surfaces Ltd,03/07/2023,513.00
"Communities, Customer & Commercial Services",Sport & Leisure,Supplies & Services,Chemicals/Cleaning Products,Border Janitorial Supplies Limited,24/07/2023,132.05
"Communities, Customer & Commercial Services",Sport & Leisure,Supplies & Services,Chemicals/Cleaning Products,Border Janitorial Supplies Limited,28/07/2023,176.94
"Communities, Customer & Commercial Services",Sport & Leisure,Supplies & Services,Chemicals/Cleaning Products,BRENNTAG UK LIMITED,14/07/2023,611.85
"Communities, Customer & Commercial Services",Sport & Leisure,Supplies & Services,Protective Clothing,CORPORATE TOGS LTD,05/07/2023,457.50
"Communities, Customer & Commercial Services",Sport & Leisure,Supplies & Services,Equipment - Purchase,SKIPS TELFORD LTD,24/07/2023,135.00
"Communities, Customer & Commercial Services",Sport & Leisure,Supplies & Services,Items For Resale,Splash About International Limited,14/07/2023,158.40
"Communities, Customer & Commercial Services",Sport & Leisure,Supplies & Services,Licences,L M Fitness UK Ltd,17/07/2023,650.00
"Communities, Customer & Commercial Services",Sport & Leisure,Supplies & Services,Equipment - Purchase,We Do Tennis CIC,28/07/2023,127.90
"Communities, Customer & Commercial Services",Sport & Leisure,Supplies & Services,Flex Charges,Bramble Hub Limited,13/07/2023,"7,848.00"
"Communities, Customer & Commercial Services",Sport & Leisure,Supplies & Services,Flex Charges,Bramble Hub Limited,13/07/2023,"16,466.66"
"Communities, Customer & Commercial Services",Sport & Leisure,Supplies & Services,Flex Charges,Bramble Hub Limited,13/07/2023,"5,778.00"
"Communities, Customer & Commercial Services",Sport & Leisure,Supplies & Services,Equipment - Purchase,Gladstone MRM Ltd,31/07/2023,"1,495.00"
"Communities, Customer & Commercial Services",Sport & Leisure,Supplies & Services,Concessionary Travel,THAMES CARD TECHNOLOGY LTD,31/07/2023,"2,168.50"
"Communities, Customer & Commercial Services",Sport & Leisure,Supplies & Services,Equipment - Purchase,GRANVILLE CONSTRUCTION & MAINTENANCE LTD,13/07/2023,"2,220.00"
"Communities, Customer & Commercial Services",Sport & Leisure,Supplies & Services,Equipment - Purchase,GRANVILLE CONSTRUCTION & MAINTENANCE LTD,13/07/2023,"2,065.00"
"Communities, Customer & Commercial Services",Sport & Leisure,Supplies & Services,Equipment - Purchase,JCE & SONS LTD,24/07/2023,"1,596.20"
"Communities, Customer & Commercial Services",Sport & Leisure,Supplies & Services,Equipment - Purchase,SKIPS TELFORD LTD,13/07/2023,220.00
"Communities, Customer & Commercial Services",Sport & Leisure,Supplies & Services,Equipment - Purchase,The Telford Langley School,27/07/2023,690.00
"Communities, Customer & Commercial Services",Sport & Leisure,Supplies & Services,Equipment - Purchase,NOBRIDGE LTD,07/07/2023,"6,995.00"
"Communities, Customer & Commercial Services",Sport & Leisure,Supplies & Services,Equipment - Purchase,NOBRIDGE LTD,05/07/2023,600.00
"Communities, Customer & Commercial Services",Sport & Leisure,Supplies & Services,Equipment - Hire,OAKLEYS LTD,07/07/2023,639.98
"Communities, Customer & Commercial Services",Sport & Leisure,Supplies & Services,Equipment - Hire,OAKLEYS LTD,31/07/2023,639.98
"Communities, Customer & Commercial Services",Sport & Leisure,Premises-Related Expenditure,R&M WC Planned,Agrovista UK LTD,07/07/2023,126.42
"Communities, Customer & Commercial Services",Sport & Leisure,Premises-Related Expenditure,R&M WC Planned,Agrovista UK LTD,26/07/2023,290.95
"Communities, Customer & Commercial Services",Sport & Leisure,Premises-Related Expenditure,R&M WC Planned,Agrovista UK LTD,26/07/2023,"3,500.00"
"Communities, Customer & Commercial Services",Sport & Leisure,Premises-Related Expenditure,R&M WC Planned,Agrovista UK LTD,26/07/2023,522.00
"Communities, Customer & Commercial Services",Sport & Leisure,Transport-Related Expenditure,Fuel,Butler Fuels,07/07/2023,"1,171.80"
"Communities, Customer & Commercial Services",Sport & Leisure,Transport-Related Expenditure,"Fees, Plating / Mot�s",Butler Fuels,07/07/2023,"1,151.36"
"Communities, Customer & Commercial Services",Sport & Leisure,Transport-Related Expenditure,Servicing & Repairs V&P,C STORES LTD,07/07/2023,144.64
"Communities, Customer & Commercial Services",Sport & Leisure,Transport-Related Expenditure,Servicing & Repairs V&P,C STORES LTD,07/07/2023,131.10
"Communities, Customer & Commercial Services",Sport & Leisure,Transport-Related Expenditure,Servicing & Repairs V&P,C STORES LTD,07/07/2023,168.85
"Communities, Customer & Commercial Services",Sport & Leisure,Transport-Related Expenditure,Servicing & Repairs V&P,C STORES LTD,04/07/2023,203.53
"Communities, Customer & Commercial Services",Sport & Leisure,Supplies & Services,Provisions,Delice de France,03/07/2023,451.36
"Communities, Customer & Commercial Services",Sport & Leisure,Supplies & Services,Provisions,Delice de France,26/07/2023,235.00
"Communities, Customer & Commercial Services",Sport & Leisure,Supplies & Services,Provisions,BIKOLD,06/07/2023,244.16
"Communities, Customer & Commercial Services",Sport & Leisure,Supplies & Services,Provisions,BIKOLD,06/07/2023,269.35
"Communities, Customer & Commercial Services",Sport & Leisure,Supplies & Services,Provisions,BIKOLD,06/07/2023,100.56
"Communities, Customer & Commercial Services",Sport & Leisure,Supplies & Services,Provisions,BIKOLD,14/07/2023,290.17
"Communities, Customer & Commercial Services",Sport & Leisure,Supplies & Services,Provisions,BIKOLD,14/07/2023,218.29
"Communities, Customer & Commercial Services",Sport & Leisure,Supplies & Services,Provisions,BIKOLD,14/07/2023,185.73
"Communities, Customer & Commercial Services",Sport & Leisure,Supplies & Services,Provisions,BIKOLD,20/07/2023,181.50
"Communities, Customer & Commercial Services",Sport & Leisure,Supplies & Services,Provisions,BIKOLD,20/07/2023,114.22
"Communities, Customer & Commercial Services",Sport & Leisure,Supplies & Services,Provisions,BIKOLD,20/07/2023,302.15
"Communities, Customer & Commercial Services",Sport & Leisure,Supplies & Services,Provisions,BIKOLD,20/07/2023,167.20
"Communities, Customer & Commercial Services",Sport & Leisure,Supplies & Services,Provisions,BIKOLD,27/07/2023,151.88
"Communities, Customer & Commercial Services",Sport & Leisure,Supplies & Services,Provisions,BIKOLD,27/07/2023,513.31
"Communities, Customer & Commercial Services",Sport & Leisure,Supplies & Services,Provisions,BIKOLD,27/07/2023,294.28
"Communities, Customer & Commercial Services",Sport & Leisure,Supplies & Services,Provisions,BIKOLD,27/07/2023,251.46
"Communities, Customer & Commercial Services",Sport & Leisure,Supplies & Services,Provisions,BIKOLD,27/07/2023,356.26
"Communities, Customer & Commercial Services",Sport & Leisure,Supplies & Services,Provisions,BIKOLD,27/07/2023,267.62
"Communities, Customer & Commercial Services",Sport & Leisure,Supplies & Services,Licences,PPL PRS Ltd,26/07/2023,"10,162.01"
"Communities, Customer & Commercial Services",Sport & Leisure,Supplies & Services,Equipment - Purchase,SAWMATIC,14/07/2023,139.80
"Communities, Customer & Commercial Services",Sport & Leisure,Supplies & Services,Equipment - Hire,S SKATE SHOP,06/07/2023,300.00
"Communities, Customer & Commercial Services",Sport & Leisure,Supplies & Services,Equipment - Purchase,RLSS UK Enterprises Ltd,14/07/2023,590.00
"Communities, Customer & Commercial Services",Sport & Leisure,Supplies & Services,Equipment - Purchase,RLSS UK Enterprises Ltd,21/07/2023,190.00
"Communities, Customer & Commercial Services",Sport & Leisure,Supplies & Services,Equipment - Purchase,RLSS UK Enterprises Ltd,24/07/2023,"1,750.00"
"Communities, Customer & Commercial Services",Sport & Leisure,Premises-Related Expenditure,R&M - Mechanical,Culligan LTD,24/07/2023,117.72
"Communities, Customer & Commercial Services",Sport & Leisure,Supplies & Services,Licences,UK Active,04/07/2023,"1,500.00"
"Communities, Customer & Commercial Services",Sport & Leisure,Supplies & Services,Licences,UK Active,04/07/2023,505.00
"Communities, Customer & Commercial Services",Sport & Leisure,Supplies & Services,Chemicals/Cleaning Products,BRENNTAG UK LIMITED,05/07/2023,117.84
"Communities, Customer & Commercial Services",Sport & Leisure,Supplies & Services,Chemicals/Cleaning Products,BRENNTAG UK LIMITED,02/07/2023,"2,142.24"
"Communities, Customer & Commercial Services",Sport & Leisure,Supplies & Services,Chemicals/Cleaning Products,BRENNTAG UK LIMITED,02/07/2023,235.68
"Communities, Customer & Commercial Services",Sport & Leisure,Supplies & Services,Chemicals/Cleaning Products,BRENNTAG UK LIMITED,02/07/2023,250.00
"Communities, Customer & Commercial Services",Sport & Leisure,Supplies & Services,Fees,Austin Mix Ltd,19/07/2023,"1,330.00"
"Communities, Customer & Commercial Services",Sport & Leisure,Capital Expenditure,Payments to Contractor,Support in Sport  Limited,26/07/2023,"224,376.81"
Corporate Communications,Communications & Marketing,Employees,Staff Training,ACM Training,06/07/2023,"1,599.00"
Corporate Communications,Communications & Marketing,Supplies & Services,Mobile Phones,EE LTD EQUIPMENT ,14/07/2023,136.00
Corporate Communications,Communications & Marketing,Supplies & Services,Other Expenses,The Curiuous Way,05/07/2023,325.00
Corporate Communications,Communications & Marketing,Supplies & Services,Marketing & Publicity,Silk Group,05/07/2023,492.10
Corporate Communications,Communications & Marketing,Capital Expenditure,Other Capital Expenditure,SIGNS EXPRESS ,19/07/2023,641.82
Corporate Communications,Communications & Marketing,Capital Expenditure,Other Capital Expenditure,SIGNS EXPRESS ,19/07/2023,"1,376.10"
Corporate Communications,Communications & Marketing,Capital Expenditure,Other Capital Expenditure,SIGNS EXPRESS ,19/07/2023,606.18
Corporate Items,Corporate Codes,Supplies & Services,Other Services,M FM Ltd,04/07/2023,"8,976.12"
Corporate Items,Corporate Codes,Capital Financing Costs,Unitary Charge,PYRAMID SCHOOLS LTD,11/07/2023,"1,005,653.64"
Corporate Items,Corporate Codes,Employees,Agency Supply Costs,Matrix SCM,19/07/2023,"34,659.08"
Corporate Items,Corporate Codes,Employees,Agency Supply Costs,Matrix SCM,10/07/2023,"29,974.65"
Corporate Items,Corporate Codes,Employees,Agency Supply Costs,Matrix SCM,27/07/2023,"41,843.58"
Corporate Items,Corporate Codes,Employees,Agency Supply Costs,Matrix SCM,27/07/2023,"29,914.12"
Corporate Items,Corporate Codes,Employees,Agency Supply Costs,Matrix SCM,03/07/2023,"41,631.91"
Corporate Items,Corporate Codes,Supplies & Services,Hospitality,IRONBRIDGE GORGE TRADING CO LTD,03/07/2023,480.00
Education & Skills,Consultancy & Advisory Services,Employees,Training Exp�s (Facilitators),D U Consultancy LTD,05/07/2023,"1,200.00"
Education & Skills,Consultancy & Advisory Services,Premises-Related Expenditure,Hire Of Rooms,MEETING POINT TRUST LTD,24/07/2023,115.00
Education & Skills,Consultancy & Advisory Services,Premises-Related Expenditure,Hire Of Rooms,RAMADA TELFORD IRONBRIDGE,13/07/2023,166.67
Education & Skills,Consultancy & Advisory Services,Employees,Training Exp�s (Facilitators),Outta Skool Limited,24/07/2023,"4,550.00"
Education & Skills,Education & Skills,Capital Expenditure,Payments to Contractor,PAVE AWAYS LTD,10/07/2023,"17,132.20"
Education & Skills,Education & Skills,Capital Expenditure,Payments to Contractor,WINDOW & DOOR CONTRACT SERVICES,12/07/2023,"46,505.60"
Education & Skills,Education & Skills,Capital Expenditure,Legal Fees,FREETHS LLP,19/07/2023,"2,676.80"
Education & Skills,Education & Skills,Capital Expenditure,Payments to Contractor,GRANVILLE CONSTRUCTION & MAINTENANCE LTD,19/07/2023,387.57
Education & Skills,Education & Skills,Capital Expenditure,Payments to Contractor,SGS United Kingdom Limited,19/07/2023,325.00
Education & Skills,Education & Skills,Capital Expenditure,Payments to Contractor,SGS United Kingdom Limited,19/07/2023,125.00
Education & Skills,Education & Skills,Capital Expenditure,Payments to Contractor,SGS United Kingdom Limited,19/07/2023,150.00
Education & Skills,Education & Skills,Capital Expenditure,Payments to Contractor,GRANVILLE CONSTRUCTION & MAINTENANCE LTD,14/07/2023,363.00
Education & Skills,Education & Skills,Capital Expenditure,Payments to Contractor,TAYLORS MECHANICAL H & P SERVICES LTD,27/07/2023,"3,950.00"
Education & Skills,Education & Skills,Capital Expenditure,Payments to Contractor,WELLINGTON INSULATION CO. LTD,20/07/2023,"1,735.00"
Education & Skills,Education & Skills,Capital Expenditure,Payments to Contractor,SGS United Kingdom Limited,31/07/2023,365.00
Education & Skills,Education & Skills,Capital Expenditure,Payments to Contractor,Services in Design Ltd,20/07/2023,322.25
Education & Skills,Education & Skills,Capital Expenditure,Payments to Contractor,W H SOLICITORS,27/07/2023,152.00
Education & Skills,Education & Skills,Capital Expenditure,Payments to Contractor,TAYLORS MECHANICAL H & P SERVICES LTD,27/07/2023,"27,406.01"
Education & Skills,Education & Skills,Capital Expenditure,Payments to Contractor,PAVE AWAYS LTD,14/07/2023,"135,826.39"
Education & Skills,Education & Skills,Capital Expenditure,Payments to Contractor,Services in Design Ltd,14/07/2023,"4,330.00"
Education & Skills,Education & Skills,Capital Expenditure,Payments to Contractor,SGS United Kingdom Limited,19/07/2023,150.00
Education & Skills,Education & Skills,Capital Expenditure,Payments to Contractor,GRANVILLE CONSTRUCTION & MAINTENANCE LTD,20/07/2023,"4,890.00"
Education & Skills,Education & Skills,Capital Expenditure,Payments to Contractor,GRANVILLE CONSTRUCTION & MAINTENANCE LTD,20/07/2023,"4,616.98"
Education & Skills,Education & Skills,Capital Expenditure,Payments to Contractor,Pumpforce Ltd,20/07/2023,780.49
Education & Skills,Education & Skills,Capital Expenditure,Payments to Contractor,Services in Design Ltd,20/07/2023,"5,033.34"
Education & Skills,Education & Skills,Capital Expenditure,Payments to Contractor,TAYLORS MECHANICAL H & P SERVICES LTD,20/07/2023,"1,101.14"
Education & Skills,Education & Skills,Capital Expenditure,Payments to Contractor,TAYLORS MECHANICAL H & P SERVICES LTD,20/07/2023,"3,187.59"
Education & Skills,Education & Skills,Capital Expenditure,Payments to Contractor,TAYLORS MECHANICAL H & P SERVICES LTD,20/07/2023,246.85
Education & Skills,Education & Skills,Capital Expenditure,Payments to Contractor,Security Wise Ltd,20/07/2023,966.00
Education & Skills,Pupil Support Services,Supplies & Services,Other Grants (Expenses),4 All Foundation,24/07/2023,"5,459.25"
Education & Skills,Pupil Support Services,Supplies & Services,Other Grants (Expenses),4 All Foundation,24/07/2023,"4,500.00"
Education & Skills,Pupil Support Services,Supplies & Services,Other Grants (Expenses),AFC Telford United Foundation CIC,24/07/2023,"3,447.00"
Education & Skills,Pupil Support Services,Supplies & Services,Other Grants (Expenses),C Cordingley Hall,26/07/2023,"12,000.00"
Education & Skills,Pupil Support Services,Supplies & Services,Other Grants (Expenses),CAT - Telford Priory School,25/07/2023,"16,500.00"
Education & Skills,Pupil Support Services,Supplies & Services,Town Scheme Grant,CEIA,26/07/2023,"7,452.00"
Education & Skills,Pupil Support Services,Supplies & Services,Other Grants (Expenses),EMERGE DESIGN LTD,05/07/2023,"1,188.00"
Education & Skills,Pupil Support Services,Supplies & Services,Other Grants (Expenses),Genius Tuition,25/07/2023,"12,000.00"
Education & Skills,Pupil Support Services,Supplies & Services,Other Grants (Expenses),Genius Tuition,26/07/2023,"12,000.00"
Education & Skills,Pupil Support Services,Supplies & Services,Other Grants (Expenses),Genius Tuition,26/07/2023,"12,000.00"
Education & Skills,Pupil Support Services,Supplies & Services,Other Grants (Expenses),Genius Tuition,26/07/2023,"4,485.75"
Education & Skills,Pupil Support Services,Supplies & Services,Other Grants (Expenses),Genius Tuition,26/07/2023,"17,958.00"
Education & Skills,Pupil Support Services,Supplies & Services,Other Grants (Expenses),Great Dawley Town Council,25/07/2023,"7,718.40"
Education & Skills,Pupil Support Services,Supplies & Services,Other Grants (Expenses),HALESFIELD DAY NURSERY CENTRE ,24/07/2023,"1,982.40"
Education & Skills,Pupil Support Services,Supplies & Services,Other Grants (Expenses),HOLLINSWOOD & RANDLAY PARISH COUNCIL,26/07/2023,"7,308.00"
Education & Skills,Pupil Support Services,Supplies & Services,Other Grants (Expenses),MEETING POINT TRUST LTD,05/07/2023,327.95
Education & Skills,Pupil Support Services,Supplies & Services,Other Grants (Expenses),MEETING POINT TRUST LTD,17/07/2023,133.80
Education & Skills,Pupil Support Services,Supplies & Services,Other Grants (Expenses),MEETING POINT TRUST LTD,25/07/2023,136.55
Education & Skills,Pupil Support Services,Supplies & Services,Other Grants (Expenses),MEETING POINT TRUST LTD,18/07/2023,133.80
Education & Skills,Pupil Support Services,Supplies & Services,Other Grants (Expenses),Moonstruck Astronaut C.I.C,26/07/2023,"1,455.00"
Education & Skills,Pupil Support Services,Supplies & Services,Other Grants (Expenses),OAKENGATES TOWN COUNCIL,26/07/2023,"4,500.00"
Education & Skills,Pupil Support Services,Supplies & Services,Other Grants (Expenses),Old Park Primary SCHOOL FUND,25/07/2023,"6,954.61"
Education & Skills,Pupil Support Services,Supplies & Services,Other Grants (Expenses),PODS,25/07/2023,"6,235.50"
Education & Skills,Pupil Support Services,Supplies & Services,Other Grants (Expenses),STIRCHLEY & BROOKSIDE PARISH COUNCIL ,25/07/2023,"6,000.00"
Education & Skills,Pupil Support Services,Supplies & Services,Other Grants (Expenses),Telford Park School,24/07/2023,"9,375.00"
Education & Skills,Pupil Support Services,Supplies & Services,Other Grants (Expenses),Twiggys Day Nursery Ltd ,25/07/2023,"3,136.00"
Education & Skills,Pupil Support Services,Supplies & Services,Other Grants (Expenses),TWIGGYS DAY NURSERY MADELEY,25/07/2023,"1,500.00"
Education & Skills,Pupil Support Services,Supplies & Services,Other Grants (Expenses),Windmill Primary School Academy,24/07/2023,"9,000.00"
Education & Skills,Pupil Support Services,Supplies & Services,Other Grants (Expenses),Wrekin Forest School CIC,26/07/2023,570.00
Education & Skills,Pupil Support Services,Supplies & Services,Other Grants (Expenses),Wrekin Forest School CIC,25/07/2023,"2,250.00"
Education & Skills,Pupil Support Services,Supplies & Services,Other Grants (Expenses),Wrekin Forest School CIC,24/07/2023,600.00
Education & Skills,Pupil Support Services,Third Party Payments,DSG - High Needs Block,A Telford School,19/07/2023,"25,478.66"
Education & Skills,Pupil Support Services,Third Party Payments,DSG - High Needs Block,A Telford School,18/07/2023,"25,478.66"
Education & Skills,Pupil Support Services,Supplies & Services,Other Expenses,A D�A Associates Ltd,27/07/2023,"7,500.00"
Education & Skills,Pupil Support Services,Supplies & Services,Other Expenses,Entrust Support Services Ltd,31/07/2023,"2,403.00"
Education & Skills,Pupil Support Services,Supplies & Services,Artistes Fees,REDACTED PERSONAL INFORMATION,31/07/2023,"2,484.97"
Education & Skills,Pupil Support Services,Supplies & Services,Artistes Fees,REDACTED PERSONAL INFORMATION,31/07/2023,"2,000.00"
Education & Skills,Pupil Support Services,Supplies & Services,Equipment - Purchase,N MUSICAL INSTRUMENTS,11/07/2023,"1,225.50"
Education & Skills,Pupil Support Services,Supplies & Services,Equipment - Purchase,N MUSICAL INSTRUMENTS,18/07/2023,215.00
Education & Skills,Pupil Support Services,Supplies & Services,Other Expenses,Telford Minster,27/07/2023,130.00
Education & Skills,SEND (0-25),Transport-Related Expenditure,Taxi Costs,24X7 Ltd,18/07/2023,"8,740.20"
Education & Skills,SEND (0-25),Transport-Related Expenditure,Taxi Costs,24X7 Ltd,18/07/2023,"4,503.80"
Education & Skills,SEND (0-25),Transport-Related Expenditure,Taxi Costs,24X7 Ltd,18/07/2023,885.68
Education & Skills,SEND (0-25),Transport-Related Expenditure,Taxi Costs,365 Transports Ltd,18/07/2023,"1,265.00"
Education & Skills,SEND (0-25),Transport-Related Expenditure,Taxi Costs,AB & CA H,12/07/2023,"3,668.40"
Education & Skills,SEND (0-25),Transport-Related Expenditure,Taxi Costs,AB & CA H,18/07/2023,"4,076.00"
Education & Skills,SEND (0-25),Transport-Related Expenditure,Transport Contractors,A-STAR TRANSPORT MIDLANDS LTD,06/07/2023,"6,500.00"
Education & Skills,SEND (0-25),Transport-Related Expenditure,Taxi Costs,A-STAR TRANSPORT MIDLANDS LTD,06/07/2023,"1,672.00"
Education & Skills,SEND (0-25),Transport-Related Expenditure,Taxi Costs,Elite Telford Limited,06/07/2023,"2,160.00"
Education & Skills,SEND (0-25),Transport-Related Expenditure,Taxi Costs,Telford and Wrekin Community Enterprise LTD,06/07/2023,900.00
Education & Skills,SEND (0-25),Transport-Related Expenditure,Taxi Costs,Telford and Wrekin Community Enterprise LTD,06/07/2023,"2,205.00"
Education & Skills,SEND (0-25),Transport-Related Expenditure,Taxi Costs,Telford and Wrekin Community Enterprise LTD,18/07/2023,"1,120.00"
Education & Skills,SEND (0-25),Transport-Related Expenditure,Transport Contractors,Telford Taxi Hire Limited,11/07/2023,"4,800.00"
Education & Skills,SEND (0-25),Transport-Related Expenditure,Taxi Costs,Telford Taxi Hire Limited,11/07/2023,"5,400.00"
Education & Skills,SEND (0-25),Transport-Related Expenditure,Taxi Costs,Telford Taxi Hire Limited,11/07/2023,"3,990.00"
Education & Skills,SEND (0-25),Transport-Related Expenditure,Taxi Costs,Telford Taxi Hire Limited,18/07/2023,"3,040.00"
Education & Skills,SEND (0-25),Transport-Related Expenditure,Taxi Costs,Telford Taxi Hire Limited,18/07/2023,"1,320.00"
Education & Skills,SEND (0-25),Transport-Related Expenditure,Taxi Costs,Telford Taxi Hire Limited,18/07/2023,"4,400.00"
Education & Skills,SEND (0-25),Transport-Related Expenditure,Taxi Costs,Telford Taxi Hire Limited,18/07/2023,"2,600.00"
Education & Skills,SEND (0-25),Transport-Related Expenditure,Taxi Costs,Telford Taxi Hire Limited,24/07/2023,"1,600.00"
Education & Skills,SEND (0-25),Transport-Related Expenditure,Taxi Costs,Go Carz,18/07/2023,463.00
Education & Skills,SEND (0-25),Premises-Related Expenditure,Hire Of Rooms,Mercure Telford Centre Hotel,28/07/2023,120.83
Education & Skills,SEND (0-25),Supplies & Services,Training Costs - Participants Recharged,Mercure Telford Centre Hotel,28/07/2023,268.98
Education & Skills,SEND (0-25),Employees,Course Fees,NATIONAL AUTISTIC  SOCIETY,20/07/2023,"6,745.00"
Education & Skills,SEND (0-25),Third Party Payments,DSG - High Needs Block,Aqueduct Little Learners,06/07/2023,"1,327.19"
Education & Skills,SEND (0-25),Third Party Payments,DSG - High Needs Block,Chec Mates Day Care,06/07/2023,824.91
Education & Skills,SEND (0-25),Third Party Payments,DSG - High Needs Block,Cherry Blossom Day Care Ltd,06/07/2023,240.44
Education & Skills,SEND (0-25),Third Party Payments,DSG - High Needs Block,Dawley C of E Primary Academy,06/07/2023,"1,007.52"
Education & Skills,SEND (0-25),Third Party Payments,DSG - High Needs Block,Dawley C of E Primary Academy,06/07/2023,480.87
Education & Skills,SEND (0-25),Third Party Payments,DSG - High Needs Block,Grange Park Primary School - Community Academies Trust,28/07/2023,147.54
Education & Skills,SEND (0-25),Third Party Payments,DSG - High Needs Block,HADLEY UNDER 5�S ,06/07/2023,"1,649.82"
Education & Skills,SEND (0-25),Third Party Payments,DSG - High Needs Block,HONEYBUNS NURSERIES,06/07/2023,"1,728.83"
Education & Skills,SEND (0-25),Third Party Payments,DSG - High Needs Block,Lawley Village Academy,06/07/2023,"1,007.52"
Education & Skills,SEND (0-25),Third Party Payments,DSG - High Needs Block,TIGGY�S MONTESSORI NURSERY,06/07/2023,"1,067.85"
Education & Skills,SEND (0-25),Third Party Payments,DSG - High Needs Block,OAKENGATES UNITED PRE-SCHOOL,06/07/2023,824.91
Education & Skills,SEND (0-25),Third Party Payments,DSG - High Needs Block,PRIORSLEE PRE-SCHOOL,06/07/2023,"1,649.82"
Education & Skills,SEND (0-25),Third Party Payments,DSG - High Needs Block,TRENCH TOTS NEIGHBOURHOOD NURSERY LTD,06/07/2023,824.91
Education & Skills,SEND (0-25),Third Party Payments,DSG - High Needs Block,WOODEN TOPS DAY NURSERY ,06/07/2023,"2,715.17"
Education & Skills,SEND (0-25),Third Party Payments,DSG - High Needs Block,Wrekin View Primary School,06/07/2023,824.91
Education & Skills,SEND (0-25),Supplies & Services,Other Services,E B LTD,06/07/2023,"2,200.00"
Education & Skills,SEND (0-25),Supplies & Services,Other Services,E B LTD,28/07/2023,"2,200.00"
Education & Skills,SEND (0-25),Third Party Payments,DSG - High Needs Block,Bridge Therapy,24/07/2023,279.00
Education & Skills,SEND (0-25),Third Party Payments,DSG - High Needs Block,Bridge Therapy,06/07/2023,365.00
Education & Skills,SEND (0-25),Third Party Payments,Health Funded Services,SHROPSHIRE COMMUNITY HEALTH NHS TRUST,24/07/2023,"15,036.75"
Education & Skills,SEND (0-25),Third Party Payments,DSG - High Needs Block,Crudgington Primary School,19/07/2023,607.83
Education & Skills,SEND (0-25),Third Party Payments,DSG - High Needs Block,Crudgington Primary School,19/07/2023,607.83
Education & Skills,SEND (0-25),Third Party Payments,DSG - High Needs Block,Dawley C of E Primary Academy,19/07/2023,868.33
Education & Skills,SEND (0-25),Third Party Payments,DSG - High Needs Block,Dawley C of E Primary Academy,19/07/2023,868.33
Education & Skills,SEND (0-25),Third Party Payments,DSG - High Needs Block,Grange Park Primary School - Community Academies Trust,19/07/2023,"5,123.14"
Education & Skills,SEND (0-25),Third Party Payments,DSG - High Needs Block,Grange Park Primary School - Community Academies Trust,19/07/2023,"5,123.14"
Education & Skills,SEND (0-25),Third Party Payments,DSG - High Needs Block,Lawley Village Academy,19/07/2023,607.83
Education & Skills,SEND (0-25),Third Party Payments,DSG - High Needs Block,Lawley Village Academy,19/07/2023,607.83
Education & Skills,SEND (0-25),Third Party Payments,DSG - High Needs Block,PRIORSLEE ACADEMY,19/07/2023,"2,952.32"
Education & Skills,SEND (0-25),Third Party Payments,DSG - High Needs Block,PRIORSLEE ACADEMY,19/07/2023,"2,952.32"
Education & Skills,SEND (0-25),Third Party Payments,DSG - High Needs Block,Redhill Primary Academy,19/07/2023,"3,820.65"
Education & Skills,SEND (0-25),Third Party Payments,DSG - High Needs Block,Redhill Primary Academy,19/07/2023,"3,820.65"
Education & Skills,SEND (0-25),Third Party Payments,DSG - High Needs Block,St Peter�s Bratton C of E Academy,19/07/2023,"1,128.83"
Education & Skills,SEND (0-25),Third Party Payments,DSG - High Needs Block,St Peter�s Bratton C of E Academy,19/07/2023,"1,128.83"
Education & Skills,SEND (0-25),Third Party Payments,DSG - High Needs Block,Windmill Primary School Academy,19/07/2023,"3,473.32"
Education & Skills,SEND (0-25),Third Party Payments,DSG - High Needs Block,Windmill Primary School Academy,19/07/2023,"3,473.32"
Education & Skills,SEND (0-25),Third Party Payments,DSG - High Needs Block,Wrekin View Primary School,19/07/2023,"4,428.48"
Education & Skills,SEND (0-25),Third Party Payments,DSG - High Needs Block,Wrekin View Primary School,19/07/2023,"4,428.48"
Education & Skills,SEND (0-25),Third Party Payments,DSG - High Needs Block,ABRAHAM DARBY ACADEMY ,19/07/2023,"7,641.29"
Education & Skills,SEND (0-25),Third Party Payments,DSG - High Needs Block,ABRAHAM DARBY ACADEMY ,19/07/2023,"7,641.29"
Education & Skills,SEND (0-25),Third Party Payments,DSG - High Needs Block,CAT - Telford Priory School,19/07/2023,"7,901.80"
Education & Skills,SEND (0-25),Third Party Payments,DSG - High Needs Block,CAT - Telford Priory School,19/07/2023,"7,901.80"
Education & Skills,SEND (0-25),Third Party Payments,DSG - High Needs Block,Charlton Academy,19/07/2023,"4,515.31"
Education & Skills,SEND (0-25),Third Party Payments,DSG - High Needs Block,Charlton Academy,19/07/2023,"4,515.31"
Education & Skills,SEND (0-25),Third Party Payments,DSG - High Needs Block,Ercall Wood Academy,19/07/2023,"11,461.95"
Education & Skills,SEND (0-25),Third Party Payments,DSG - High Needs Block,Ercall Wood Academy,19/07/2023,"11,461.95"
Education & Skills,SEND (0-25),Third Party Payments,DSG - High Needs Block,Hadley Learning Community Academy,19/07/2023,"2,431.32"
Education & Skills,SEND (0-25),Third Party Payments,DSG - High Needs Block,Hadley Learning Community Academy,19/07/2023,"15,890.43"
Education & Skills,SEND (0-25),Third Party Payments,DSG - High Needs Block,Hadley Learning Community Academy,19/07/2023,"15,890.43"
Education & Skills,SEND (0-25),Third Party Payments,DSG - High Needs Block,Hadley Learning Community Academy,19/07/2023,"2,431.32"
Education & Skills,SEND (0-25),Third Party Payments,DSG - High Needs Block,MADELEY ACADEMY TRUST LTD,19/07/2023,"5,036.31"
Education & Skills,SEND (0-25),Third Party Payments,DSG - High Needs Block,MADELEY ACADEMY TRUST LTD,19/07/2023,"5,036.31"
Education & Skills,SEND (0-25),Third Party Payments,DSG - High Needs Block,NEWPORT GIRLS HIGH SCHOOL ACADEMY TRUST,19/07/2023,607.83
Education & Skills,SEND (0-25),Third Party Payments,DSG - High Needs Block,NEWPORT GIRLS HIGH SCHOOL ACADEMY TRUST,19/07/2023,607.83
Education & Skills,SEND (0-25),Third Party Payments,DSG - High Needs Block,Telford Park School,19/07/2023,"6,772.97"
Education & Skills,SEND (0-25),Third Party Payments,DSG - High Needs Block,Telford Park School,19/07/2023,"6,772.97"
Education & Skills,SEND (0-25),Third Party Payments,DSG - High Needs Block,The Telford Langley School,19/07/2023,"5,817.81"
Education & Skills,SEND (0-25),Third Party Payments,DSG - High Needs Block,The Telford Langley School,19/07/2023,"5,817.81"
Education & Skills,SEND (0-25),Third Party Payments,DSG - High Needs Block,THOMAS TELFORD SCHOOL ,19/07/2023,955.16
Education & Skills,SEND (0-25),Third Party Payments,DSG - High Needs Block,THOMAS TELFORD SCHOOL ,19/07/2023,955.16
Education & Skills,SEND (0-25),Third Party Payments,DSG - High Needs Block,Queensway HLC,10/07/2023,"36,408.00"
Education & Skills,SEND (0-25),Third Party Payments,DSG - High Needs Block,Queensway HLC,10/07/2023,"49,407.54"
Education & Skills,SEND (0-25),Third Party Payments,DSG - High Needs Block,Queensway HLC,10/07/2023,"23,724.50"
Education & Skills,SEND (0-25),Third Party Payments,DSG - High Needs Block,Queensway HLC,10/07/2023,"30,896.66"
Education & Skills,SEND (0-25),Third Party Payments,DSG - High Needs Block,Acorn Education & Care Ltd,06/07/2023,"18,983.52"
Education & Skills,SEND (0-25),Third Party Payments,DSG - High Needs Block,Chalkline Education & Support Ltd,06/07/2023,"2,300.00"
Education & Skills,SEND (0-25),Third Party Payments,DSG - High Needs Block,Ellern Mede School,24/07/2023,"4,375.00"
Education & Skills,SEND (0-25),Third Party Payments,DSG - High Needs Block,Ellern Mede School,24/07/2023,"3,150.00"
Education & Skills,SEND (0-25),Third Party Payments,DSG - High Needs Block,Maple Hayes Dyslexia School & Research Centre,06/07/2023,"7,835.20"
Education & Skills,SEND (0-25),Third Party Payments,DSG - High Needs Block,Shrewsbury High School,06/07/2023,358.50
Education & Skills,SEND (0-25),Third Party Payments,DSG - High Needs Block,THE EDUCATION DEVELOPMENT SERVICE LTD,24/07/2023,"10,500.00"
Education & Skills,SEND (0-25),Third Party Payments,DSG - High Needs Block,THE EDUCATION DEVELOPMENT SERVICE LTD,24/07/2023,"41,166.00"
Education & Skills,SEND (0-25),Third Party Payments,DSG - High Needs Block,CITY OF STOKE ON TRENT,06/07/2023,"1,237.11"
Education & Skills,SEND (0-25),Third Party Payments,DSG - High Needs Block,POWYS COUNTY COUNCIL,06/07/2023,"8,895.62"
Education & Skills,SEND (0-25),Third Party Payments,DSG - High Needs Block,HALESFIELD DAY NURSERY CENTRE ,06/07/2023,"1,271.81"
Education & Skills,SEND (0-25),Third Party Payments,DSG - High Needs Block,Shrewsbury Prepatoria Ltd,28/07/2023,"1,047.71"
Education & Skills,SEND (0-25),Employees,Staff Training,Herefordshire and Ludlow College,06/07/2023,216.00
Education & Skills,SEND (0-25),Supplies & Services,Equipment - Purchase,OTICON LIMITED,21/07/2023,249.00
Education & Skills,SEND (0-25),Supplies & Services,Equipment - Purchase,PHONAK UK LTD,24/07/2023,"2,354.84"
Education & Skills,SEND (0-25),Supplies & Services,Equipment - Purchase,PHONAK UK LTD,24/07/2023,588.71
Education & Skills,SEND (0-25),Supplies & Services,Aids & Appliances,PHONAK UK LTD,06/07/2023,147.00
Education & Skills,SEND (0-25),Supplies & Services,Other Services,Prime Resolution,06/07/2023,595.00
Education & Skills,SEND (0-25),Supplies & Services,Other Services,Together Trust,24/07/2023,153.02
Education & Skills,SEND (0-25),Third Party Payments,DSG - High Needs Block,Chalkline Education & Support Ltd,24/07/2023,650.00
Education & Skills,SEND (0-25),Third Party Payments,DSG - High Needs Block,Chalkline Education & Support Ltd,24/07/2023,300.00
Education & Skills,SEND (0-25),Third Party Payments,DSG - High Needs Block,Chalkline Education & Support Ltd,24/07/2023,750.00
Education & Skills,SEND (0-25),Third Party Payments,DSG - High Needs Block,Chalkline Education & Support Ltd,24/07/2023,300.00
Education & Skills,SEND (0-25),Third Party Payments,DSG - High Needs Block,Chalkline Education & Support Ltd,06/07/2023,500.00
Education & Skills,SEND (0-25),Third Party Payments,DSG - High Needs Block,Chalkline Education & Support Ltd,06/07/2023,300.00
Education & Skills,SEND (0-25),Third Party Payments,DSG - High Needs Block,Chalkline Education & Support Ltd,06/07/2023,200.00
Education & Skills,SEND (0-25),Third Party Payments,DSG - High Needs Block,Chalkline Education & Support Ltd,06/07/2023,500.00
Education & Skills,SEND (0-25),Third Party Payments,DSG - High Needs Block,HRP Education,06/07/2023,546.25
Education & Skills,SEND (0-25),Third Party Payments,DSG - High Needs Block,HRP Education,06/07/2023,520.00
Education & Skills,SEND (0-25),Third Party Payments,DSG - High Needs Block,HRP Education,06/07/2023,780.00
Education & Skills,SEND (0-25),Third Party Payments,DSG - High Needs Block,HRP Education,06/07/2023,115.00
Education & Skills,SEND (0-25),Third Party Payments,DSG - High Needs Block,HRP Education,06/07/2023,520.00
Education & Skills,SEND (0-25),Third Party Payments,DSG - High Needs Block,HRP Education,06/07/2023,460.00
Education & Skills,SEND (0-25),Third Party Payments,DSG - High Needs Block,HRP Education,06/07/2023,"1,040.00"
Education & Skills,SEND (0-25),Third Party Payments,DSG - High Needs Block,HRP Education,06/07/2023,735.00
Education & Skills,SEND (0-25),Supplies & Services,Health & Safety Expenses,G & S S LTD,19/07/2023,774.00
Education & Skills,SEND (0-25),Supplies & Services,Health & Safety Expenses,Jiraffe,31/07/2023,"2,442.00"
Education & Skills,SEND (0-25),Third Party Payments,DSG - High Needs Block,ABRAHAM DARBY ACADEMY ,19/07/2023,279.34
Education & Skills,SEND (0-25),Third Party Payments,DSG - High Needs Block,ABRAHAM DARBY ACADEMY ,19/07/2023,279.34
Education & Skills,SEND (0-25),Third Party Payments,DSG - High Needs Block,Ercall Wood Academy,19/07/2023,173.67
Education & Skills,SEND (0-25),Third Party Payments,DSG - High Needs Block,Ercall Wood Academy,19/07/2023,173.67
Education & Skills,SEND (0-25),Third Party Payments,DSG - High Needs Block,Grange Park Primary School - Community Academies Trust,19/07/2023,413.51
Education & Skills,SEND (0-25),Third Party Payments,DSG - High Needs Block,Grange Park Primary School - Community Academies Trust,19/07/2023,413.51
Education & Skills,SEND (0-25),Third Party Payments,DSG - High Needs Block,Hadley Learning Community Academy,19/07/2023,108.48
Education & Skills,SEND (0-25),Third Party Payments,DSG - High Needs Block,Hadley Learning Community Academy,19/07/2023,108.48
Education & Skills,SEND (0-25),Third Party Payments,DSG - High Needs Block,Lantern Academy,19/07/2023,173.67
Education & Skills,SEND (0-25),Third Party Payments,DSG - High Needs Block,Lantern Academy,19/07/2023,173.67
Education & Skills,SEND (0-25),Third Party Payments,DSG - High Needs Block,Lawley Village Academy,19/07/2023,393.01
Education & Skills,SEND (0-25),Third Party Payments,DSG - High Needs Block,Lawley Village Academy,19/07/2023,393.01
Education & Skills,SEND (0-25),Third Party Payments,DSG - High Needs Block,PRIORSLEE ACADEMY,19/07/2023,434.12
Education & Skills,SEND (0-25),Third Party Payments,DSG - High Needs Block,PRIORSLEE ACADEMY,19/07/2023,434.12
Education & Skills,SEND (0-25),Third Party Payments,DSG - High Needs Block,Telford Park School,19/07/2023,325.44
Education & Skills,SEND (0-25),Third Party Payments,DSG - High Needs Block,Telford Park School,19/07/2023,325.44
Education & Skills,SEND (0-25),Third Party Payments,DSG - High Needs Block,Windmill Primary School Academy,19/07/2023,521.00
Education & Skills,SEND (0-25),Third Party Payments,DSG - High Needs Block,Windmill Primary School Academy,19/07/2023,521.00
Education & Skills,SEND (0-25),Third Party Payments,DSG - High Needs Block,Wrekin View Primary School,19/07/2023,368.98
Education & Skills,SEND (0-25),Third Party Payments,DSG - High Needs Block,Wrekin View Primary School,19/07/2023,368.98
Education & Skills,SEND (0-25),Third Party Payments,DSG - High Needs Block,Bryn Melyn Care Ltd,12/07/2023,"16,006.67"
Education & Skills,SEND (0-25),Third Party Payments,DSG - High Needs Block,CROSSBAR COACHING,06/07/2023,700.00
Education & Skills,SEND (0-25),Third Party Payments,DSG - High Needs Block,Ruskin Mill Trust,06/07/2023,"11,197.84"
Education & Skills,SEND (0-25),Third Party Payments,DSG - High Needs Block,Ruskin Mill Trust,06/07/2023,"27,798.33"
Education & Skills,SEND (0-25),Third Party Payments,DSG - High Needs Block,The Really NEET Project Ltd,26/07/2023,"71,433.33"
Education & Skills,SEND (0-25),Third Party Payments,DSG - High Needs Block,LANDAU LTD,06/07/2023,"31,307.50"
Education & Skills,SEND (0-25),Third Party Payments,DSG - High Needs Block,LANDAU LTD,06/07/2023,"31,307.50"
Education & Skills,SEND (0-25),Third Party Payments,DSG - High Needs Block,REASEHEATH COLLEGE,06/07/2023,"3,105.41"
Education & Skills,Skills,Premises-Related Expenditure,Hire Of Rooms,Brookside Central,18/07/2023,264.00
Education & Skills,Skills,Premises-Related Expenditure,Hire Of Rooms,Brookside Central,24/07/2023,264.00
Education & Skills,Skills,Premises-Related Expenditure,Hire Of Rooms,Brookside Central,24/07/2023,108.00
Education & Skills,Skills,Premises-Related Expenditure,Hire Of Rooms,DONNINGTON PARTNERSHIP,18/07/2023,272.00
Education & Skills,Skills,Premises-Related Expenditure,Hire Of Rooms,HADLEY & LEEGOMERY PARISH COUNCIL,24/07/2023,330.00
Education & Skills,Skills,Premises-Related Expenditure,Hire Of Rooms,HADLEY & LEEGOMERY PARISH COUNCIL,24/07/2023,293.33
Education & Skills,Skills,Premises-Related Expenditure,Hire Of Rooms,HADLEY & LEEGOMERY PARISH COUNCIL,24/07/2023,187.50
Education & Skills,Skills,Premises-Related Expenditure,Hire Of Rooms,HADLEY & LEEGOMERY PARISH COUNCIL,24/07/2023,343.75
Education & Skills,Skills,Premises-Related Expenditure,Hire Of Rooms,HADLEY & LEEGOMERY PARISH COUNCIL,24/07/2023,312.50
Education & Skills,Skills,Premises-Related Expenditure,Hire Of Rooms,HADLEY & LEEGOMERY PARISH COUNCIL,24/07/2023,320.00
Education & Skills,Skills,Premises-Related Expenditure,Hire Of Rooms,HADLEY & LEEGOMERY PARISH COUNCIL,24/07/2023,150.00
Education & Skills,Skills,Premises-Related Expenditure,Hire Of Rooms,HADLEY & LEEGOMERY PARISH COUNCIL,24/07/2023,187.50
Education & Skills,Skills,Premises-Related Expenditure,Hire Of Rooms,KETLEY PARISH COUNCIL,18/07/2023,357.50
Education & Skills,Skills,Premises-Related Expenditure,Hire Of Rooms,MEETING POINT TRUST LTD,24/07/2023,115.00
Education & Skills,Skills,Premises-Related Expenditure,Hire Of Rooms,OAKENGATES TOWN COUNCIL,18/07/2023,486.00
Education & Skills,Skills,Premises-Related Expenditure,Hire Of Rooms,OAKENGATES TOWN COUNCIL,18/07/2023,412.50
Education & Skills,Skills,Premises-Related Expenditure,Hire Of Rooms,OAKENGATES TOWN COUNCIL,18/07/2023,330.00
Education & Skills,Skills,Premises-Related Expenditure,Hire Of Rooms,OAKENGATES TOWN COUNCIL,18/07/2023,330.00
Education & Skills,Skills,Premises-Related Expenditure,Hire Of Rooms,OAKENGATES TOWN COUNCIL,18/07/2023,165.00
Education & Skills,Skills,Premises-Related Expenditure,Hire Of Rooms,OAKENGATES TOWN COUNCIL,18/07/2023,330.00
Education & Skills,Skills,Premises-Related Expenditure,Hire Of Rooms,OAKENGATES TOWN COUNCIL,18/07/2023,165.00
Education & Skills,Skills,Premises-Related Expenditure,Hire Of Rooms,OAKENGATES TOWN COUNCIL,18/07/2023,432.00
Education & Skills,Skills,Premises-Related Expenditure,Hire Of Rooms,OAKENGATES TOWN COUNCIL,18/07/2023,165.00
Education & Skills,Skills,Premises-Related Expenditure,Hire Of Rooms,OAKENGATES TOWN COUNCIL,18/07/2023,165.00
Education & Skills,Skills,Premises-Related Expenditure,Hire Of Rooms,PARK LANE CENTRE,18/07/2023,330.00
Education & Skills,Skills,Premises-Related Expenditure,Hire Of Rooms,PARK LANE CENTRE,18/07/2023,330.00
Education & Skills,Skills,Premises-Related Expenditure,Hire Of Rooms,The Leegate Centre CIC,18/07/2023,240.00
Education & Skills,Skills,Premises-Related Expenditure,Hire Of Rooms,The Leegate Centre CIC,18/07/2023,120.00
Education & Skills,Skills,Premises-Related Expenditure,Hire Of Rooms,WROCKWARDINE WOOD & TRENCH PC ,18/07/2023,150.00
Education & Skills,Skills,Supplies & Services,Exam Fees,AIM Qualifications and Assessment Group,18/07/2023,192.00
Education & Skills,Skills,Supplies & Services,Exam Fees,CITY & GUILDS,18/07/2023,"1,895.40"
Education & Skills,Skills,Supplies & Services,Exam Fees,CITY & GUILDS,21/07/2023,187.20
Education & Skills,Skills,Third Party Payments,Childminders,CHILDCARE SOS,18/07/2023,310.50
Education & Skills,Skills,Third Party Payments,Childminders,CHILDCARE SOS,18/07/2023,465.75
Education & Skills,Skills,Third Party Payments,Childminders,CHILDCARE SOS,18/07/2023,543.38
Education & Skills,Skills,Third Party Payments,Childminders,CHILDCARE SOS,18/07/2023,690.00
Education & Skills,Skills,Third Party Payments,Childminders,CHILDCARE SOS,18/07/2023,310.50
Education & Skills,Skills,Premises-Related Expenditure,Hire Of Rooms,KETLEY PARISH COUNCIL,11/07/2023,182.00
Education & Skills,Skills,Premises-Related Expenditure,Hire Of Rooms,Parkway Medical Services Ltd,11/07/2023,160.00
Education & Skills,Skills,Supplies & Services,Translation Services,VISS Sign Language Interpreting Service,12/07/2023,115.00
Education & Skills,Skills,Supplies & Services,Other Services,NEWPORT ENGRAVERS,28/07/2023,317.00
Education & Skills,Skills,Transport-Related Expenditure,Transport,AT BROWN LTD,10/07/2023,150.00
Education & Skills,Skills,Transport-Related Expenditure,Transport,AT BROWN LTD,24/07/2023,185.00
Education & Skills,Skills,Transport-Related Expenditure,Transport,AT BROWN LTD,26/07/2023,190.00
Education & Skills,Skills,Premises-Related Expenditure,Hire Of Rooms,DONNINGTON PARTNERSHIP,18/07/2023,123.25
Education & Skills,Skills,Premises-Related Expenditure,Hire Of Rooms,PARK LANE CENTRE,10/07/2023,120.00
Education & Skills,Skills,Third Party Payments,Childminders,CHILDCARE SOS,18/07/2023,232.87
Education & Skills,Skills,Supplies & Services,Hospitality,HAMMONDS CATERING SERVICES LTD,18/07/2023,270.85
Education & Skills,Skills,Supplies & Services,Advertising,THE MIDLAND NEWS ASSOCIATION LTD,14/07/2023,734.00
Education & Skills,Skills,Third Party Payments,Childminders,CHILDCARE SOS,18/07/2023,164.25
Education & Skills,Skills,Supplies & Services,Comp Software (Purch / Hire),Grofar Limited,05/07/2023,"1,200.00"
Education & Skills,Skills,Supplies & Services,Comp Software (Purch / Hire),Grofar Limited,05/07/2023,600.00
Education & Skills,Skills,Supplies & Services,Comp Software (Purch / Hire),Grofar Limited,05/07/2023,600.00
Education & Skills,Skills,Supplies & Services,Comp Software (Purch / Hire),Grofar Limited,05/07/2023,"1,200.00"
Education & Skills,Skills,Supplies & Services,Comp Software (Purch / Hire),Grofar Limited,05/07/2023,"3,600.00"
Education & Skills,Skills,Supplies & Services,Comp Software (Purch / Hire),Grofar Limited,05/07/2023,"4,500.00"
